Workbook

Sheet Menu

Sheet Superstrat Option List (hidden)
A1: Group | B1: Description | C1: Options | D1: Rate $ | E1: 2nd Rate | F1: Russian Rates
A2: General Specifications | B2: Model | C2: Select Option | G2: Rate with formula, only change Russian rate
A3: General Specifications | B3: Model | C3: Space | D3: 2000
A4: General Specifications | B4: Model | C4: Moon | D4: 2000
A5: General Specifications | B5: Model | C5: CS | D5: 2000
A6: General Specifications | B6: Model | C6: MS | D6: 2000
A7: General Specifications | B7: Number of strings | C7: Select Option
A8: General Specifications | B8: Number of strings | C8: 6 | D8: 0
A9: General Specifications | B9: Number of strings | C9: 7 | D9: 65
A10: General Specifications | B10: Number of strings | C10: 8 | D10: 115
A11: General Specifications | B11: Scale length | C11: Select Option
A12: General Specifications | B12: Scale length | C12: 25,5" | D12: 0
A13: General Specifications | B13: Scale length | C13: 26" | D13: 0
A14: General Specifications | B14: Scale length | C14: 26,5" | D14: 0
A15: General Specifications | B15: Scale length | C15: 27" | D15: 0
A16: General Specifications | B16: Scale length | C16: 28" | D16: 0
A17: General Specifications | B17: Scale length | C17: Multiscale | D17: 200
A18: General Specifications | B18: Neck joint construction | C18: Select Option
A19: General Specifications | B19: Neck joint construction | C19: Bolt-on (Screws) | D19: 0
A20: General Specifications | B20: Neck joint construction | C20: Bolt-on (Bolts & threaded inserts) | D20: 35
A21: General Specifications | B21: Neck joint construction | C21: Set neck | D21: 65
A22: General Specifications | B22: Neck joint construction | C22: Neck through | D22: 200
A23: General Specifications | B23: Additional option | C23: Select Option
A24: General Specifications | B24: Additional option | C24: Smooth heel for bolt-on (for CS and MS) | D24: 50
A25: General Specifications | B25: Additional option | C25: Full length carbon reinforcements | D25: 40
A26: General Specifications | B26: Additional option | C26: Hidden fret tangs (without fretboard binding) | D26: 100
A27: General Specifications | B27: Additional option | C27: none | D27: 0
A28: Neck Specifications | B28: Number of frets | C28: Select Option
A29: Neck Specifications | B29: Number of frets | C29: 24 | D29: 0
A30: Neck Specifications | B30: Fretwire | C30: Select Option
A31: Neck Specifications | B31: Fretwire | C31: Jescar stainless steel 2,28x1,4mm | D31: 0
A32: Neck Specifications | B32: Fretwire | C32: Jescar stainless steel 2,5x1,3mm | D32: 0
A33: Neck Specifications | B33: Fretwire | C33: Jescar stainless steel 2,79x1,45mm | D33: 0
A34: Neck Specifications | B34: Fretwire | C34: Evo Gold 2,28x1,4mm | D34: 25
A35: Neck Specifications | B35: Fretwire | C35: Evo Gold 2,79x1,45mm | D35: 25
A36: Neck Specifications | B36: Fretwire | C36: Jescar nickel-silver 2,28x1,4mm | D36: 0
A37: Neck Specifications | B37: Fretwire | C37: Jescar nickel-silver 2,5x1,3mm | D37: 0
A38: Neck Specifications | B38: Fretwire | C38: Jescar nickel-silver 2,79x1,45mm | D38: 0
A39: Neck Specifications | B39: Fretwire | C39: Custom fretwire | D39: 40
A40: Neck Specifications | B40: Neck pieces | C40: Select Option
A41: Neck Specifications | B41: Neck pieces | C41: 1 | D41: 0
A42: Neck Specifications | B42: Neck pieces | C42: 3 | D42: =F42*'Exchange Rate Calculation'!$Q$7 -> 0
A43: Neck Specifications | B43: Neck pieces | C43: 5 | D43: =F43*'Exchange Rate Calculation'!$Q$7 -> 0
A44: Neck Specifications | B44: Neck pieces | C44: 7 | D44: 50
A45: Neck Specifications | B45: Neck pieces | C45: 7 + 2 veneer layers | D45: 60
A46: Neck Specifications | B46: Neck pieces | C46: Additional veneer layer (each) | D46: 5
A47: Neck Specifications | B47: Neck wood | C47: 1 Piece Neck Wood | D47: Select Option
A48: Neck Specifications | B48: Neck wood | C48: 1 Piece Neck Wood | D48: none | E48: 0
A49: Neck Specifications | B49: Neck wood | C49: 1 Piece Neck Wood | D49: Hard maple | E49: =F49*'Exchange Rate Calculation'!$Q$7 -> 0
A50: Neck Specifications | B50: Neck wood | C50: 1 Piece Neck Wood | D50: Flame maple | E50: 190
A51: Neck Specifications | B51: Neck wood | C51: 1 Piece Neck Wood | D51: Bird`s eye maple | E51: 190
A52: Neck Specifications | B52: Neck wood | C52: 1 Piece Neck Wood | D52: African mahogany | E52: 65
A53: Neck Specifications | B53: Neck wood | C53: 1 Piece Neck Wood | D53: Black / White Limba | E53: 80
A54: Neck Specifications | B54: Neck wood | C54: 1 Piece Neck Wood | D54: Sapele | E54: 80
A55: Neck Specifications | B55: Neck wood | C55: 1 Piece Neck Wood | D55: Padouk | E55: 80
A56: Neck Specifications | B56: Neck wood | C56: 1 Piece Neck Wood | D56: Indian Rosewood | E56: 285
A57: Neck Specifications | B57: Neck wood | C57: 1 Piece Neck Wood | D57: Pau Ferro | E57: 175
A58: Neck Specifications | B58: Neck wood | C58: 1 Piece Neck Wood | D58: Other ( contact for price ) | E58: 0
A59: Neck Specifications | B59: Neck wood | C59: Multi-piece Neck Base Wood | D59: Select Option
A60: Neck Specifications | B60: Neck wood | C60: Multi-piece Neck Base Wood | D60: none | E60: 0
A61: Neck Specifications | B61: Neck wood | C61: Multi-piece Neck Base Wood | D61: Hard maple | E61: 0
A62: Neck Specifications | B62: Neck wood | C62: Multi-piece Neck Base Wood | D62: Flame maple | E62: 190
A63: Neck Specifications | B63: Neck wood | C63: Multi-piece Neck Base Wood | D63: African mahogany | E63: 65
A64: Neck Specifications | B64: Neck wood | C64: Multi-piece Neck Base Wood | D64: Black / White Limba | E64: 80
A65: Neck Specifications | B65: Neck wood | C65: Multi-piece Neck Base Wood | D65: Walnut | E65: 80
A66: Neck Specifications | B66: Neck wood | C66: Multi-piece Neck Base Wood | D66: Sapele | E66: 80
A67: Neck Specifications | B67: Neck wood | C67: Multi-piece Neck Base Wood | D67: Padouk | E67: 80
A68: Neck Specifications | B68: Neck wood | C68: Multi-piece Neck Base Wood | D68: Indian Rosewood | E68: 285
A69: Neck Specifications | B69: Neck wood | C69: Multi-piece Neck Base Wood | D69: Pau Ferro | E69: 175
A70: Neck Specifications | B70: Neck wood | C70: Multi-piece Neck Base Wood | D70: Wenge | E70: 175
A71: Neck Specifications | B71: Neck wood | C71: Multi-piece Neck Base Wood | D71: Bubinga | E71: 150
A72: Neck Specifications | B72: Neck wood | C72: Multi-piece Neck Base Wood | D72: Purpleheart | E72: 150
A73: Neck Specifications | B73: Neck wood | C73: Multi-piece Neck Base Wood | D73: Other ( contact for price ) | E73: 0
A74: Neck Specifications | B74: Neck wood | C74: Multi-piece Neck Thins Wood | D74: Select Option
A75: Neck Specifications | B75: Neck wood | C75: Multi-piece Neck Thins Wood | D75: none | E75: 0
A76: Neck Specifications | B76: Neck wood | C76: Multi-piece Neck Thins Wood | D76: Hard maple | E76: 0
A77: Neck Specifications | B77: Neck wood | C77: Multi-piece Neck Thins Wood | D77: Flame Maple | E77: 57
A78: Neck Specifications | B78: Neck wood | C78: Multi-piece Neck Thins Wood | D78: African mahogany | E78: 20
A79: Neck Specifications | B79: Neck wood | C79: Multi-piece Neck Thins Wood | D79: Black / White Limba | E79: 25
A80: Neck Specifications | B80: Neck wood | C80: Multi-piece Neck Thins Wood | D80: Walnut | E80: 25
A81: Neck Specifications | B81: Neck wood | C81: Multi-piece Neck Thins Wood | D81: Sapele | E81: 25
A82: Neck Specifications | B82: Neck wood | C82: Multi-piece Neck Thins Wood | D82: Padouk | E82: 25
A83: Neck Specifications | B83: Neck wood | C83: Multi-piece Neck Thins Wood | D83: Indian Rosewood | E83: 85
A84: Neck Specifications | B84: Neck wood | C84: Multi-piece Neck Thins Wood | D84: Pau Ferro | E84: 55
A85: Neck Specifications | B85: Neck wood | C85: Multi-piece Neck Thins Wood | D85: Wenge | E85: 55
A86: Neck Specifications | B86: Neck wood | C86: Multi-piece Neck Thins Wood | D86: Bubinga | E86: 45
A87: Neck Specifications | B87: Neck wood | C87: Multi-piece Neck Thins Wood | D87: Purpleheart | E87: 45
A88: Neck Specifications | B88: Neck wood | C88: Multi-piece Neck Thins Wood | D88: Other ( contact for price ) | E88: 0
A89: Neck Specifications | B89: Fretboard wood | C89: Select Option
A90: Neck Specifications | B90: Fretboard wood | C90: Hard Maple | D90: 0
A91: Neck Specifications | B91: Fretboard wood | C91: Flame maple | D91: 65
A92: Neck Specifications | B92: Fretboard wood | C92: Bird`s eye maple | D92: 75
A93: Neck Specifications | B93: Fretboard wood | C93: Pau Ferro | D93: 0
A94: Neck Specifications | B94: Fretboard wood | C94: Indian Rosewood | D94: 40
A95: Neck Specifications | B95: Fretboard wood | C95: Ebony | D95: 85
A96: Neck Specifications | B96: Fretboard wood | C96: Macassar ebony | D96: 85
A97: Neck Specifications | B97: Fretboard wood | C97: Pale moon ebony | D97: 115
A98: Neck Specifications | B98: Fretboard wood | C98: Zebrano | D98: 50
A99: Neck Specifications | B99: Fretboard wood | C99: Ziricote | D99: 85
A100: Neck Specifications | B100: Fretboard wood | C100: Bocote | D100: 60
A101: Neck Specifications | B101: Fretboard wood | C101: Wenge | D101: 60
A102: Neck Specifications | B102: Fretboard wood | C102: Other exotic wood (contact for price) | D102: 0
A103: Neck Specifications | B103: Fretboard radius | C103: Select Option
A104: Neck Specifications | B104: Fretboard radius | C104: 12" | D104: 0
A105: Neck Specifications | B105: Fretboard radius | C105: 14" | D105: 0
A106: Neck Specifications | B106: Fretboard radius | C106: 16" | D106: 0
A107: Neck Specifications | B107: Fretboard radius | C107: 20" | D107: 0
A108: Neck Specifications | B108: Fretboard radius | C108: Compound radius | D108: 85
A109: Neck Specifications | B109: Headstock shape | C109: Select Option
A110: Neck Specifications | B110: Headstock shape | C110: A-1 | D110: 0
A111: Neck Specifications | B111: Headstock shape | C111: A-2 | D111: 0
A112: Neck Specifications | B112: Headstock shape | C112: A-2 2-level headstock | D112: 60
A113: Neck Specifications | B113: Headstock shape | C113: A-3 | D113: 0
A114: Neck Specifications | B114: Headstock shape | C114: A-3 2-level headstock | D114: 60
A115: Neck Specifications | B115: Headstock shape | C115: CS | D115: 0
A116: Neck Specifications | B116: Headstock shape | C116: MS | D116: 0
A117: Neck Specifications | B117: Headstock finish | C117: Select Option
A118: Neck Specifications | B118: Headstock finish | C118: Matching top with veneer | D118: =F118*'Exchange Rate Calculation'!$Q$7 -> 0
A119: Neck Specifications | B119: Headstock finish | C119: Clear | D119: 0
A120: Neck Specifications | B120: Headstock binding | C120: Select Option
A121: Neck Specifications | B121: Headstock binding | C121: None | D121: 0
A122: Neck Specifications | B122: Headstock binding | C122: Scraped binding | D122: 0
A123: Neck Specifications | B123: Headstock binding | C123: Binding 1 ply | D123: 50
A124: Neck Specifications | B124: Headstock binding | C124: Binding 2 ply | D124: 100
A125: Neck Specifications | B125: Fretboard binding | C125: Select Option
A126: Neck Specifications | B126: Fretboard binding | C126: None | D126: 0
A127: Neck Specifications | B127: Fretboard binding | C127: Side border-stripe (between neck and fingerboard) | D127: 25
A128: Neck Specifications | B128: Fretboard binding | C128: Binding 1 ply | D128: 50
A129: Neck Specifications | B129: Fretboard binding | C129: Binding 2 ply | D129: 100
A130: Neck Specifications | B130: Fretboard inlays | C130: Select Option
A131: Neck Specifications | B131: Fretboard inlays | C131: None | D131: 0
A132: Neck Specifications | B132: Fretboard inlays | C132: MOP dots 2-6mm | D132: 0
A133: Neck Specifications | B133: Fretboard inlays | C133: LED markers | D133: 165
A134: Neck Specifications | B134: Fretboard inlays | C134: Wooden blocks | D134: 50
A135: Neck Specifications | B135: Fretboard inlays | C135: Aluminium rings | D135: 35
A136: Neck Specifications | B136: Fretboard inlays | C136: Custom design "simple" | D136: 50
A137: Neck Specifications | B137: Fretboard inlays | C137: Custom design "medium" | D137: 115
A138: Neck Specifications | B138: Fretboard inlays | C138: Custom design "complicated" | D138: 165
A139: Neck Specifications | B139: Side markers | C139: Select Option
A140: Neck Specifications | B140: Side markers | C140: None | D140: 0
A141: Neck Specifications | B141: Side markers | C141: Plastic dots 2mm | D141: 0
A142: Neck Specifications | B142: Side markers | C142: MOP dots 2mm | D142: 0
A143: Neck Specifications | B143: Side markers | C143: Luminlay 3mm | D143: 0
A144: Neck Specifications | B144: Side markers | C144: Wood or plastic blocks | D144: 50
A145: Neck Specifications | B145: Side markers | C145: MOP blocks | D145: 60
A146: Body Specifications | B146: Body wood | C146: Bolt-on (Screws) | D146: Select Option
A147: Body Specifications | B147: Body wood | C147: Bolt-on (Screws) | D147: Alder | E147: 0
A148: Body Specifications | B148: Body wood | C148: Bolt-on (Screws) | D148: White ash | E148: 0
A149: Body Specifications | B149: Body wood | C149: Bolt-on (Screws) | D149: Swamp ash | E149: 250
A150: Body Specifications | B150: Body wood | C150: Bolt-on (Screws) | D150: African mahogany | E150: 100
A151: Body Specifications | B151: Body wood | C151: Bolt-on (Screws) | D151: Basswood | E151: 0
A152: Body Specifications | B152: Body wood | C152: Bolt-on (Screws) | D152: Limba | E152: 200
A153: Body Specifications | B153: Body wood | C153: Bolt-on (Screws) | D153: Sapele | E153: 85
A154: Body Specifications | B154: Body wood | C154: Bolt-on (Bolts & threaded inserts) | D154: Select Option
A155: Body Specifications | B155: Body wood | C155: Bolt-on (Bolts & threaded inserts) | D155: Alder | E155: 0
A156: Body Specifications | B156: Body wood | C156: Bolt-on (Bolts & threaded inserts) | D156: White ash | E156: 0
A157: Body Specifications | B157: Body wood | C157: Bolt-on (Bolts & threaded inserts) | D157: Swamp ash | E157: 250
A158: Body Specifications | B158: Body wood | C158: Bolt-on (Bolts & threaded inserts) | D158: African mahogany | E158: 100
A159: Body Specifications | B159: Body wood | C159: Bolt-on (Bolts & threaded inserts) | D159: Basswood | E159: 0
A160: Body Specifications | B160: Body wood | C160: Bolt-on (Bolts & threaded inserts) | D160: Limba | E160: 200
A161: Body Specifications | B161: Body wood | C161: Bolt-on (Bolts & threaded inserts) | D161: Sapele | E161: 85
A162: Body Specifications | B162: Body wood | C162: Set neck | D162: Select Option
A163: Body Specifications | B163: Body wood | C163: Set neck | D163: Alder | E163: 0
A164: Body Specifications | B164: Body wood | C164: Set neck | D164: White ash | E164: 0
A165: Body Specifications | B165: Body wood | C165: Set neck | D165: Swamp ash | E165: 250
A166: Body Specifications | B166: Body wood | C166: Set neck | D166: African mahogany | E166: 100
A167: Body Specifications | B167: Body wood | C167: Set neck | D167: Basswood | E167: 0
A168: Body Specifications | B168: Body wood | C168: Set neck | D168: Limba | E168: 200
A169: Body Specifications | B169: Body wood | C169: Set neck | D169: Sapele | E169: 85
A170: Body Specifications | B170: Body wood | C170: Neck through | D170: Select Option
A171: Body Specifications | B171: Body wood | C171: Neck through | D171: Alder | E171: 0
A172: Body Specifications | B172: Body wood | C172: Neck through | D172: White ash | E172: 0
A173: Body Specifications | B173: Body wood | C173: Neck through | D173: Swamp ash | E173: 250
A174: Body Specifications | B174: Body wood | C174: Neck through | D174: African mahogany | E174: 100
A175: Body Specifications | B175: Body wood | C175: Neck through | D175: Basswood | E175: 0
A176: Body Specifications | B176: Body wood | C176: Neck through | D176: Limba | E176: 200
A177: Body Specifications | B177: Body wood | C177: Neck through | D177: Sapele | E177: 85
A178: Body Specifications | B178: Front body carvings | C178: Select Option
A179: Body Specifications | B179: Front body carvings | C179: Arm bevel (Space, CS, MS) | D179: 0
A180: Body Specifications | B180: Front body carvings | C180: Carved top (CS, Space) | D180: 100
A181: Body Specifications | B181: Front body carvings | C181: Chamfer (Moon) | D181: =F181*'Exchange Rate Calculation'!$Q$7 -> 0
A182: Body Specifications | B182: Front body carvings | C182: None | D182: 0
A183: Body Specifications | B183: Body chambers | C183: Select Option
A184: Body Specifications | B184: Body chambers | C184: None | D184: 0
A185: Body Specifications | B185: Body chambers | C185: Weight reducing chambers (only with top) | D185: 60
A186: Body Specifications | B186: Top wood | C186: Select Option
A187: Body Specifications | B187: Top wood | C187: None | D187: 0
A188: Body Specifications | B188: Top wood | C188: White ash 5mm | D188: 0
A189: Body Specifications | B189: Top wood | C189: White ash 16mm | D189: 0
A190: Body Specifications | B190: Top wood | C190: Buckeye Burl 5mm | D190: 215
A191: Body Specifications | B191: Top wood | C191: Flame maple 5mm | D191: 165
A192: Body Specifications | B192: Top wood | C192: Flame maple 16mm | D192: 330
A193: Body Specifications | B193: Top wood | C193: Quilted maple 5mm | D193: 165
A194: Body Specifications | B194: Top wood | C194: Quilted maple 16mm | D194: 330
A195: Body Specifications | B195: Top wood | C195: Burl maple 5mm | D195: 200
A196: Body Specifications | B196: Top wood | C196: Burl maple 16mm | D196: 330
A197: Body Specifications | B197: Top wood | C197: Spalted maple 3-5mm | D197: 135
A198: Body Specifications | B198: Top wood | C198: Poplar burl 3-5mm | D198: 135
A199: Body Specifications | B199: Top wood | C199: Walnut | D199: 65
A200: Body Specifications | B200: Top wood | C200: Purpleheart | D200: 65
... 94 more rows

Sheet Superstrat Padalka Calculation
B5: Specifications
A6: Part | B6: Description | C6: Choosen option | D6: Cost
A7: General Specifications | B7: General Specifications
A8: General Specifications | B8: Model | C8: Select Option | D8: =IFERROR(INDEX('Superstrat Option List'!D2:D1928,MATCH(A8&B8&C8,'Superstrat Option List'!A2:A1928&'Superstrat Option List'!B2:B1928&'Superstrat Option List'!C2:C1928,0)),"Please choose option") -> 0
A9: General Specifications | B9: Number of Strings | C9: Select Option | D9: =IFERROR(INDEX('Superstrat Option List'!D3:D1929,MATCH(A9&B9&C9,'Superstrat Option List'!A3:A1929&'Superstrat Option List'!B3:B1929&'Superstrat Option List'!C3:C1929,0)),"Please choose option") -> 0
A10: General Specifications | B10: Scale Length | C10: Select Option | D10: =IFERROR(INDEX('Superstrat Option List'!D4:D1930,MATCH(A10&B10&C10,'Superstrat Option List'!A4:A1930&'Superstrat Option List'!B4:B1930&'Superstrat Option List'!C4:C1930,0)),"Please choose option") -> 0
A11: General Specifications
A12: General Specifications | B12: Neck Joint Construction | C12: Select Option | D12: =IFERROR(INDEX('Superstrat Option List'!D6:D1932,MATCH(A12&B12&C12,'Superstrat Option List'!A6:A1932&'Superstrat Option List'!B6:B1932&'Superstrat Option List'!C6:C1932,0)),"Please choose option") -> 0
A13: General Specifications | B13: Additional option | C13: Select Option | D13: =IFERROR(INDEX('Superstrat Option List'!D7:D1933,MATCH(A13&B13&C13,'Superstrat Option List'!A7:A1933&'Superstrat Option List'!B7:B1933&'Superstrat Option List'!C7:C1933,0)),"Please choose option") -> 0
B15: Neck Specifications
A16: Neck Specifications | B16: Number of frets | C16: Select Option | D16: =IFERROR(INDEX('Superstrat Option List'!D10:D1936,MATCH(A16&B16&C16,'Superstrat Option List'!A10:A1936&'Superstrat Option List'!B10:B1936&'Superstrat Option List'!C10:C1936,0)),"Please choose option") -> 0
A17: Neck Specifications | B17: Fretwire | C17: Select Option | D17: =IFERROR(INDEX('Superstrat Option List'!D11:D1937,MATCH(A17&B17&C17,'Superstrat Option List'!A11:A1937&'Superstrat Option List'!B11:B1937&'Superstrat Option List'!C11:C1937,0)),"Please choose option") -> 0
A18: Neck Specifications | B18: Neck pieces | C18: Select Option | D18: =IFERROR(INDEX('Superstrat Option List'!D12:D1938,MATCH(A18&B18&C18,'Superstrat Option List'!A12:A1938&'Superstrat Option List'!B12:B1938&'Superstrat Option List'!C12:C1938,0)),"Please choose option") -> 0
B19: Neck wood
B20: Select option below for 1 piece neck ( option not available for neck through)
A21: Neck Specifications | B21: 1 Piece Neck Wood | C21: =INDEX('Superstrat Option List'!D2:D278,MATCH(A21&$B$19&B21,'Superstrat Option List'!A2:A278&'Superstrat Option List'!B2:B278&'Superstrat Option List'!C2:C278,0)) -> Select Option | D21: =IFERROR(INDEX('Superstrat Option List'!E14:E1941,MATCH(A21&$B$19&B21&C21,'Superstrat Option List'!A14:A1941&'Superstrat Option List'!B14:B1941&'Superstrat Option List'!C14:C1941&'Superstrat Option List'!D14:D1941,0)),"Please choose option") -> 0
B22: Select options below for Multi-piece neck
A23: Neck Specifications | B23: Multi-piece Neck Base Wood | C23: Select Option | D23: =IFERROR(INDEX('Superstrat Option List'!$E$47:$E$88,MATCH('Superstrat Padalka Calculation'!A23&$B$19&B23&C23,'Superstrat Option List'!$A$47:$A$88&'Superstrat Option List'!$B$47:$B$88&'Superstrat Option List'!$C$47:$C$88&'Superstrat Option List'!$D$47:$D$88,0)),"$0,00") -> 0 | F23: =IFERROR(INDEX('Superstrat Option List'!$E$2:$E$294,MATCH('Superstrat Padalka Calculation'!$A$29&'Superstrat Padalka Calculation'!$C$12&'Superstrat Padalka Calculation'!B23&'Superstrat Padalka Calculation'!C23,'Superstrat Option List'!$A2:$A$294&'Superstrat Option List'!$B$2:$B$294&'Superstrat Option List'!$C$2:$C$294&'Superstrat Option List'!$D$2:$D$294,0)),"$0,00") -> $0,00
A24: Neck Specifications | B24: Multi-piece Neck Thins Wood | C24: Select Option | D24: =IFERROR(INDEX('Superstrat Option List'!$E$47:$E$88,MATCH('Superstrat Padalka Calculation'!A24&'Superstrat Padalka Calculation'!$B$19&'Superstrat Padalka Calculation'!B24&'Superstrat Padalka Calculation'!C24,'Superstrat Option List'!$A$47:$A$88&'Superstrat Option List'!$B$47:$B$88&'Superstrat Option List'!$C$47:$C$88&'Superstrat Option List'!$D$47:$D$88,0)),"$0,00") -> 0 | F24: =IFERROR(INDEX('Superstrat Option List'!$E$2:$E$294,MATCH('Superstrat Padalka Calculation'!$A$29&'Superstrat Padalka Calculation'!$C$12&'Superstrat Padalka Calculation'!B24&'Superstrat Padalka Calculation'!C24,'Superstrat Option List'!$A3:$A$294&'Superstrat Option List'!$B$2:$B$294&'Superstrat Option List'!$C$2:$C$294&'Superstrat Option List'!$D$2:$D$294,0)),"$0,00") -> $0,00
A25: Neck Specifications | B25: Multi-piece Neck Thins Wood | C25: =INDEX('Superstrat Option List'!D6:D282,MATCH(A25&$B$19&B25,'Superstrat Option List'!A6:A282&'Superstrat Option List'!B6:B282&'Superstrat Option List'!C6:C282,0)) -> Select Option | D25: =IFERROR(INDEX('Superstrat Option List'!$E$47:$E$88,MATCH('Superstrat Padalka Calculation'!A25&'Superstrat Padalka Calculation'!$B$19&'Superstrat Padalka Calculation'!B25&'Superstrat Padalka Calculation'!C25,'Superstrat Option List'!$A$47:$A$88&'Superstrat Option List'!$B$47:$B$88&'Superstrat Option List'!$C$47:$C$88&'Superstrat Option List'!$D$47:$D$88,0)),"$0,00") -> 0 | F25: =IFERROR(INDEX('Superstrat Option List'!$E$2:$E$294,MATCH('Superstrat Padalka Calculation'!$A$29&'Superstrat Padalka Calculation'!$C$12&'Superstrat Padalka Calculation'!B25&'Superstrat Padalka Calculation'!C25,'Superstrat Option List'!$A4:$A$294&'Superstrat Option List'!$B$2:$B$294&'Superstrat Option List'!$C$2:$C$294&'Superstrat Option List'!$D$2:$D$294,0)),"$0,00") -> $0,00
A26: Neck Specifications | B26: Multi-piece Neck Thins Wood | C26: =INDEX('Superstrat Option List'!D7:D283,MATCH(A26&$B$19&B26,'Superstrat Option List'!A7:A283&'Superstrat Option List'!B7:B283&'Superstrat Option List'!C7:C283,0)) -> Select Option | D26: =IFERROR(INDEX('Superstrat Option List'!$E$47:$E$88,MATCH('Superstrat Padalka Calculation'!A26&'Superstrat Padalka Calculation'!$B$19&'Superstrat Padalka Calculation'!B26&'Superstrat Padalka Calculation'!C26,'Superstrat Option List'!$A$47:$A$88&'Superstrat Option List'!$B$47:$B$88&'Superstrat Option List'!$C$47:$C$88&'Superstrat Option List'!$D$47:$D$88,0)),"$0,00") -> 0 | F26: =IFERROR(INDEX('Superstrat Option List'!$E$2:$E$294,MATCH('Superstrat Padalka Calculation'!$A$29&'Superstrat Padalka Calculation'!$C$12&'Superstrat Padalka Calculation'!B26&'Superstrat Padalka Calculation'!C26,'Superstrat Option List'!$A5:$A$294&'Superstrat Option List'!$B$2:$B$294&'Superstrat Option List'!$C$2:$C$294&'Superstrat Option List'!$D$2:$D$294,0)),"$0,00") -> $0,00
A27: Neck Specifications | B27: Multi-piece Neck Thins Wood | C27: =INDEX('Superstrat Option List'!D8:D284,MATCH(A27&$B$19&B27,'Superstrat Option List'!A8:A284&'Superstrat Option List'!B8:B284&'Superstrat Option List'!C8:C284,0)) -> Select Option | D27: =IFERROR(INDEX('Superstrat Option List'!$E$47:$E$88,MATCH('Superstrat Padalka Calculation'!A27&'Superstrat Padalka Calculation'!$B$19&'Superstrat Padalka Calculation'!B27&'Superstrat Padalka Calculation'!C27,'Superstrat Option List'!$A$47:$A$88&'Superstrat Option List'!$B$47:$B$88&'Superstrat Option List'!$C$47:$C$88&'Superstrat Option List'!$D$47:$D$88,0)),"$0,00") -> 0 | F27: =IFERROR(INDEX('Superstrat Option List'!$E$2:$E$294,MATCH('Superstrat Padalka Calculation'!$A$29&'Superstrat Padalka Calculation'!$C$12&'Superstrat Padalka Calculation'!B27&'Superstrat Padalka Calculation'!C27,'Superstrat Option List'!$A6:$A$294&'Superstrat Option List'!$B$2:$B$294&'Superstrat Option List'!$C$2:$C$294&'Superstrat Option List'!$D$2:$D$294,0)),"$0,00") -> $0,00
A28: Neck Specifications | B28: Multi-piece Neck Thins Wood | C28: =INDEX('Superstrat Option List'!D9:D285,MATCH(A28&$B$19&B28,'Superstrat Option List'!A9:A285&'Superstrat Option List'!B9:B285&'Superstrat Option List'!C9:C285,0)) -> Select Option | D28: =IFERROR(INDEX('Superstrat Option List'!$E$47:$E$88,MATCH('Superstrat Padalka Calculation'!A28&'Superstrat Padalka Calculation'!$B$19&'Superstrat Padalka Calculation'!B28&'Superstrat Padalka Calculation'!C28,'Superstrat Option List'!$A$47:$A$88&'Superstrat Option List'!$B$47:$B$88&'Superstrat Option List'!$C$47:$C$88&'Superstrat Option List'!$D$47:$D$88,0)),"$0,00") -> 0 | F28: =IFERROR(INDEX('Superstrat Option List'!$E$2:$E$294,MATCH('Superstrat Padalka Calculation'!$A$29&'Superstrat Padalka Calculation'!$C$12&'Superstrat Padalka Calculation'!B28&'Superstrat Padalka Calculation'!C28,'Superstrat Option List'!$A7:$A$294&'Superstrat Option List'!$B$2:$B$294&'Superstrat Option List'!$C$2:$C$294&'Superstrat Option List'!$D$2:$D$294,0)),"$0,00") -> $0,00
A29: Special Upcharge | D29: =SUM(F23:F28) -> 0
B31: Fretboard Specifications
A32: Neck Specifications | B32: Fretboard wood | C32: Select Option | D32: =IFERROR(INDEX('Superstrat Option List'!D28:D1952,MATCH(A32&B32&C32,'Superstrat Option List'!A28:A1952&'Superstrat Option List'!B28:B1952&'Superstrat Option List'!C28:C1952,0)),"Please choose option") -> 0
A33: Neck Specifications | B33: Fretboard radius | C33: Select Option | D33: =IFERROR(INDEX('Superstrat Option List'!D29:D1953,MATCH(A33&B33&C33,'Superstrat Option List'!A29:A1953&'Superstrat Option List'!B29:B1953&'Superstrat Option List'!C29:C1953,0)),"Please choose option") -> 0
A34: Neck Specifications
A35: Neck Specifications | B35: Fretboard binding | C35: Select Option | D35: =IFERROR(INDEX('Superstrat Option List'!D29:D1955,MATCH(A35&B35&C35,'Superstrat Option List'!A29:A1955&'Superstrat Option List'!B29:B1955&'Superstrat Option List'!C29:C1955,0)),"Please choose option") -> 0
A36: Neck Specifications | B36: Fretboard inlays | C36: Select Option | D36: =IFERROR(INDEX('Superstrat Option List'!D30:D1956,MATCH(A36&B36&C36,'Superstrat Option List'!A30:A1956&'Superstrat Option List'!B30:B1956&'Superstrat Option List'!C30:C1956,0)),"Please choose option") -> 0
A37: Neck Specifications | B37: Side markers | C37: Select Option | D37: =IFERROR(INDEX('Superstrat Option List'!D30:D1957,MATCH(A37&B37&C37,'Superstrat Option List'!A30:A1957&'Superstrat Option List'!B30:B1957&'Superstrat Option List'!C30:C1957,0)),"Please choose option") -> 0
B39: Headstock Specifications
A40: Neck Specifications | B40: Headstock shape | C40: Select Option | D40: =IFERROR(INDEX('Superstrat Option List'!D31:D1960,MATCH(A40&B40&C40,'Superstrat Option List'!A31:A1960&'Superstrat Option List'!B31:B1960&'Superstrat Option List'!C31:C1960,0)),"Please choose option") -> 0
A41: Neck Specifications | B41: Headstock finish | C41: Select Option | D41: =IFERROR(INDEX('Superstrat Option List'!D32:D1961,MATCH(A41&B41&C41,'Superstrat Option List'!A32:A1961&'Superstrat Option List'!B32:B1961&'Superstrat Option List'!C32:C1961,0)),"Please choose option") -> 0
A42: Neck Specifications | B42: Headstock binding | C42: Select Option | D42: =IFERROR(INDEX('Superstrat Option List'!D34:D1962,MATCH(A42&B42&C42,'Superstrat Option List'!A34:A1962&'Superstrat Option List'!B34:B1962&'Superstrat Option List'!C34:C1962,0)),"Please choose option") -> 0
B44: Body Specifications
A45: Body Specifications | B45: Body wood | C45: Select Option | D45: =IFERROR(INDEX('Superstrat Option List'!E2:E294,MATCH(A45&B45&F45&C45,'Superstrat Option List'!A2:A294&'Superstrat Option List'!B2:B294&'Superstrat Option List'!C2:C294&'Superstrat Option List'!D2:D294,0)),"Please select option") -> Please select option | F45: =C12 -> Select Option
A46: Body Specifications | B46: Front body carvings | C46: Select Option | D46: =IFERROR(INDEX('Superstrat Option List'!D39:D1965,MATCH(A46&B46&C46,'Superstrat Option List'!A39:A1965&'Superstrat Option List'!B39:B1965&'Superstrat Option List'!C39:C1965,0)),"Please choose option") -> 0
A47: Body Specifications | B47: Body chambers | C47: =IFERROR(INDEX('Superstrat Option List'!C43:C278,MATCH(#REF!&A47&B47,'Superstrat Option List'!#REF!&'Superstrat Option List'!A43:A278&'Superstrat Option List'!B43:B278,0)),"Select Option") -> Select Option | D47: =IFERROR(INDEX('Superstrat Option List'!D41:D1967,MATCH(A47&B47&C47,'Superstrat Option List'!A41:A1967&'Superstrat Option List'!B41:B1967&'Superstrat Option List'!C41:C1967,0)),"Please choose option") -> 0
A48: Body Specifications | B48: Top wood | C48: Select Option | D48: =IFERROR(INDEX('Superstrat Option List'!D42:D1968,MATCH(A48&B48&C48,'Superstrat Option List'!A42:A1968&'Superstrat Option List'!B42:B1968&'Superstrat Option List'!C42:C1968,0)),"Please choose option") -> 0
A49: Special Upcharge | D49: =IFERROR(INDEX('Superstrat Option List'!D267:D273,MATCH('Superstrat Padalka Calculation'!A49&'Superstrat Padalka Calculation'!C46&'Superstrat Padalka Calculation'!C48,'Superstrat Option List'!A268:A273&'Superstrat Option List'!B268:B273&'Superstrat Option List'!C268:C273,0)),"$0,00") -> $0,00
A50: Body Specifications | B50: Body binding | C50: Select Option | D50: =IFERROR(INDEX('Superstrat Option List'!D44:D1970,MATCH(A50&B50&C50,'Superstrat Option List'!A44:A1970&'Superstrat Option List'!B44:B1970&'Superstrat Option List'!C44:C1970,0)),"Please choose option") -> 0
A51: Body Specifications | B51: Finish | C51: Select Option | D51: =IFERROR(INDEX('Superstrat Option List'!D45:D1971,MATCH(A51&B51&C51,'Superstrat Option List'!A45:A1971&'Superstrat Option List'!B45:B1971&'Superstrat Option List'!C45:C1971,0)),"Please choose option") -> 0
A52: Special Upcharge | D52: =IFERROR(INDEX('Superstrat Option List'!D275:D278,MATCH('Superstrat Padalka Calculation'!A52&'Superstrat Padalka Calculation'!C46&'Superstrat Padalka Calculation'!C51,'Superstrat Option List'!A275:A278&'Superstrat Option List'!B275:B278&'Superstrat Option List'!C275:C278,0)),"$0,00") -> $0,00
A53: Body Specifications | B53: Colour | C53: Select Option | D53: =IFERROR(INDEX('Superstrat Option List'!D47:D1973,MATCH(A53&B53&C53,'Superstrat Option List'!A47:A1973&'Superstrat Option List'!B47:B1973&'Superstrat Option List'!C47:C1973,0)),"Please choose option") -> 0
A54: Body Specifications
D55: =IF(C54>=F55,G55,0) -> 0 | F55: White | G55: 50
B57: Hardware
A58: Hardware | B58: Bridge | C58: Select Option | D58: =IFERROR(INDEX('Superstrat Option List'!D52:D1977,MATCH(A58&B58&C58,'Superstrat Option List'!A52:A1977&'Superstrat Option List'!B52:B1977&'Superstrat Option List'!C52:C1977,0)),"Please choose option") -> 0
A59: Hardware | B59: Bridge Single Sadle system | C59: =IFERROR(INDEX('Superstrat Option List'!C52:C278,MATCH(#REF!&A59&B59,'Superstrat Option List'!#REF!&'Superstrat Option List'!A52:A278&'Superstrat Option List'!B52:B278,0)),"Select Option") -> Select Option | D59: =IFERROR(F59*C9,"$0,00") -> $0,00 | F59: =IFERROR(INDEX('Superstrat Option List'!D52:D2340,MATCH(A59&B59&C59,'Superstrat Option List'!A52:A278&'Superstrat Option List'!B52:B2340&'Superstrat Option List'!C52:C2340,0)),"Please choose option") -> 0
A60: Hardware
A61: Hardware | B61: Tuning machines | C61: =IFERROR(INDEX('Superstrat Option List'!C57:C278,MATCH(#REF!&A61&B61,'Superstrat Option List'!#REF!&'Superstrat Option List'!A57:A278&'Superstrat Option List'!B57:B278,0)),"Select Option") -> Select Option | D61: =IFERROR(F61*C9,"$0,00") -> $0,00 | F61: =IFERROR(INDEX('Superstrat Option List'!D57:D2360,MATCH(A61&B61&C61,'Superstrat Option List'!A57:A2360&'Superstrat Option List'!B57:B2360&'Superstrat Option List'!C57:C2360,0)),"Please chose option") -> 0
B63: Electronics
A64: Electronics | B64: Neck Pickup | C64: Select Option | D64: =IFERROR(INDEX('Superstrat Option List'!D61:D1984,MATCH(A64&B64&C64,'Superstrat Option List'!A61:A1984&'Superstrat Option List'!B61:B1984&'Superstrat Option List'!C61:C1984,0)),"Please choose option") -> 0
A65: Electronics | B65: Describe Pickup Model
A66: Electronics | B66: Middle Pickup | C66: =IFERROR(INDEX('Superstrat Option List'!C63:C278,MATCH(#REF!&A66&B66,'Superstrat Option List'!#REF!&'Superstrat Option List'!A63:A278&'Superstrat Option List'!B63:B278,0)),"Select Option") -> Select Option | D66: =IFERROR(INDEX('Superstrat Option List'!D63:D1986,MATCH(A66&B66&C66,'Superstrat Option List'!A63:A1986&'Superstrat Option List'!B63:B1986&'Superstrat Option List'!C63:C1986,0)),"Please choose option") -> 0
A67: Electronics
A68: Electronics | B68: Bridge Pickup | C68: =IFERROR(INDEX('Superstrat Option List'!C67:C278,MATCH(#REF!&A68&B68,'Superstrat Option List'!#REF!&'Superstrat Option List'!A67:A278&'Superstrat Option List'!B67:B278,0)),"Select Option") -> Select Option | D68: =IFERROR(INDEX('Superstrat Option List'!D67:D1988,MATCH(A68&B68&C68,'Superstrat Option List'!A67:A1988&'Superstrat Option List'!B67:B1988&'Superstrat Option List'!C67:C1988,0)),"Please choose option") -> 0
A69: Electronics | B69: Describe Pickup Model
A70: Electronics | B70: Pickup Switch | C70: =IFERROR(INDEX('Superstrat Option List'!C75:C278,MATCH(#REF!&A70&B70,'Superstrat Option List'!#REF!&'Superstrat Option List'!A75:A278&'Superstrat Option List'!B75:B278,0)),"Select Option") -> Select Option | D70: =IFERROR(INDEX('Superstrat Option List'!D74:D1990,MATCH(A70&B70&C70,'Superstrat Option List'!A74:A1990&'Superstrat Option List'!B74:B1990&'Superstrat Option List'!C74:C1990,0)),"Please choose option") -> 0
A71: Electronics | B71: Piezo Pickups | C71: =IFERROR(INDEX('Superstrat Option List'!C78:C278,MATCH(#REF!&A71&B71,'Superstrat Option List'!#REF!&'Superstrat Option List'!A78:A278&'Superstrat Option List'!B78:B278,0)),"Select Option") -> Select Option | D71: =IFERROR(INDEX('Superstrat Option List'!D75:D1991,MATCH(A71&B71&C71,'Superstrat Option List'!A75:A1991&'Superstrat Option List'!B75:B1991&'Superstrat Option List'!C75:C1991,0)),"Please choose option") -> 0
A72: Electronics | B72: Pre-amp | C72: =IFERROR(INDEX('Superstrat Option List'!C78:C278,MATCH(#REF!&A72&B72,'Superstrat Option List'!#REF!&'Superstrat Option List'!A78:A278&'Superstrat Option List'!B78:B278,0)),"Select Option") -> Select Option | D72: =IFERROR(INDEX('Superstrat Option List'!D78:D1993,MATCH(A72&B72&C72,'Superstrat Option List'!A78:A1993&'Superstrat Option List'!B78:B1993&'Superstrat Option List'!C78:C1993,0)),"Please choose option") -> 0
A73: Electronics | B73: Describe Other Pre-amp
B75: Total | D75: =IFERROR(SUM(D8:D74),"Please select missing option") -> 0
B76: Name:
B77: Country :
B78: Adress :
B79: E-mail :
B80: Phone Number:
B81: Body & Headstock Shapes available in this models
B82: CS Body Model
B83: Space Body Model
B84: Moon Body Model
B85: MS Body Model
B86: A-1 Headstock Model
B87: A-2 Headstock Model
B88: A-3 Headstock Model
B89: CS Headstock Model
B90: MS Headstock Model

Sheet Headless Option List (hidden)
A1: Group | B1: Description | C1: Options | D1: Rate $ | E1: 2nd Rate | F1: Russian Rates
A2: General Specifications | B2: Model | C2: Select Option | G2: Rate with formula, only change Russian rate
A3: General Specifications | B3: Model | C3: Neptune | D3: 2100
A4: General Specifications | B4: Model | C4: Saturn | D4: 2250
A5: General Specifications | B5: Number of strings | C5: Select Option
A6: General Specifications | B6: Number of strings | C6: 6 | D6: 0
A7: General Specifications | B7: Number of strings | C7: 7 | D7: 65
A8: General Specifications | B8: Number of strings | C8: 8 | D8: 115
A9: General Specifications | B9: Scale length | C9: Select Option
A10: General Specifications | B10: Scale length | C10: 25,5" | D10: 0
A11: General Specifications | B11: Scale length | C11: 26" | D11: 0
A12: General Specifications | B12: Scale length | C12: 26,5" | D12: 0
A13: General Specifications | B13: Scale length | C13: 27" | D13: 0
A14: General Specifications | B14: Scale length | C14: 28" | D14: 0
A15: General Specifications | B15: Scale length | C15: Multiscale | D15: 200
A16: General Specifications | B16: Neck joint construction | C16: Select Option
A17: General Specifications | B17: Neck joint construction | C17: Bolt-on | D17: 0
A18: General Specifications | B18: Neck joint construction | C18: Set neck | D18: 65
A19: Neck Specifications | B19: Number of frets | C19: Select Option
A20: Neck Specifications | B20: Number of frets | C20: 24 | D20: 0
A21: Neck Specifications | B21: Fretwire | C21: Select Option
A22: Neck Specifications | B22: Fretwire | C22: Jescar stainless steel 2,3x1,4mm | D22: 0
A23: Neck Specifications | B23: Fretwire | C23: Jescar stainless steel 2,5x1,3mm | D23: 0
A24: Neck Specifications | B24: Fretwire | C24: Evo Gold 2,3x1,4mm | D24: 25
A25: Neck Specifications | B25: Fretwire | C25: Jescar nickel-silver 2,3x1,4mm | D25: 0
A26: Neck Specifications | B26: Fretwire | C26: Jescar nickel-silver 2,5x1,3mm | D26: 0
A27: Neck Specifications | B27: Neck pieces | C27: Select Option
A28: Neck Specifications | B28: Neck pieces | C28: 1 | D28: 0
A29: Neck Specifications | B29: Neck pieces | C29: 3 | D29: 0
A30: Neck Specifications | B30: Neck pieces | C30: 5 | D30: 0
A31: Neck Specifications | B31: Neck pieces | C31: 7 | D31: 50
A32: Neck Specifications | B32: Neck pieces | C32: 7 + 2 veneer layers | D32: 60
A33: Neck Specifications | B33: Neck pieces | C33: 7 + 4 veneer layers | D33: 70
A34: Neck Specifications | B34: Neck wood | C34: Select Option
A35: Neck Specifications | B35: Neck wood | C35: 1 Piece Neck Wood | D35: none | E35: 0
A36: Neck Specifications | B36: Neck wood | C36: 1 Piece Neck Wood | D36: Hard maple | E36: 0
A37: Neck Specifications | B37: Neck wood | C37: 1 Piece Neck Wood | D37: Flame maple | E37: 190
A38: Neck Specifications | B38: Neck wood | C38: 1 Piece Neck Wood | D38: African mahogany | E38: 65
A39: Neck Specifications | B39: Neck wood | C39: 1 Piece Neck Wood | D39: Bird`s eye maple | E39: 190
A40: Neck Specifications | B40: Neck wood | C40: 1 Piece Neck Wood | D40: Pau Ferro | E40: 175
A41: Neck Specifications | B41: Neck wood | C41: 1 Piece Neck Wood | D41: Padouk | E41: 80
A42: Neck Specifications | B42: Neck wood | C42: 1 Piece Neck Wood | D42: Other ( contact for price ) | E42: 0
A43: Neck Specifications | B43: Neck wood | C43: Select Option
A44: Neck Specifications | B44: Neck wood | C44: Multi-piece Neck Base Wood | D44: none | E44: 0
A45: Neck Specifications | B45: Neck wood | C45: Multi-piece Neck Base Wood | D45: Hard maple | E45: 40
A46: Neck Specifications | B46: Neck wood | C46: Multi-piece Neck Base Wood | D46: Flame maple | E46: 190
A47: Neck Specifications | B47: Neck wood | C47: Multi-piece Neck Base Wood | D47: African mahogany | E47: 65
A48: Neck Specifications | B48: Neck wood | C48: Multi-piece Neck Base Wood | D48: Pau Ferro | E48: 175
A49: Neck Specifications | B49: Neck wood | C49: Multi-piece Neck Base Wood | D49: Padouk | E49: 80
A50: Neck Specifications | B50: Neck wood | C50: Multi-piece Neck Base Wood | D50: Sapele | E50: 80
A51: Neck Specifications | B51: Neck wood | C51: Multi-piece Neck Base Wood | D51: Limba | E51: 80
A52: Neck Specifications | B52: Neck wood | C52: Multi-piece Neck Base Wood | D52: Walnut | E52: 80
A53: Neck Specifications | B53: Neck wood | C53: Multi-piece Neck Base Wood | D53: Wenge | E53: 175
A54: Neck Specifications | B54: Neck wood | C54: Multi-piece Neck Base Wood | D54: Purpleheart | E54: 150
A55: Neck Specifications | B55: Neck wood | C55: Multi-piece Neck Base Wood | D55: Other ( contact for price ) | E55: 0
A56: Neck Specifications | B56: Neck wood | C56: Select Option
A57: Neck Specifications | B57: Neck wood | C57: Multi-piece Neck Thins Wood | D57: none | E57: 0
A58: Neck Specifications | B58: Neck wood | C58: Multi-piece Neck Thins Wood | D58: Hard maple | E58: 0
A59: Neck Specifications | B59: Neck wood | C59: Multi-piece Neck Thins Wood | D59: Padouk | E59: 25
A60: Neck Specifications | B60: Neck wood | C60: Multi-piece Neck Thins Wood | D60: African mahogany | E60: 20
A61: Neck Specifications | B61: Neck wood | C61: Multi-piece Neck Thins Wood | D61: Bubinga | E61: 45
A62: Neck Specifications | B62: Neck wood | C62: Multi-piece Neck Thins Wood | D62: Sapele | E62: 25
A63: Neck Specifications | B63: Neck wood | C63: Multi-piece Neck Thins Wood | D63: Limba | E63: 25
A64: Neck Specifications | B64: Neck wood | C64: Multi-piece Neck Thins Wood | D64: Walnut | E64: 25
A65: Neck Specifications | B65: Neck wood | C65: Multi-piece Neck Thins Wood | D65: Wenge | E65: 55
A66: Neck Specifications | B66: Neck wood | C66: Multi-piece Neck Thins Wood | D66: Purpleheart | E66: 45
A67: Neck Specifications | B67: Neck wood | C67: Multi-piece Neck Thins Wood | D67: Other ( contact for price ) | E67: 0
A68: Neck Specifications | B68: Fretboard wood | C68: Select Option
A69: Neck Specifications | B69: Fretboard wood | C69: Pau ferro | D69: 0
A70: Neck Specifications | B70: Fretboard wood | C70: Pale moon ebony | D70: 115
A71: Neck Specifications | B71: Fretboard wood | C71: Ebony | D71: 85
A72: Neck Specifications | B72: Fretboard wood | C72: Macassar | D72: 85
A73: Neck Specifications | B73: Fretboard wood | C73: Hard maple | D73: 0
A74: Neck Specifications | B74: Fretboard wood | C74: Bird`s eye maple | D74: 75
A75: Neck Specifications | B75: Fretboard wood | C75: Zebrano | D75: 50
A76: Neck Specifications | B76: Fretboard wood | C76: Ziricote | D76: 85
A77: Neck Specifications | B77: Fretboard wood | C77: Other exotic wood (contact for the price) | D77: 0
A78: Neck Specifications | B78: Fretboard radius | C78: Select Option
A79: Neck Specifications | B79: Fretboard radius | C79: 10" | D79: 0
A80: Neck Specifications | B80: Fretboard radius | C80: 12" | D80: 0
A81: Neck Specifications | B81: Fretboard radius | C81: 16" | D81: 0
A82: Neck Specifications | B82: Fretboard radius | C82: 20" | D82: 0
A83: Neck Specifications | B83: Fretboard radius | C83: Compound radius | D83: 85
A84: Neck Specifications | B84: Fretboard binding | C84: Select Option
A85: Neck Specifications | B85: Fretboard binding | C85: None | D85: 0
A86: Neck Specifications | B86: Fretboard binding | C86: Binding 1 ply | D86: 50
A87: Neck Specifications | B87: Fretboard binding | C87: Binding 2 ply | D87: 100
A88: Neck Specifications | B88: Fretboard inlays | C88: Select Option
A89: Neck Specifications | B89: Fretboard inlays | C89: None | D89: 0
A90: Neck Specifications | B90: Fretboard inlays | C90: MOP dots 4mm | D90: 0
A91: Neck Specifications | B91: Fretboard inlays | C91: MOP dots 6mm | D91: 0
A92: Neck Specifications | B92: Fretboard inlays | C92: Wooden blocks | D92: 50
A93: Neck Specifications | B93: Fretboard inlays | C93: Aluminium rings | D93: 35
A94: Neck Specifications | B94: Fretboard inlays | C94: Custom design "simple" | D94: 50
A95: Neck Specifications | B95: Fretboard inlays | C95: Custom design "medium" | D95: 115
A96: Neck Specifications | B96: Fretboard inlays | C96: Custom design "complicated" | D96: 165
A97: Neck Specifications | B97: Side markers | C97: Select Option
A98: Neck Specifications | B98: Side markers | C98: None | D98: 0
A99: Neck Specifications | B99: Side markers | C99: Plastic dots 2mm | D99: 0
A100: Neck Specifications | B100: Side markers | C100: MOP dots 2mm | D100: 0
A101: Neck Specifications | B101: Side markers | C101: Luminlay 3mm | D101: 0
A102: Neck Specifications | B102: Side markers | C102: Wood or plastic blocks | D102: 50
A103: Neck Specifications | B103: Side markers | C103: MOP blocks | D103: 60
A104: Body Specifications | B104: Body wood | C104: Select Option
A105: Body Specifications | B105: Body wood | C105: Alder | D105: =F105*'Exchange Rate Calculation'!$Q$7 -> 0
A106: Body Specifications | B106: Body wood | C106: White ash | D106: =F106*'Exchange Rate Calculation'!$Q$7 -> 0
A107: Body Specifications | B107: Body wood | C107: Swamp ash | D107: 250
A108: Body Specifications | B108: Body wood | C108: African mahogany | D108: 100
A109: Body Specifications | B109: Body wood | C109: Basswood | D109: 0
A110: Body Specifications | B110: Body wood | C110: Limba | D110: 200
A111: Body Specifications | B111: Body wood | C111: Sapele | D111: 85
A112: Body Specifications | B112: Front body carvings | C112: Select Option
A113: Body Specifications | B113: Front body carvings | C113: Arm bevel | D113: 0
A114: Body Specifications | B114: Body chambers | C114: Select Option
A115: Body Specifications | B115: Body chambers | C115: None | D115: 0
A116: Body Specifications | B116: Body chambers | C116: Weight reducing chambers (only with top) | D116: 60
A117: Body Specifications | B117: Top wood | C117: Select Option
A118: Body Specifications | B118: Top wood | C118: None | D118: 0
A119: Body Specifications | B119: Top wood | C119: White ash 5-9mm | D119: 0
A120: Body Specifications | B120: Top wood | C120: Flame maple 5mm | D120: 165
A121: Body Specifications | B121: Top wood | C121: Quilted maple 5mm | D121: 165
A122: Body Specifications | B122: Top wood | C122: Spalted maple 3mm | D122: 135
A123: Body Specifications | B123: Top wood | C123: Poplar burl 3mm | D123: 135
A124: Body Specifications | B124: Top wood | C124: Walnut | D124: 65
A125: Body Specifications | B125: Top wood | C125: Purpleheart | D125: 65
A126: Body Specifications | B126: Top wood | C126: Other exotic wood (contact for the price) | D126: 0
A127: Body Specifications | B127: Body binding | C127: Select Option
A128: Body Specifications | B128: Body binding | C128: None | D128: 0
A129: Body Specifications | B129: Body binding | C129: Scraped binding | D129: =F129*'Exchange Rate Calculation'!$Q$7 -> 0
A130: Body Specifications | B130: Body binding | C130: Binding 1 ply | D130: 50
A131: Body Specifications | B131: Body binding | C131: Binding 2 ply | D131: 100
A132: Body Specifications | B132: Finish | C132: Select Option
A133: Body Specifications | B133: Finish | C133: Satin open pores | D133: =F133*'Exchange Rate Calculation'!$Q$7 -> 0
A134: Body Specifications | B134: Finish | C134: Oil | D134: 75
A135: Body Specifications | B135: Finish | C135: Gloss (bolt-on) | D135: 135
A136: Body Specifications | B136: Finish | C136: Gloss (set neck) | D136: 200
A137: Body Specifications | B137: Finish | C137: Gloss top (bolt-on) | D137: 50
A138: Body Specifications | B138: Finish | C138: Gloss top (set neck) | D138: 85
A139: Body Specifications | B139: Colour | C139: Select Option
A140: Body Specifications | B140: Colour | C140: Clear | D140: 0
A141: Body Specifications | B141: Colour | C141: Uniform colour | D141: =F141*'Exchange Rate Calculation'!$Q$7 -> 0
A142: Body Specifications | B142: Colour | C142: Burst | D142: 30
A143: Body Specifications | B143: Colour | C143: Painted pores (top) | D143: 35
A144: Body Specifications | B144: Colour | C144: Painted pores (body) | D144: 70
A145: Hardware | B145: Bridge | C145: Select Option | E145: < THESE FOR CONSTANT SCALE
A146: Hardware | B146: Bridge | C146: None | D146: 0
A147: Hardware | B147: Bridge | C147: Hipshot headless | D147: 0
A148: Hardware | B148: Bridge | C148: Other ( contact for price )
A149: Hardware | B149: Bridge Single Sadle system | C149: Select Option | E149: < THESE FOR CONSTANT SCALE AND MULTISCALE
A150: Hardware | B150: Bridge Single Sadle system | C150: None | D150: 0
A151: Hardware | B151: Bridge Single Sadle system | C151: Mera Submarine | D151: 30
A152: Hardware | B152: Bridge Single Sadle system | C152: Other ( contact for price ) | D152: 0
A153: Hardware | B153: Headpiece | C153: Select Option
A154: Hardware | B154: Headpiece | C154: Hipshot Headpiece | D154: 0
A155: Hardware | B155: Headpiece | C155: Mera Droplet | D155: 0
A156: Hardware | B156: Headpiece | C156: Other ( contact for price ) | D156: 0
A157: Electronics | B157: Neck Pickup | C157: Select Option
A158: Electronics | B158: Neck Pickup | C158: None | D158: 0
A159: Electronics | B159: Neck Pickup | C159: ARB | D159: 0
A160: Electronics | B160: Neck Pickup | C160: Fokin pickups | D160: 0
A161: Electronics | B161: Neck Pickup | C161: Dimarzio | D161: 67
A162: Electronics | B162: Neck Pickup | C162: Seymour Duncan | D162: 57
A163: Electronics | B163: Neck Pickup | C163: BKP | D163: 100
A164: Electronics | B164: Neck Pickup | C164: Other ( contact for price ) | D164: 0
A165: Electronics | B165: Middle Pickup | C165: Select Option
A166: Electronics | B166: Middle Pickup | C166: None | D166: 0
A167: Electronics | B167: Middle Pickup | C167: Other ( contact for price ) | D167: 0
A168: Electronics | B168: Bridge Pickup | C168: Select Option
A169: Electronics | B169: Bridge Pickup | C169: None | D169: 0
A170: Electronics | B170: Bridge Pickup | C170: ARB | D170: 0
A171: Electronics | B171: Bridge Pickup | C171: Fokin pickups | D171: 0
A172: Electronics | B172: Bridge Pickup | C172: Dimarzio | D172: 67
A173: Electronics | B173: Bridge Pickup | C173: Seymour Duncan | D173: 57
A174: Electronics | B174: Bridge Pickup | C174: BKP | D174: 100
A175: Electronics | B175: Bridge Pickup | C175: Other ( contact for price ) | D175: 0
A176: Electronics | B176: Pickup Switch | C176: Select Option
A177: Electronics | B177: Pickup Switch | C177: 3-way Toggle Switch | D177: 0
A178: Electronics | B178: Pickup Switch | C178: 3-way Blade Switch | D178: 0
A179: Electronics | B179: Pickup Switch | C179: 5-way Blade Switch | D179: 0
A180: Electronics | B180: Pickup Switch | C180: 5-way Mega Switch | D180: 25
A181: Electronics | B181: Knobs | C181: Select Option
A182: Electronics | B182: Knobs | C182: 1 Volume | D182: 0
A183: Electronics | B183: Knobs | C183: 1 Volume 1 Tone | D183: 0
A184: Electronics | B184: Knobs | C184: 2 Volumes | D184: 0
A185: Electronics | B185: Knobs | C185: 2 Volumes 1 Tone | D185: 0
A186: Electronics | B186: Knobs | C186: 2 Volumes 2 Tones | D186: 0

Sheet Headless Padalka Calculation
B5: Specifications
A6: Part | B6: Description | C6: Choosen option | D6: Cost
A7: General Specifications | B7: General Specifications
A8: General Specifications | B8: Model | C8: =IFERROR(INDEX('Superstrat Option List'!C2:C278,MATCH(#REF!&A8&B8,'Superstrat Option List'!#REF!&'Superstrat Option List'!A2:A278&'Superstrat Option List'!B2:B278,0)),"Select Option") -> Select Option | D8: =IFERROR(INDEX('Headless Option List'!D2:D2508,MATCH(A8&B8&C8,'Headless Option List'!A2:A2508&'Headless Option List'!B2:B2508&'Headless Option List'!C2:C2508,0)),"Please choose option") -> 0
A9: General Specifications | B9: Number of Strings | C9: =IFERROR(INDEX('Superstrat Option List'!C3:C278,MATCH(#REF!&A9&B9,'Superstrat Option List'!#REF!&'Superstrat Option List'!A3:A278&'Superstrat Option List'!B3:B278,0)),"Select Option") -> Select Option | D9: =IFERROR(INDEX('Headless Option List'!D3:D2509,MATCH(A9&B9&C9,'Headless Option List'!A3:A2509&'Headless Option List'!B3:B2509&'Headless Option List'!C3:C2509,0)),"Please choose option") -> 0
A10: General Specifications | B10: Scale Length | C10: =IFERROR(INDEX('Superstrat Option List'!C4:C278,MATCH(#REF!&A10&B10,'Superstrat Option List'!#REF!&'Superstrat Option List'!A4:A278&'Superstrat Option List'!B4:B278,0)),"Select Option") -> Select Option | D10: =IFERROR(INDEX('Headless Option List'!D4:D2510,MATCH(A10&B10&C10,'Headless Option List'!A4:A2510&'Headless Option List'!B4:B2510&'Headless Option List'!C4:C2510,0)),"Please choose option") -> 0
A11: General Specifications | B11: Neck Joint Construction | C11: =IFERROR(INDEX('Superstrat Option List'!C6:C278,MATCH(#REF!&A11&B11,'Superstrat Option List'!#REF!&'Superstrat Option List'!A6:A278&'Superstrat Option List'!B6:B278,0)),"Select Option") -> Select Option | D11: =IFERROR(INDEX('Headless Option List'!D6:D2512,MATCH(A11&B11&C11,'Headless Option List'!A6:A2512&'Headless Option List'!B6:B2512&'Headless Option List'!C6:C2512,0)),"Please choose option") -> 0
B12: Neck Specifications
A13: Neck Specifications | B13: Number of frets | C13: =IFERROR(INDEX('Superstrat Option List'!C7:C278,MATCH(#REF!&A13&B13,'Superstrat Option List'!#REF!&'Superstrat Option List'!A7:A278&'Superstrat Option List'!B7:B278,0)),"Select Option") -> Select Option | D13: =IFERROR(INDEX('Headless Option List'!D9:D2515,MATCH(A13&B13&C13,'Headless Option List'!A9:A2515&'Headless Option List'!B9:B2515&'Headless Option List'!C9:C2515,0)),"Please choose option") -> 0
A14: Neck Specifications | B14: Fretwire | C14: =IFERROR(INDEX('Superstrat Option List'!C7:C278,MATCH(#REF!&A14&B14,'Superstrat Option List'!#REF!&'Superstrat Option List'!A7:A278&'Superstrat Option List'!B7:B278,0)),"Select Option") -> Select Option | D14: =IFERROR(INDEX('Headless Option List'!D10:D2516,MATCH(A14&B14&C14,'Headless Option List'!A10:A2516&'Headless Option List'!B10:B2516&'Headless Option List'!C10:C2516,0)),"Please choose option") -> 0
A15: Neck Specifications | B15: Neck pieces | C15: =IFERROR(INDEX('Superstrat Option List'!C7:C278,MATCH(#REF!&A15&B15,'Superstrat Option List'!#REF!&'Superstrat Option List'!A7:A278&'Superstrat Option List'!B7:B278,0)),"Select Option") -> Select Option | D15: =IFERROR(INDEX('Headless Option List'!D10:D2517,MATCH(A15&B15&C15,'Headless Option List'!A10:A2517&'Headless Option List'!B10:B2517&'Headless Option List'!C10:C2517,0)),"Please choose option") -> 0
B16: Neck wood
B17: Select option below for 1 piece neck
A18: Neck Specifications | B18: 1 Piece Neck Wood | C18: =IFERROR(INDEX('Superstrat Option List'!C10:C281,MATCH(#REF!&A18&B18,'Superstrat Option List'!#REF!&'Superstrat Option List'!A10:A281&'Superstrat Option List'!B10:B281,0)),"Select Option") -> Select Option | D18: =IFERROR(INDEX('Superstrat Option List'!E14:E1941,MATCH(A18&$B$16&B18&C18,'Superstrat Option List'!A14:A1941&'Superstrat Option List'!B14:B1941&'Superstrat Option List'!C14:C1941&'Superstrat Option List'!D14:D1941,0)),"Please choose option") -> 0
B19: Select options below for Multi-piece neck
A20: Neck Specifications | B20: Multi-piece Neck Base Wood | C20: =IFERROR(INDEX('Superstrat Option List'!C12:C283,MATCH(#REF!&A20&B20,'Superstrat Option List'!#REF!&'Superstrat Option List'!A12:A283&'Superstrat Option List'!B12:B283,0)),"Select Option") -> Select Option | D20: =IFERROR(INDEX('Superstrat Option List'!E16:E1943,MATCH(A20&$B$16&B20&C20,'Superstrat Option List'!A16:A1943&'Superstrat Option List'!B16:B1943&'Superstrat Option List'!C16:C1943&'Superstrat Option List'!D16:D1943,0)),"Please choose option") -> 0
A21: Neck Specifications | B21: Multi-piece Neck Thins Wood | C21: =IFERROR(INDEX('Superstrat Option List'!C12:C284,MATCH(#REF!&A21&B21,'Superstrat Option List'!#REF!&'Superstrat Option List'!A12:A284&'Superstrat Option List'!B12:B284,0)),"Select Option") -> Select Option | D21: =IFERROR(INDEX('Superstrat Option List'!E17:E1944,MATCH(A21&$B$16&B21&C21,'Superstrat Option List'!A17:A1944&'Superstrat Option List'!B17:B1944&'Superstrat Option List'!C17:C1944&'Superstrat Option List'!D17:D1944,0)),"Please choose option") -> 0
A22: Neck Specifications | B22: Multi-piece Neck Thins Wood | C22: =IFERROR(INDEX('Superstrat Option List'!C13:C285,MATCH(#REF!&A22&B22,'Superstrat Option List'!#REF!&'Superstrat Option List'!A13:A285&'Superstrat Option List'!B13:B285,0)),"Select Option") -> Select Option | D22: =IFERROR(INDEX('Superstrat Option List'!E18:E1945,MATCH(A22&$B$16&B22&C22,'Superstrat Option List'!A18:A1945&'Superstrat Option List'!B18:B1945&'Superstrat Option List'!C18:C1945&'Superstrat Option List'!D18:D1945,0)),"Please choose option") -> 0
A23: Neck Specifications | B23: Multi-piece Neck Thins Wood | C23: =IFERROR(INDEX('Superstrat Option List'!C14:C286,MATCH(#REF!&A23&B23,'Superstrat Option List'!#REF!&'Superstrat Option List'!A14:A286&'Superstrat Option List'!B14:B286,0)),"Select Option") -> Select Option | D23: =IFERROR(INDEX('Superstrat Option List'!E19:E1946,MATCH(A23&$B$16&B23&C23,'Superstrat Option List'!A19:A1946&'Superstrat Option List'!B19:B1946&'Superstrat Option List'!C19:C1946&'Superstrat Option List'!D19:D1946,0)),"Please choose option") -> 0
B24: Fretboard Specifications
A25: Neck Specifications | B25: Fretboard wood | C25: =IFERROR(INDEX('Superstrat Option List'!C29:C278,MATCH(#REF!&A25&B25,'Superstrat Option List'!#REF!&'Superstrat Option List'!A29:A278&'Superstrat Option List'!B29:B278,0)),"Select Option") -> Select Option | D25: =IFERROR(INDEX('Headless Option List'!D21:D2530,MATCH(A25&B25&C25,'Headless Option List'!A21:A2530&'Headless Option List'!B21:B2530&'Headless Option List'!C21:C2530,0)),"Please choose option") -> 0
A26: Neck Specifications | B26: Fretboard radius | C26: =IFERROR(INDEX('Superstrat Option List'!C29:C278,MATCH(#REF!&A26&B26,'Superstrat Option List'!#REF!&'Superstrat Option List'!A29:A278&'Superstrat Option List'!B29:B278,0)),"Select Option") -> Select Option | D26: =IFERROR(INDEX('Headless Option List'!D22:D2531,MATCH(A26&B26&C26,'Headless Option List'!A22:A2531&'Headless Option List'!B22:B2531&'Headless Option List'!C22:C2531,0)),"Please choose option") -> 0
A27: Neck Specifications | B27: Fretboard binding | C27: =IFERROR(INDEX('Superstrat Option List'!C30:C278,MATCH(#REF!&A27&B27,'Superstrat Option List'!#REF!&'Superstrat Option List'!A30:A278&'Superstrat Option List'!B30:B278,0)),"Select Option") -> Select Option | D27: =IFERROR(INDEX('Headless Option List'!D23:D2533,MATCH(A27&B27&C27,'Headless Option List'!A23:A2533&'Headless Option List'!B23:B2533&'Headless Option List'!C23:C2533,0)),"Please choose option") -> 0
A28: Neck Specifications | B28: Fretboard inlays | C28: =IFERROR(INDEX('Superstrat Option List'!C30:C278,MATCH(#REF!&A28&B28,'Superstrat Option List'!#REF!&'Superstrat Option List'!A30:A278&'Superstrat Option List'!B30:B278,0)),"Select Option") -> Select Option | D28: =IFERROR(INDEX('Headless Option List'!D24:D2534,MATCH(A28&B28&C28,'Headless Option List'!A24:A2534&'Headless Option List'!B24:B2534&'Headless Option List'!C24:C2534,0)),"Please choose option") -> 0
A29: Neck Specifications | B29: Side markers | C29: =IFERROR(INDEX('Superstrat Option List'!C31:C278,MATCH(#REF!&A29&B29,'Superstrat Option List'!#REF!&'Superstrat Option List'!A31:A278&'Superstrat Option List'!B31:B278,0)),"Select Option") -> Select Option | D29: =IFERROR(INDEX('Headless Option List'!D25:D2535,MATCH(A29&B29&C29,'Headless Option List'!A25:A2535&'Headless Option List'!B25:B2535&'Headless Option List'!C25:C2535,0)),"Please choose option") -> 0
B30: Body Specifications
A31: Body Specifications | B31: Body wood | C31: =IFERROR(INDEX('Superstrat Option List'!C39:C278,MATCH(#REF!&A31&B31,'Superstrat Option List'!#REF!&'Superstrat Option List'!A39:A278&'Superstrat Option List'!B39:B278,0)),"Select Option") -> Select Option | D31: =IFERROR(INDEX('Headless Option List'!D28:D2539,MATCH(A31&B31&C31,'Headless Option List'!A28:A2539&'Headless Option List'!B28:B2539&'Headless Option List'!C28:C2539,0)),"Please choose option") -> 0
A32: Body Specifications | B32: Front body carvings | C32: =IFERROR(INDEX('Superstrat Option List'!C41:C278,MATCH(#REF!&A32&B32,'Superstrat Option List'!#REF!&'Superstrat Option List'!A41:A278&'Superstrat Option List'!B41:B278,0)),"Select Option") -> Select Option | D32: =IFERROR(INDEX('Headless Option List'!D29:D2540,MATCH(A32&B32&C32,'Headless Option List'!A29:A2540&'Headless Option List'!B29:B2540&'Headless Option List'!C29:C2540,0)),"Please choose option") -> 0
A33: Body Specifications | B33: Body chambers | C33: =IFERROR(INDEX('Superstrat Option List'!C43:C278,MATCH(#REF!&A33&B33,'Superstrat Option List'!#REF!&'Superstrat Option List'!A43:A278&'Superstrat Option List'!B43:B278,0)),"Select Option") -> Select Option | D33: =IFERROR(INDEX('Headless Option List'!D31:D2542,MATCH(A33&B33&C33,'Headless Option List'!A31:A2542&'Headless Option List'!B31:B2542&'Headless Option List'!C31:C2542,0)),"Please choose option") -> 0
A34: Body Specifications | B34: Top wood | C34: =IFERROR(INDEX('Superstrat Option List'!C44:C278,MATCH(#REF!&A34&B34,'Superstrat Option List'!#REF!&'Superstrat Option List'!A44:A278&'Superstrat Option List'!B44:B278,0)),"Select Option") -> Select Option | D34: =IFERROR(INDEX('Headless Option List'!D32:D2543,MATCH(A34&B34&C34,'Headless Option List'!A32:A2543&'Headless Option List'!B32:B2543&'Headless Option List'!C32:C2543,0)),"Please choose option") -> 0
A35: Body Specifications | B35: Body binding | C35: =IFERROR(INDEX('Superstrat Option List'!C45:C278,MATCH(#REF!&A35&B35,'Superstrat Option List'!#REF!&'Superstrat Option List'!A45:A278&'Superstrat Option List'!B45:B278,0)),"Select Option") -> Select Option | D35: =IFERROR(INDEX('Headless Option List'!D34:D2545,MATCH(A35&B35&C35,'Headless Option List'!A34:A2545&'Headless Option List'!B34:B2545&'Headless Option List'!C34:C2545,0)),"Please choose option") -> 0
A36: Body Specifications | B36: Finish | C36: =IFERROR(INDEX('Superstrat Option List'!C46:C278,MATCH(#REF!&A36&B36,'Superstrat Option List'!#REF!&'Superstrat Option List'!A46:A278&'Superstrat Option List'!B46:B278,0)),"Select Option") -> Select Option | D36: =IFERROR(INDEX('Headless Option List'!D35:D2546,MATCH(A36&B36&C36,'Headless Option List'!A35:A2546&'Headless Option List'!B35:B2546&'Headless Option List'!C35:C2546,0)),"Please choose option") -> 0
A37: Body Specifications | B37: Colour | C37: =IFERROR(INDEX('Superstrat Option List'!C48:C278,MATCH(#REF!&A37&B37,'Superstrat Option List'!#REF!&'Superstrat Option List'!A48:A278&'Superstrat Option List'!B48:B278,0)),"Select Option") -> Select Option | D37: =IFERROR(INDEX('Headless Option List'!D37:D2548,MATCH(A37&B37&C37,'Headless Option List'!A37:A2548&'Headless Option List'!B37:B2548&'Headless Option List'!C37:C2548,0)),"Please choose option") -> 0
B38: Hardware
B39: Select Option below for Standard scale
A40: Hardware | B40: Bridge | C40: Select Option | D40: =IFERROR(INDEX('Headless Option List'!D43:D2554,MATCH(A40&B40&C40,'Headless Option List'!A43:A2554&'Headless Option List'!B43:B2554&'Headless Option List'!C43:C2554,0)),"Please choose option") -> 0
B41: Select Option below for Multi-scale or Standard scale
A42: Hardware | B42: Bridge Single Sadle system | C42: Select Option | D42: =IFERROR(F42*C9,"$0,00") -> $0,00 | F42: =IFERROR(INDEX('Headless Option List'!D45:D2556,MATCH(A42&B42&C42,'Headless Option List'!A45:A2556&'Headless Option List'!B45:B2556&'Headless Option List'!C45:C2556,0)),"Please choose option") -> 0
A43: Hardware | B43: Headpiece | C43: =IFERROR(INDEX('Superstrat Option List'!C53:C278,MATCH(#REF!&A43&B43,'Superstrat Option List'!#REF!&'Superstrat Option List'!A53:A278&'Superstrat Option List'!B53:B278,0)),"Select Option") -> Select Option | D43: =INDEX('Headless Option List'!D2:D186,MATCH('Headless Padalka Calculation'!A43&'Headless Padalka Calculation'!B43&'Headless Padalka Calculation'!C43,'Headless Option List'!A2:A186&'Headless Option List'!B2:B186&'Headless Option List'!C2:C186,0)) -> 0
B44: Electronics
A45: Electronics | B45: Neck Pickup | C45: =IFERROR(INDEX('Superstrat Option List'!C61:C278,MATCH(#REF!&A45&B45,'Superstrat Option List'!#REF!&'Superstrat Option List'!A61:A278&'Superstrat Option List'!B61:B278,0)),"Select Option") -> Select Option | D45: =IFERROR(INDEX('Headless Option List'!D56:D2562,MATCH(A45&B45&C45,'Headless Option List'!A56:A2562&'Headless Option List'!B56:B2562&'Headless Option List'!C56:C2562,0)),"Please choose option") -> 0
A46: Electronics | B46: Describe Pickup Model
A47: Electronics | B47: Middle Pickup | C47: =IFERROR(INDEX('Superstrat Option List'!C63:C278,MATCH(#REF!&A47&B47,'Superstrat Option List'!#REF!&'Superstrat Option List'!A63:A278&'Superstrat Option List'!B63:B278,0)),"Select Option") -> Select Option | D47: =IFERROR(INDEX('Headless Option List'!D58:D2564,MATCH(A47&B47&C47,'Headless Option List'!A58:A2564&'Headless Option List'!B58:B2564&'Headless Option List'!C58:C2564,0)),"Please choose option") -> 0
A48: Electronics | B48: Describe Pickup Model
A49: Electronics | B49: Bridge Pickup | C49: =IFERROR(INDEX('Superstrat Option List'!C67:C278,MATCH(#REF!&A49&B49,'Superstrat Option List'!#REF!&'Superstrat Option List'!A67:A278&'Superstrat Option List'!B67:B278,0)),"Select Option") -> Select Option | D49: =IFERROR(INDEX('Headless Option List'!D59:D2566,MATCH(A49&B49&C49,'Headless Option List'!A59:A2566&'Headless Option List'!B59:B2566&'Headless Option List'!C59:C2566,0)),"Please choose option") -> 0
A50: Electronics | B50: Describe Pickup Model
A51: Electronics | B51: Pickup Switch | C51: =IFERROR(INDEX('Superstrat Option List'!C75:C278,MATCH(#REF!&A51&B51,'Superstrat Option List'!#REF!&'Superstrat Option List'!A75:A278&'Superstrat Option List'!B75:B278,0)),"Select Option") -> Select Option | D51: =IFERROR(INDEX('Headless Option List'!D61:D2568,MATCH(A51&B51&C51,'Headless Option List'!A61:A2568&'Headless Option List'!B61:B2568&'Headless Option List'!C61:C2568,0)),"Please choose option") -> 0
A52: Electronics | B52: Knobs | C52: =IFERROR(INDEX('Superstrat Option List'!C78:C278,MATCH(#REF!&A52&B52,'Superstrat Option List'!#REF!&'Superstrat Option List'!A78:A278&'Superstrat Option List'!B78:B278,0)),"Select Option") -> Select Option | D52: =IFERROR(INDEX('Headless Option List'!D67:D2569,MATCH(A52&B52&C52,'Headless Option List'!A67:A2569&'Headless Option List'!B67:B2569&'Headless Option List'!C67:C2569,0)),"Please choose option") -> 0
B53: Total | D53: =SUM(D8:D52) -> 0
B54: Name:
B55: Country :
B56: Adress :
B57: E-mail :
B58: Phone Number:
B59: Body & Headstock Shapes available in this models
B60: Neptune Model
B61: Saturn Model

Sheet Strathing Option List (hidden)
A1: Group | B1: Description | C1: Options | D1: Rate $ | E1: 2nd Rate | F1: Russian Rates
A2: General Specifications | B2: Model | C2: Select Option | G2: Rate with formula, only change Russian rate
A3: General Specifications | B3: Model | C3: Earth | D3: =F3*'Exchange Rate Calculation'!$Q$7 -> 833.33 | F3: 50000
A4: General Specifications | B4: Number of strings | C4: Select Option
A5: General Specifications | B5: Number of strings | C5: 6 | D5: 0
A6: General Specifications | B6: Scale length | C6: Select Option
A7: General Specifications | B7: Scale length | C7: 24,75" | D7: 0
A8: General Specifications | B8: Scale length | C8: 25,5" | D8: 0
A9: General Specifications | B9: Scale length | C9: 26" | D9: 0
A10: General Specifications | B10: Scale length | C10: 26,5" | D10: 0
A11: General Specifications | B11: Scale length | C11: 27" | D11: 0
A12: General Specifications | B12: Scale length | C12: 28" | D12: 0
A13: General Specifications | B13: Neck joint construction | C13: Select Option
A14: General Specifications | B14: Neck joint construction | C14: Bolt-on | D14: 0
A15: Neck Specifications | B15: Number of frets | C15: Select Option
A16: Neck Specifications | B16: Number of frets | C16: 22 | D16: 0
A17: Neck Specifications | B17: Number of frets | C17: 24 | D17: 0
A18: Neck Specifications | B18: Fretwire | C18: Select Option
A19: Neck Specifications | B19: Fretwire | C19: Jescar stainless steel 2,3x1,4mm | D19: 25
A20: Neck Specifications | B20: Fretwire | C20: Jescar stainless steel 2,5x1,3mm | D20: 25
A21: Neck Specifications | B21: Fretwire | C21: Evo Gold 2,3x1,4mm | D21: 30
A22: Neck Specifications | B22: Fretwire | C22: Jescar nickel-silver 2,3x1,4mm | D22: 10
A23: Neck Specifications | B23: Fretwire | C23: Jescar nickel-silver 2,5x1,3mm | D23: 10
A24: Neck Specifications | B24: Neck pieces | C24: Select Option
A25: Neck Specifications | B25: Neck pieces | C25: 1 | D25: 0
A26: Neck Specifications | B26: Neck pieces | C26: 3 | D26: =F26*'Exchange Rate Calculation'!$Q$7 -> 24.9999 | F26: 1500
A27: Neck Specifications | B27: Neck pieces | C27: 5 | D27: =F27*'Exchange Rate Calculation'!$Q$7 -> 33.3332 | F27: 2000
A28: Neck Specifications | B28: Neck pieces | C28: 7 | D28: =F28*'Exchange Rate Calculation'!$Q$7 -> 49.9998 | F28: 3000
A29: Neck Specifications | B29: Neck pieces | C29: 9 | D29: =F29*'Exchange Rate Calculation'!$Q$7 -> 66.6664 | F29: 4000
A30: Neck Specifications | B30: Neck pieces | C30: 11 | D30: =F30*'Exchange Rate Calculation'!$Q$7 -> 83.333 | F30: 5000
A31: Neck Specifications | B31: Neck wood | C31: Select Option
A32: Neck Specifications | B32: Neck wood | C32: 1 Piece Neck Wood | D32: none | E32: 0
A33: Neck Specifications | B33: Neck wood | C33: 1 Piece Neck Wood | D33: Hard maple | E33: =F33*'Exchange Rate Calculation'!$Q$7 -> 49.9998 | F33: 3000
A34: Neck Specifications | B34: Neck wood | C34: 1 Piece Neck Wood | D34: Curly maple | E34: 120
A35: Neck Specifications | B35: Neck wood | C35: 1 Piece Neck Wood | D35: African mahogany | E35: 50
A36: Neck Specifications | B36: Neck wood | C36: 1 Piece Neck Wood | D36: Bird`s eye maple | E36: 140
A37: Neck Specifications | B37: Neck wood | C37: 1 Piece Neck Wood | D37: Rosewood | E37: 150
A38: Neck Specifications | B38: Neck wood | C38: 1 Piece Neck Wood | D38: Padouk | E38: 50
A39: Neck Specifications | B39: Neck wood | C39: 1 Piece Neck Wood | D39: Other ( contact for price ) | E39: 0
A40: Neck Specifications | B40: Neck wood | C40: Select Option
A41: Neck Specifications | B41: Neck wood | C41: Multi-piece Neck Base Wood | D41: none | E41: 0
A42: Neck Specifications | B42: Neck wood | C42: Multi-piece Neck Base Wood | D42: Hard maple | E42: 40
A43: Neck Specifications | B43: Neck wood | C43: Multi-piece Neck Base Wood | D43: Curly maple | E43: 100
A44: Neck Specifications | B44: Neck wood | C44: Multi-piece Neck Base Wood | D44: African mahogany | E44: 50
A45: Neck Specifications | B45: Neck wood | C45: Multi-piece Neck Base Wood | D45: Rosewood | E45: 150
A46: Neck Specifications | B46: Neck wood | C46: Multi-piece Neck Base Wood | D46: Padouk | E46: 50
A47: Neck Specifications | B47: Neck wood | C47: Multi-piece Neck Base Wood | D47: Sapele | E47: 50
A48: Neck Specifications | B48: Neck wood | C48: Multi-piece Neck Base Wood | D48: Limba | E48: 50
A49: Neck Specifications | B49: Neck wood | C49: Multi-piece Neck Base Wood | D49: Walnut | E49: 70
A50: Neck Specifications | B50: Neck wood | C50: Multi-piece Neck Base Wood | D50: Wenge | E50: 70
A51: Neck Specifications | B51: Neck wood | C51: Multi-piece Neck Base Wood | D51: Purpleheart | E51: 70
A52: Neck Specifications | B52: Neck wood | C52: Multi-piece Neck Base Wood | D52: Other ( contact for price ) | E52: 0
A53: Neck Specifications | B53: Neck wood | C53: Select Option
A54: Neck Specifications | B54: Neck wood | C54: Multi-piece Neck Thins Wood | D54: none | E54: 0
A55: Neck Specifications | B55: Neck wood | C55: Multi-piece Neck Thins Wood | D55: Hard maple | E55: 20
A56: Neck Specifications | B56: Neck wood | C56: Multi-piece Neck Thins Wood | D56: Padouk | E56: 25
A57: Neck Specifications | B57: Neck wood | C57: Multi-piece Neck Thins Wood | D57: African mahogany | E57: 25
A58: Neck Specifications | B58: Neck wood | C58: Multi-piece Neck Thins Wood | D58: Bubinga | E58: 25
A59: Neck Specifications | B59: Neck wood | C59: Multi-piece Neck Thins Wood | D59: Sapele | E59: 25
A60: Neck Specifications | B60: Neck wood | C60: Multi-piece Neck Thins Wood | D60: Limba | E60: 35
A61: Neck Specifications | B61: Neck wood | C61: Multi-piece Neck Thins Wood | D61: Walnut | E61: 35
A62: Neck Specifications | B62: Neck wood | C62: Multi-piece Neck Thins Wood | D62: Wenge | E62: 35
A63: Neck Specifications | B63: Neck wood | C63: Multi-piece Neck Thins Wood | D63: Purpleheart | E63: 35
A64: Neck Specifications | B64: Neck wood | C64: Multi-piece Neck Thins Wood | D64: Other ( contact for price ) | E64: 0
A65: Neck Specifications | B65: Fretboard wood | C65: Select Option
A66: Neck Specifications | B66: Fretboard wood | C66: Rosewood | D66: 40
A67: Neck Specifications | B67: Fretboard wood | C67: Cocobolo | D67: 80
A68: Neck Specifications | B68: Fretboard wood | C68: Ebony | D68: 65
A69: Neck Specifications | B69: Fretboard wood | C69: Macassar | D69: 65
A70: Neck Specifications | B70: Fretboard wood | C70: Hard maple | D70: 10
A71: Neck Specifications | B71: Fretboard wood | C71: Bird`s eye maple | D71: 100
A72: Neck Specifications | B72: Fretboard wood | C72: Curly maple | D72: 80
A73: Neck Specifications | B73: Fretboard wood | C73: Purpleheart | D73: 40
A74: Neck Specifications | B74: Fretboard wood | C74: Other exotic wood (contact for the price) | D74: 0
A75: Neck Specifications | B75: Fretboard radius | C75: Select Option
A76: Neck Specifications | B76: Fretboard radius | C76: 10" | D76: 0
A77: Neck Specifications | B77: Fretboard radius | C77: 12" | D77: 0
A78: Neck Specifications | B78: Fretboard radius | C78: 16" | D78: 0
A79: Neck Specifications | B79: Fretboard radius | C79: 20" | D79: 0
A80: Neck Specifications | B80: Fretboard radius | C80: Compound radius | D80: =F80*'Exchange Rate Calculation'!$Q$7 -> 116.6662 | F80: 7000
A81: Neck Specifications | B81: Headstock shape | C81: Select Option
A82: Neck Specifications | B82: Headstock shape | C82: F-1 | D82: 0
A83: Neck Specifications | B83: Fretboard binding | C83: Select Option
A84: Neck Specifications | B84: Fretboard binding | C84: None | D84: 0
A85: Neck Specifications | B85: Fretboard binding | C85: Binding 1 ply | D85: =F85*'Exchange Rate Calculation'!$Q$7 -> 46.66648 | F85: 2800
A86: Neck Specifications | B86: Fretboard binding | C86: Binding 3 ply | D86: =F86*'Exchange Rate Calculation'!$Q$7 -> 78.33302 | F86: 4700
A87: Neck Specifications | B87: Fretboard inlays | C87: Select Option
A88: Neck Specifications | B88: Fretboard inlays | C88: None | D88: 0
A89: Neck Specifications | B89: Fretboard inlays | C89: MOP dots 4 mm | D89: 13
A90: Neck Specifications | B90: Fretboard inlays | C90: MOP dots 6mm | D90: 18
A91: Neck Specifications | B91: Fretboard inlays | C91: MOP triangles 5mm | D91: =F91*'Exchange Rate Calculation'!$Q$7 -> 38.33318 | F91: 2300
A92: Neck Specifications | B92: Fretboard inlays | C92: Aluminium rings | D92: =F92*'Exchange Rate Calculation'!$Q$7 -> 41.6665 | F92: 2500
A93: Neck Specifications | B93: Fretboard inlays | C93: Custom design "simple" | D93: =F93*'Exchange Rate Calculation'!$Q$7 -> 58.3331 | F93: 3500
A94: Neck Specifications | B94: Fretboard inlays | C94: Custom design "medium" | D94: =F94*'Exchange Rate Calculation'!$Q$7 -> 108.3329 | F94: 6500
A95: Neck Specifications | B95: Fretboard inlays | C95: Custom design "complicated" | D95: =F95*'Exchange Rate Calculation'!$Q$7 -> 153.33272 | F95: 9200
A96: Neck Specifications | B96: Side markers | C96: Select Option
A97: Neck Specifications | B97: Side markers | C97: None | D97: 0
A98: Neck Specifications | B98: Side markers | C98: Plastic dots 2mm | D98: 0
A99: Neck Specifications | B99: Side markers | C99: MOP dots 2mm | D99: 5
A100: Neck Specifications | B100: Side markers | C100: Luminlay 3mm | D100: 25
A101: Neck Specifications | B101: Side markers | C101: Plastic blocks | D101: =F101*'Exchange Rate Calculation'!$Q$7 -> 49.9998 | F101: 3000
A102: Neck Specifications | B102: Side markers | C102: MOP blocks | D102: =F102*'Exchange Rate Calculation'!$Q$7 -> 54.99978 | F102: 3300
A103: Body Specifications | B103: Body wood | C103: Select Option
A104: Body Specifications | B104: Body wood | C104: Alder | D104: =F104*'Exchange Rate Calculation'!$Q$7 -> 49.9998 | F104: 3000
A105: Body Specifications | B105: Body wood | C105: White ash | D105: =F105*'Exchange Rate Calculation'!$Q$7 -> 49.9998 | F105: 3000
A106: Body Specifications | B106: Body wood | C106: Swamp ash | D106: 260
A107: Body Specifications | B107: Body wood | C107: African mahogany | D107: 100
A108: Body Specifications | B108: Body wood | C108: Basswood | D108: 45
A109: Body Specifications | B109: Body wood | C109: Limba | D109: 250
A110: Body Specifications | B110: Body wood | C110: Sapele | D110: 100
A111: Body Specifications | B111: Front body carvings | C111: Select Option
A112: Body Specifications | B112: Front body carvings | C112: Arm bevel | D112: 15
A113: Body Specifications | B113: Body chambers | C113: Select Option
A114: Body Specifications | B114: Body chambers | C114: None | D114: 0
A115: Body Specifications | B115: Body chambers | C115: Weight reducing chambers (only with top) | D115: 60
A116: Body Specifications | B116: Top wood | C116: Select Option
A117: Body Specifications | B117: Top wood | C117: None | D117: 0
A118: Body Specifications | B118: Top wood | C118: White ash 5-9mm | D118: =F118*'Exchange Rate Calculation'!$Q$7 -> 66.6664 | F118: 4000
A119: Body Specifications | B119: Top wood | C119: Flame maple 5mm | D119: 155
A120: Body Specifications | B120: Top wood | C120: Quilted maple 5mm | D120: 185
A121: Body Specifications | B121: Top wood | C121: Spalted maple 3mm | D121: 80
A122: Body Specifications | B122: Top wood | C122: Poplar burl 3mm | D122: 80
A123: Body Specifications | B123: Top wood | C123: Walnut | D123: 80
A124: Body Specifications | B124: Top wood | C124: Purpleheart | D124: 100
A125: Body Specifications | B125: Top wood | C125: Other exotic wood (contact for the price) | D125: 0
A126: Body Specifications | B126: Body binding | C126: Select Option
A127: Body Specifications | B127: Body binding | C127: None | D127: 0
A128: Body Specifications | B128: Body binding | C128: Scraped binding | D128: =F128*'Exchange Rate Calculation'!$Q$7 -> 8.3333 | F128: 500
A129: Body Specifications | B129: Body binding | C129: Binding 1 ply | D129: =F129*'Exchange Rate Calculation'!$Q$7 -> 49.9998 | F129: 3000
A130: Body Specifications | B130: Body binding | C130: Binding 3 ply | D130: =F130*'Exchange Rate Calculation'!$Q$7 -> 91.6663 | F130: 5500
A131: Body Specifications | B131: Finish | C131: Select Option
A132: Body Specifications | B132: Finish | C132: Satin open pores | D132: =F132*'Exchange Rate Calculation'!$Q$7 -> 8.3333 | F132: 500
A133: Body Specifications | B133: Finish | C133: Oil | D133: =F133*'Exchange Rate Calculation'!$Q$7 -> 83.333 | F133: 5000
A134: Body Specifications | B134: Finish | C134: Gloss (bolt-on) | D134: =F134*'Exchange Rate Calculation'!$Q$7 -> 124.9995 | F134: 7500
A135: Body Specifications | B135: Finish | C135: Gloss top (bolt-on) | D135: =F135*'Exchange Rate Calculation'!$Q$7 -> 49.9998 | F135: 3000
A136: Body Specifications | B136: Colour | C136: Select Option
A137: Body Specifications | B137: Colour | C137: Clear | D137: 0
A138: Body Specifications | B138: Colour | C138: Uniform colour | D138: =F138*'Exchange Rate Calculation'!$Q$7 -> 16.6666 | F138: 1000
A139: Body Specifications | B139: Colour | C139: Burst | D139: =F139*'Exchange Rate Calculation'!$Q$7 -> 33.3332 | F139: 2000
A140: Body Specifications | B140: Colour | C140: Painted pores (top and headstock) | D140: =F140*'Exchange Rate Calculation'!$Q$7 -> 33.3332 | F140: 2000
A141: Body Specifications | B141: Colour | C141: Painted pores (body and headstock) | D141: =F141*'Exchange Rate Calculation'!$Q$7 -> 66.6664 | F141: 4000
A142: Hardware | B142: Bridge | C142: Select Option
A143: Hardware | B143: Bridge | C143: 6str. Hipshot hardtail Black | D143: 85
A144: Hardware | B144: Bridge | C144: 6str.Hipshot hardtail Chrome | D144: 85
A145: Hardware | B145: Bridge | C145: 6str.Hipshot hardtail Gold | D145: 110.5
A146: Hardware | B146: Bridge | C146: 6str. Hipshot US Contour Tremolo Black | D146: 103
A147: Hardware | B147: Bridge | C147: 6str. Hipshot US Contour Tremolo Chrome | D147: 103
A148: Hardware | B148: Bridge | C148: 6str. Hipshot US Contour Tremolo Gold | D148: 133
A149: Hardware | B149: Bridge | C149: 6str.Floyd Rose Chrome | D149: 165
A150: Hardware | B150: Bridge | C150: 6str.Floyd Rose Black | D150: 180
A151: Hardware | B151: Bridge | C151: 6str.Floyd Rose Gold | D151: 195
A152: Hardware | B152: Bridge | C152: Other ( contact for price ) | D152: 0
A153: Hardware | B153: Tuning machines | C153: Select Option
A154: Hardware | B154: Tuning machines | C154: Hipshot Griplock chrome | D154: 11
A155: Hardware | B155: Tuning machines | C155: Hipshot Griplock black | D155: 12
A156: Hardware | B156: Tuning machines | C156: Hipshot Griplock gold | D156: 13
A157: Hardware | B157: Tuning machines | C157: Gotoh SG381 non-locking Black | D157: 9
A158: Hardware | B158: Tuning machines | C158: Gotoh SG381 non-locking Chrome | D158: 9
A159: Hardware | B159: Tuning machines | C159: Gotoh SG381 non-locking Gold | D159: 11.7
A160: Electronics | B160: Neck Pickup | C160: Select Option
A161: Electronics | B161: Neck Pickup | C161: None | D161: 0
A162: Electronics | B162: Neck Pickup | C162: ARB Humb | D162: 70
A163: Electronics | B163: Neck Pickup | C163: Fokin pickups Humb | D163: 65
A164: Electronics | B164: Neck Pickup | C164: Dimarzio Humb | D164: 110
A165: Electronics | B165: Neck Pickup | C165: Seymour duncan Humb | D165: 90
A166: Electronics | B166: Neck Pickup | C166: BKP Humb | D166: 125
A167: Electronics | B167: Neck Pickup | C167: Fishman Fluence Modern | D167: 175
A168: Electronics | B168: Neck Pickup | C168: ARB Singlecoil | D168: 60
A169: Electronics | B169: Neck Pickup | C169: Fokin pickups Singlecoil | D169: 50
A170: Electronics | B170: Neck Pickup | C170: Dimarzio Singlecoil | D170: 100
A171: Electronics | B171: Neck Pickup | C171: Seymour duncan Singlecoil | D171: 85
A172: Electronics | B172: Neck Pickup | C172: BKP Singlecoil | D172: 95
A173: Electronics | B173: Neck Pickup | C173: Other ( contact for price ) | D173: 0
A174: Electronics | B174: Middle Pickup | C174: Select Option
A175: Electronics | B175: Middle Pickup | C175: None | D175: 0
A176: Electronics | B176: Middle Pickup | C176: ARB Singlecoil | D176: 60
A177: Electronics | B177: Middle Pickup | C177: Fokin pickups Singlecoil | D177: 50
A178: Electronics | B178: Middle Pickup | C178: Dimarzio Singlecoil | D178: 100
A179: Electronics | B179: Middle Pickup | C179: Seymour duncan Singlecoil | D179: 85
A180: Electronics | B180: Middle Pickup | C180: BKP Singlecoil | D180: 95
A181: Electronics | B181: Middle Pickup | C181: Other ( contact for price ) | D181: 0
A182: Electronics | B182: Bridge Pickup | C182: Select Option
A183: Electronics | B183: Bridge Pickup | C183: None | D183: 0
A184: Electronics | B184: Bridge Pickup | C184: ARB Humb | D184: 70
A185: Electronics | B185: Bridge Pickup | C185: Fokin pickups Humb | D185: 65
A186: Electronics | B186: Bridge Pickup | C186: Dimarzio Humb | D186: 110
A187: Electronics | B187: Bridge Pickup | C187: Seymour duncan Humb | D187: 90
A188: Electronics | B188: Bridge Pickup | C188: BKP Humb | D188: 125
A189: Electronics | B189: Bridge Pickup | C189: Fishman Fluence Modern | D189: 175
A190: Electronics | B190: Bridge Pickup | C190: ARB Singlecoil | D190: 60
A191: Electronics | B191: Bridge Pickup | C191: Fokin pickups Singlecoil | D191: 50
A192: Electronics | B192: Bridge Pickup | C192: Dimarzio Singlecoil | D192: 100
A193: Electronics | B193: Bridge Pickup | C193: Seymour duncan Singlecoil | D193: 85
A194: Electronics | B194: Bridge Pickup | C194: BKP Singlecoil | D194: 95
A195: Electronics | B195: Bridge Pickup | C195: Other ( contact for price ) | D195: 0
A196: Electronics | B196: Pickup Switch | C196: Select Option
A197: Electronics | B197: Pickup Switch | C197: 3-way Toggle Switch | D197: 0
A198: Electronics | B198: Pickup Switch | C198: 3-way Blade Switch | D198: 0
A199: Electronics | B199: Pickup Switch | C199: 5-way Blade Switch | D199: 0
A200: Electronics | B200: Pickup Switch | C200: 5-way Mega Switch | D200: 30
... 7 more rows

Sheet Earth Padalka Calculation (hidden)
B5: Specifications
A6: Part | B6: Description | C6: Choosen option | D6: Cost
A7: General Specifications | B7: General Specifications
A8: General Specifications | B8: Model | C8: =IFERROR(INDEX('Superstrat Option List'!C2:C278,MATCH(#REF!&A8&B8,'Superstrat Option List'!#REF!&'Superstrat Option List'!A2:A278&'Superstrat Option List'!B2:B278,0)),"Select Option") -> Select Option | D8: =INDEX('Strathing Option List'!D2:D207,MATCH('Earth Padalka Calculation'!A8&'Earth Padalka Calculation'!B8&'Earth Padalka Calculation'!C8,'Strathing Option List'!A2:A207&'Strathing Option List'!B2:B207&'Strathing Option List'!C2:C207,0)) -> 0
A9: General Specifications | B9: Number of Strings | C9: =IFERROR(INDEX('Superstrat Option List'!C3:C278,MATCH(#REF!&A9&B9,'Superstrat Option List'!#REF!&'Superstrat Option List'!A3:A278&'Superstrat Option List'!B3:B278,0)),"Select Option") -> Select Option | D9: =INDEX('Strathing Option List'!D3:D208,MATCH('Earth Padalka Calculation'!A9&'Earth Padalka Calculation'!B9&'Earth Padalka Calculation'!C9,'Strathing Option List'!A3:A208&'Strathing Option List'!B3:B208&'Strathing Option List'!C3:C208,0)) -> 0
A10: General Specifications | B10: Scale Length | C10: =IFERROR(INDEX('Superstrat Option List'!C4:C278,MATCH(#REF!&A10&B10,'Superstrat Option List'!#REF!&'Superstrat Option List'!A4:A278&'Superstrat Option List'!B4:B278,0)),"Select Option") -> Select Option | D10: =INDEX('Strathing Option List'!D4:D209,MATCH('Earth Padalka Calculation'!A10&'Earth Padalka Calculation'!B10&'Earth Padalka Calculation'!C10,'Strathing Option List'!A4:A209&'Strathing Option List'!B4:B209&'Strathing Option List'!C4:C209,0)) -> 0
A11: General Specifications | B11: Neck Joint Construction | C11: =IFERROR(INDEX('Superstrat Option List'!C6:C278,MATCH(#REF!&A11&B11,'Superstrat Option List'!#REF!&'Superstrat Option List'!A6:A278&'Superstrat Option List'!B6:B278,0)),"Select Option") -> Select Option | D11: =INDEX('Strathing Option List'!D6:D211,MATCH('Earth Padalka Calculation'!A11&'Earth Padalka Calculation'!B11&'Earth Padalka Calculation'!C11,'Strathing Option List'!A6:A211&'Strathing Option List'!B6:B211&'Strathing Option List'!C6:C211,0)) -> 0
B12: Neck Specifications
A13: Neck Specifications | B13: Number of frets | C13: =IFERROR(INDEX('Superstrat Option List'!C7:C278,MATCH(#REF!&A13&B13,'Superstrat Option List'!#REF!&'Superstrat Option List'!A7:A278&'Superstrat Option List'!B7:B278,0)),"Select Option") -> Select Option | D13: =INDEX('Strathing Option List'!D10:D215,MATCH('Earth Padalka Calculation'!A13&'Earth Padalka Calculation'!B13&'Earth Padalka Calculation'!C13,'Strathing Option List'!A10:A215&'Strathing Option List'!B10:B215&'Strathing Option List'!C10:C215,0)) -> 0
A14: Neck Specifications | B14: Fretwire | C14: =IFERROR(INDEX('Superstrat Option List'!C7:C278,MATCH(#REF!&A14&B14,'Superstrat Option List'!#REF!&'Superstrat Option List'!A7:A278&'Superstrat Option List'!B7:B278,0)),"Select Option") -> Select Option | D14: =INDEX('Strathing Option List'!D11:D216,MATCH('Earth Padalka Calculation'!A14&'Earth Padalka Calculation'!B14&'Earth Padalka Calculation'!C14,'Strathing Option List'!A11:A216&'Strathing Option List'!B11:B216&'Strathing Option List'!C11:C216,0)) -> 0
A15: Neck Specifications | B15: Neck pieces | C15: =IFERROR(INDEX('Superstrat Option List'!C7:C278,MATCH(#REF!&A15&B15,'Superstrat Option List'!#REF!&'Superstrat Option List'!A7:A278&'Superstrat Option List'!B7:B278,0)),"Select Option") -> Select Option | D15: =INDEX('Strathing Option List'!D12:D217,MATCH('Earth Padalka Calculation'!A15&'Earth Padalka Calculation'!B15&'Earth Padalka Calculation'!C15,'Strathing Option List'!A12:A217&'Strathing Option List'!B12:B217&'Strathing Option List'!C12:C217,0)) -> 0
A16: Neck Specifications | B16: Neck wood
B17: Select option below for 1 piece neck
A18: Neck Specifications | B18: 1 Piece Neck Wood | C18: =INDEX('Superstrat Option List'!D2:D278,MATCH(A18&$B$16&B18,'Superstrat Option List'!A2:A278&'Superstrat Option List'!B2:B278&'Superstrat Option List'!C2:C278,0)) -> Select Option | D18: =IFERROR(INDEX('Superstrat Option List'!E14:E1941,MATCH(A18&$B$16&B18&C18,'Superstrat Option List'!A14:A1941&'Superstrat Option List'!B14:B1941&'Superstrat Option List'!C14:C1941&'Superstrat Option List'!D14:D1941,0)),"Please choose option") -> 0
B19: Select options below for multi-piece neck
A20: Neck Specifications | B20: Multi-piece Neck Base Wood | C20: =INDEX('Superstrat Option List'!D4:D280,MATCH(A20&$B$16&B20,'Superstrat Option List'!A4:A280&'Superstrat Option List'!B4:B280&'Superstrat Option List'!C4:C280,0)) -> Select Option | D20: =IFERROR(INDEX('Superstrat Option List'!E16:E1943,MATCH(A20&$B$16&B20&C20,'Superstrat Option List'!A16:A1943&'Superstrat Option List'!B16:B1943&'Superstrat Option List'!C16:C1943&'Superstrat Option List'!D16:D1943,0)),"Please choose option") -> 0
A21: Neck Specifications | B21: Multi-piece Neck Thins Wood | C21: =INDEX('Superstrat Option List'!D5:D281,MATCH(A21&$B$16&B21,'Superstrat Option List'!A5:A281&'Superstrat Option List'!B5:B281&'Superstrat Option List'!C5:C281,0)) -> Select Option | D21: =IFERROR(INDEX('Superstrat Option List'!E17:E1944,MATCH(A21&$B$16&B21&C21,'Superstrat Option List'!A17:A1944&'Superstrat Option List'!B17:B1944&'Superstrat Option List'!C17:C1944&'Superstrat Option List'!D17:D1944,0)),"Please choose option") -> 0
A22: Neck Specifications | B22: Multi-piece Neck Thins Wood | C22: =INDEX('Superstrat Option List'!D6:D282,MATCH(A22&$B$16&B22,'Superstrat Option List'!A6:A282&'Superstrat Option List'!B6:B282&'Superstrat Option List'!C6:C282,0)) -> Select Option | D22: =IFERROR(INDEX('Superstrat Option List'!E18:E1945,MATCH(A22&$B$16&B22&C22,'Superstrat Option List'!A18:A1945&'Superstrat Option List'!B18:B1945&'Superstrat Option List'!C18:C1945&'Superstrat Option List'!D18:D1945,0)),"Please choose option") -> 0
A23: Neck Specifications | B23: Multi-piece Neck Thins Wood | C23: =INDEX('Superstrat Option List'!D7:D283,MATCH(A23&$B$16&B23,'Superstrat Option List'!A7:A283&'Superstrat Option List'!B7:B283&'Superstrat Option List'!C7:C283,0)) -> Select Option | D23: =IFERROR(INDEX('Superstrat Option List'!E19:E1946,MATCH(A23&$B$16&B23&C23,'Superstrat Option List'!A19:A1946&'Superstrat Option List'!B19:B1946&'Superstrat Option List'!C19:C1946&'Superstrat Option List'!D19:D1946,0)),"Please choose option") -> 0
A24: Neck Specifications | B24: Multi-piece Neck Thins Wood | C24: =INDEX('Superstrat Option List'!D8:D284,MATCH(A24&$B$16&B24,'Superstrat Option List'!A8:A284&'Superstrat Option List'!B8:B284&'Superstrat Option List'!C8:C284,0)) -> Select Option | D24: =IFERROR(INDEX('Superstrat Option List'!E21:E1947,MATCH(A24&$B$16&B24&C24,'Superstrat Option List'!A21:A1947&'Superstrat Option List'!B21:B1947&'Superstrat Option List'!C21:C1947&'Superstrat Option List'!D21:D1947,0)),"Please choose option") -> 0
A25: Neck Specifications | B25: Multi-piece Neck Thins Wood | C25: =INDEX('Superstrat Option List'!D9:D285,MATCH(A25&$B$16&B25,'Superstrat Option List'!A9:A285&'Superstrat Option List'!B9:B285&'Superstrat Option List'!C9:C285,0)) -> Select Option | D25: =IFERROR(INDEX('Superstrat Option List'!E22:E1948,MATCH(A25&$B$16&B25&C25,'Superstrat Option List'!A22:A1948&'Superstrat Option List'!B22:B1948&'Superstrat Option List'!C22:C1948&'Superstrat Option List'!D22:D1948,0)),"Please choose option") -> 0
B27: Fretboard Specifications
A28: Neck Specifications | B28: Fretboard wood | C28: =IFERROR(INDEX('Superstrat Option List'!C29:C278,MATCH(#REF!&A28&B28,'Superstrat Option List'!#REF!&'Superstrat Option List'!A29:A278&'Superstrat Option List'!B29:B278,0)),"Select Option") -> Select Option | D28: =INDEX('Strathing Option List'!D18:D230,MATCH('Earth Padalka Calculation'!A28&'Earth Padalka Calculation'!B28&'Earth Padalka Calculation'!C28,'Strathing Option List'!A18:A230&'Strathing Option List'!B18:B230&'Strathing Option List'!C18:C230,0)) -> 0
A29: Neck Specifications | B29: Fretboard radius | C29: =IFERROR(INDEX('Superstrat Option List'!C29:C278,MATCH(#REF!&A29&B29,'Superstrat Option List'!#REF!&'Superstrat Option List'!A29:A278&'Superstrat Option List'!B29:B278,0)),"Select Option") -> Select Option | D29: =INDEX('Strathing Option List'!D19:D231,MATCH('Earth Padalka Calculation'!A29&'Earth Padalka Calculation'!B29&'Earth Padalka Calculation'!C29,'Strathing Option List'!A19:A231&'Strathing Option List'!B19:B231&'Strathing Option List'!C19:C231,0)) -> 0
A30: Neck Specifications
A31: Neck Specifications | B31: Fretboard binding | C31: =IFERROR(INDEX('Superstrat Option List'!C30:C278,MATCH(#REF!&A31&B31,'Superstrat Option List'!#REF!&'Superstrat Option List'!A30:A278&'Superstrat Option List'!B30:B278,0)),"Select Option") -> Select Option | D31: =INDEX('Strathing Option List'!D20:D233,MATCH('Earth Padalka Calculation'!A31&'Earth Padalka Calculation'!B31&'Earth Padalka Calculation'!C31,'Strathing Option List'!A20:A233&'Strathing Option List'!B20:B233&'Strathing Option List'!C20:C233,0)) -> 0
A32: Neck Specifications | B32: Fretboard inlays | C32: =IFERROR(INDEX('Superstrat Option List'!C30:C278,MATCH(#REF!&A32&B32,'Superstrat Option List'!#REF!&'Superstrat Option List'!A30:A278&'Superstrat Option List'!B30:B278,0)),"Select Option") -> Select Option | D32: =INDEX('Strathing Option List'!D21:D234,MATCH('Earth Padalka Calculation'!A32&'Earth Padalka Calculation'!B32&'Earth Padalka Calculation'!C32,'Strathing Option List'!A21:A234&'Strathing Option List'!B21:B234&'Strathing Option List'!C21:C234,0)) -> 0
A33: Neck Specifications | B33: Side markers | C33: =IFERROR(INDEX('Superstrat Option List'!C31:C278,MATCH(#REF!&A33&B33,'Superstrat Option List'!#REF!&'Superstrat Option List'!A31:A278&'Superstrat Option List'!B31:B278,0)),"Select Option") -> Select Option | D33: =INDEX('Strathing Option List'!D22:D235,MATCH('Earth Padalka Calculation'!A33&'Earth Padalka Calculation'!B33&'Earth Padalka Calculation'!C33,'Strathing Option List'!A22:A235&'Strathing Option List'!B22:B235&'Strathing Option List'!C22:C235,0)) -> 0
B35: Headstock Specifications
A36: Neck Specifications | B36: Headstock shape | C36: =IFERROR(INDEX('Superstrat Option List'!C34:C278,MATCH(#REF!&A36&B36,'Superstrat Option List'!#REF!&'Superstrat Option List'!A34:A278&'Superstrat Option List'!B34:B278,0)),"Select Option") -> Select Option | D36: =INDEX('Strathing Option List'!D25:D239,MATCH('Earth Padalka Calculation'!A36&'Earth Padalka Calculation'!B36&'Earth Padalka Calculation'!C36,'Strathing Option List'!A25:A239&'Strathing Option List'!B25:B239&'Strathing Option List'!C25:C239,0)) -> 0
B38: Body Specifications
A39: Body Specifications | B39: Body wood | C39: =IFERROR(INDEX('Superstrat Option List'!C40:C278,MATCH(#REF!&A39&B39,'Superstrat Option List'!#REF!&'Superstrat Option List'!A40:A278&'Superstrat Option List'!B40:B278,0)),"Select Option") -> Select Option | D39: =INDEX('Strathing Option List'!D30:D244,MATCH('Earth Padalka Calculation'!A39&'Earth Padalka Calculation'!B39&'Earth Padalka Calculation'!C39,'Strathing Option List'!A30:A244&'Strathing Option List'!B30:B244&'Strathing Option List'!C30:C244,0)) -> 0
A40: Body Specifications | B40: Front body carvings | C40: =IFERROR(INDEX('Superstrat Option List'!C41:C278,MATCH(#REF!&A40&B40,'Superstrat Option List'!#REF!&'Superstrat Option List'!A41:A278&'Superstrat Option List'!B41:B278,0)),"Select Option") -> Select Option | D40: =INDEX('Strathing Option List'!D31:D245,MATCH('Earth Padalka Calculation'!A40&'Earth Padalka Calculation'!B40&'Earth Padalka Calculation'!C40,'Strathing Option List'!A31:A245&'Strathing Option List'!B31:B245&'Strathing Option List'!C31:C245,0)) -> 0
A41: Body Specifications | B41: Body chambers | C41: =IFERROR(INDEX('Superstrat Option List'!C43:C278,MATCH(#REF!&A41&B41,'Superstrat Option List'!#REF!&'Superstrat Option List'!A43:A278&'Superstrat Option List'!B43:B278,0)),"Select Option") -> Select Option | D41: =INDEX('Strathing Option List'!D33:D247,MATCH('Earth Padalka Calculation'!A41&'Earth Padalka Calculation'!B41&'Earth Padalka Calculation'!C41,'Strathing Option List'!A33:A247&'Strathing Option List'!B33:B247&'Strathing Option List'!C33:C247,0)) -> 0
A42: Body Specifications | B42: Top wood | C42: =IFERROR(INDEX('Superstrat Option List'!C44:C278,MATCH(#REF!&A42&B42,'Superstrat Option List'!#REF!&'Superstrat Option List'!A44:A278&'Superstrat Option List'!B44:B278,0)),"Select Option") -> Select Option | D42: =IFERROR(INDEX('Strathing Option List'!D34:D248,MATCH('Earth Padalka Calculation'!A42&'Earth Padalka Calculation'!B42&'Earth Padalka Calculation'!C42,'Strathing Option List'!A34:A248&'Strathing Option List'!B34:B248&'Strathing Option List'!C34:C248,0)),"$0,00") -> 0
A43: Body Specifications | B43: Body binding | C43: =IFERROR(INDEX('Superstrat Option List'!C45:C278,MATCH(#REF!&A43&B43,'Superstrat Option List'!#REF!&'Superstrat Option List'!A45:A278&'Superstrat Option List'!B45:B278,0)),"Select Option") -> Select Option | D43: =IFERROR(INDEX('Strathing Option List'!D36:D250,MATCH('Earth Padalka Calculation'!A43&'Earth Padalka Calculation'!B43&'Earth Padalka Calculation'!C43,'Strathing Option List'!A36:A250&'Strathing Option List'!B36:B250&'Strathing Option List'!C36:C250,0)),"$0,00") -> 0
A44: Body Specifications | B44: Finish | C44: =IFERROR(INDEX('Superstrat Option List'!C46:C278,MATCH(#REF!&A44&B44,'Superstrat Option List'!#REF!&'Superstrat Option List'!A46:A278&'Superstrat Option List'!B46:B278,0)),"Select Option") -> Select Option | D44: =IFERROR(INDEX('Strathing Option List'!D37:D251,MATCH('Earth Padalka Calculation'!A44&'Earth Padalka Calculation'!B44&'Earth Padalka Calculation'!C44,'Strathing Option List'!A37:A251&'Strathing Option List'!B37:B251&'Strathing Option List'!C37:C251,0)),"$0,00") -> 0
A45: Body Specifications | B45: Colour | C45: =IFERROR(INDEX('Superstrat Option List'!C48:C278,MATCH(#REF!&A45&B45,'Superstrat Option List'!#REF!&'Superstrat Option List'!A48:A278&'Superstrat Option List'!B48:B278,0)),"Select Option") -> Select Option | D45: =IFERROR(INDEX('Strathing Option List'!D39:D253,MATCH('Earth Padalka Calculation'!A45&'Earth Padalka Calculation'!B45&'Earth Padalka Calculation'!C45,'Strathing Option List'!A39:A253&'Strathing Option List'!B39:B253&'Strathing Option List'!C39:C253,0)),"$0,00") -> 0
A46: Body Specifications
F47: White | G47: 50
B49: Hardware
A50: Hardware | B50: Bridge | C50: =IFERROR(INDEX('Superstrat Option List'!C53:C278,MATCH(#REF!&A50&B50,'Superstrat Option List'!#REF!&'Superstrat Option List'!A53:A278&'Superstrat Option List'!B53:B278,0)),"Select Option") -> Select Option | D50: =IFERROR(INDEX('Strathing Option List'!D44:D258,MATCH('Earth Padalka Calculation'!A50&'Earth Padalka Calculation'!B50&'Earth Padalka Calculation'!C50,'Strathing Option List'!A44:A258&'Strathing Option List'!B44:B258&'Strathing Option List'!C44:C258,0)),"$0,00") -> 0
A51: Hardware | B51: Tuning machines | C51: =IFERROR(INDEX('Superstrat Option List'!C57:C278,MATCH(#REF!&A51&B51,'Superstrat Option List'!#REF!&'Superstrat Option List'!A57:A278&'Superstrat Option List'!B57:B278,0)),"Select Option") -> Select Option | D51: =IFERROR(F51*C9,"$0,00") -> $0,00 | F51: =IFERROR(INDEX('Superstrat Option List'!D53:D1978,MATCH(A51&B51&C51,'Superstrat Option List'!A53:A1978&'Superstrat Option List'!B53:B1978&'Superstrat Option List'!C53:C1978,0)),"Please choose option") -> 0
B53: Electronics
A54: Electronics | B54: Neck Pickup | C54: =IFERROR(INDEX('Superstrat Option List'!C61:C278,MATCH(#REF!&A54&B54,'Superstrat Option List'!#REF!&'Superstrat Option List'!A61:A278&'Superstrat Option List'!B61:B278,0)),"Select Option") -> Select Option | D54: =INDEX('Strathing Option List'!D55:D264,MATCH('Earth Padalka Calculation'!A54&'Earth Padalka Calculation'!B54&'Earth Padalka Calculation'!C54,'Strathing Option List'!A55:A264&'Strathing Option List'!B55:B264&'Strathing Option List'!C55:C264,0)) -> 0
A55: Electronics | B55: Describe Pickup Model
A56: Electronics | B56: Middle Pickup | C56: =IFERROR(INDEX('Superstrat Option List'!C63:C278,MATCH(#REF!&A56&B56,'Superstrat Option List'!#REF!&'Superstrat Option List'!A63:A278&'Superstrat Option List'!B63:B278,0)),"Select Option") -> Select Option | D56: =INDEX('Strathing Option List'!D56:D266,MATCH('Earth Padalka Calculation'!A56&'Earth Padalka Calculation'!B56&'Earth Padalka Calculation'!C56,'Strathing Option List'!A56:A266&'Strathing Option List'!B56:B266&'Strathing Option List'!C56:C266,0)) -> 0
A57: Electronics | B57: Describe Pickup Model
A58: Electronics | B58: Bridge Pickup | C58: =IFERROR(INDEX('Superstrat Option List'!C67:C278,MATCH(#REF!&A58&B58,'Superstrat Option List'!#REF!&'Superstrat Option List'!A67:A278&'Superstrat Option List'!B67:B278,0)),"Select Option") -> Select Option | D58: =INDEX('Strathing Option List'!D58:D268,MATCH('Earth Padalka Calculation'!A58&'Earth Padalka Calculation'!B58&'Earth Padalka Calculation'!C58,'Strathing Option List'!A58:A268&'Strathing Option List'!B58:B268&'Strathing Option List'!C58:C268,0)) -> 0
A59: Electronics | B59: Describe Pickup Model
A60: Electronics | B60: Pickup Switch | C60: =IFERROR(INDEX('Superstrat Option List'!C75:C278,MATCH(#REF!&A60&B60,'Superstrat Option List'!#REF!&'Superstrat Option List'!A75:A278&'Superstrat Option List'!B75:B278,0)),"Select Option") -> Select Option | D60: =INDEX('Strathing Option List'!D65:D270,MATCH('Earth Padalka Calculation'!A60&'Earth Padalka Calculation'!B60&'Earth Padalka Calculation'!C60,'Strathing Option List'!A65:A270&'Strathing Option List'!B65:B270&'Strathing Option List'!C65:C270,0)) -> 0
A61: Electronics | B61: Piezo Pickups | C61: =IFERROR(INDEX('Superstrat Option List'!C78:C278,MATCH(#REF!&A61&B61,'Superstrat Option List'!#REF!&'Superstrat Option List'!A78:A278&'Superstrat Option List'!B78:B278,0)),"Select Option") -> Select Option | D61: =INDEX('Strathing Option List'!D66:D271,MATCH('Earth Padalka Calculation'!A61&'Earth Padalka Calculation'!B61&'Earth Padalka Calculation'!C61,'Strathing Option List'!A66:A271&'Strathing Option List'!B66:B271&'Strathing Option List'!C66:C271,0)) -> 0
A62: Electronics | B62: Pre-amp | C62: =IFERROR(INDEX('Superstrat Option List'!C78:C278,MATCH(#REF!&A62&B62,'Superstrat Option List'!#REF!&'Superstrat Option List'!A78:A278&'Superstrat Option List'!B78:B278,0)),"Select Option") -> Select Option | D62: =INDEX('Strathing Option List'!D68:D273,MATCH('Earth Padalka Calculation'!A62&'Earth Padalka Calculation'!B62&'Earth Padalka Calculation'!C62,'Strathing Option List'!A68:A273&'Strathing Option List'!B68:B273&'Strathing Option List'!C68:C273,0)) -> 0
A63: Electronics | B63: Describe Other Pre-amp
B65: Total | D65: =IFERROR(SUM(D8:D64),"Please select missing option") -> 0
B66: Name:
B67: Country :
B68: Adress :
B69: E-mail :
B70: Phone Number:
B71: Body & Headstock Shapes available in this models
B72: Earth Body Model
B73: F-1 Headstock Model

Sheet Telething Option List (hidden)
A1: Group | B1: Description | C1: Options | D1: Rate $ | E1: 2nd Rate | F1: Russian Rates
A2: General Specifications | B2: Model | C2: Select Option | G2: Rate with formula, only change Russian rate
A3: General Specifications | B3: Model | C3: Mars-1 | D3: =F3*'Exchange Rate Calculation'!$Q$7 -> 833.33 | F3: 50000
A4: General Specifications | B4: Model | C4: Mars-2 | D4: =F4*'Exchange Rate Calculation'!$Q$7 -> 833.33 | F4: 50000
A5: General Specifications | B5: Number of strings | C5: Select Option
A6: General Specifications | B6: Number of strings | C6: 6 | D6: 0
A7: General Specifications | B7: Scale length | C7: Select Option
A8: General Specifications | B8: Scale length | C8: 25,5" | D8: 0
A9: General Specifications | B9: Scale length | C9: 26" | D9: 0
A10: General Specifications | B10: Scale length | C10: 26,5" | D10: 0
A11: General Specifications | B11: Scale length | C11: 27" | D11: 0
A12: General Specifications | B12: Scale length | C12: 28" | D12: 0
A13: General Specifications | B13: Neck joint construction | C13: Select Option
A14: General Specifications | B14: Neck joint construction | C14: Bolt-on | D14: 0
A15: General Specifications | B15: Neck joint construction | C15: Set neck | D15: =F15*'Exchange Rate Calculation'!$Q$7 -> 49.9998 | F15: 3000
A16: Neck Specifications | B16: Number of frets | C16: Select Option
A17: Neck Specifications | B17: Number of frets | C17: 22 | D17: 0
A18: Neck Specifications | B18: Number of frets | C18: 24 | D18: 0
A19: Neck Specifications | B19: Fretwire | C19: Select Option
A20: Neck Specifications | B20: Fretwire | C20: Jescar stainless steel 2,3x1,4mm | D20: 25
A21: Neck Specifications | B21: Fretwire | C21: Jescar stainless steel 2,5x1,3mm | D21: 25
A22: Neck Specifications | B22: Fretwire | C22: Evo Gold 2,3x1,4mm | D22: 30
A23: Neck Specifications | B23: Fretwire | C23: Jescar nickel-silver 2,3x1,4mm | D23: 10
A24: Neck Specifications | B24: Fretwire | C24: Jescar nickel-silver 2,5x1,3mm | D24: 10
A25: Neck Specifications | B25: Neck pieces | C25: Select Option
A26: Neck Specifications | B26: Neck pieces | C26: 1 | D26: 0
A27: Neck Specifications | B27: Neck pieces | C27: 3 | D27: =F27*'Exchange Rate Calculation'!$Q$7 -> 24.9999 | F27: 1500
A28: Neck Specifications | B28: Neck pieces | C28: 5 | D28: =F28*'Exchange Rate Calculation'!$Q$7 -> 33.3332 | F28: 2000
A29: Neck Specifications | B29: Neck pieces | C29: 7 | D29: =F29*'Exchange Rate Calculation'!$Q$7 -> 49.9998 | F29: 3000
A30: Neck Specifications | B30: Neck pieces | C30: 9 | D30: =F30*'Exchange Rate Calculation'!$Q$7 -> 66.6664 | F30: 4000
A31: Neck Specifications | B31: Neck pieces | C31: 11 | D31: =F31*'Exchange Rate Calculation'!$Q$7 -> 83.333 | F31: 5000
A32: Neck Specifications | B32: Neck wood | C32: Select Option
A33: Neck Specifications | B33: Neck wood | C33: 1 Piece Neck Wood | D33: none | E33: 0
A34: Neck Specifications | B34: Neck wood | C34: 1 Piece Neck Wood | D34: Hard maple | E34: =F34*'Exchange Rate Calculation'!$Q$7 -> 49.9998 | F34: 3000
A35: Neck Specifications | B35: Neck wood | C35: 1 Piece Neck Wood | D35: Curly maple | E35: 120
A36: Neck Specifications | B36: Neck wood | C36: 1 Piece Neck Wood | D36: African mahogany | E36: 50
A37: Neck Specifications | B37: Neck wood | C37: 1 Piece Neck Wood | D37: Bird`s eye maple | E37: 140
A38: Neck Specifications | B38: Neck wood | C38: 1 Piece Neck Wood | D38: Rosewood | E38: 150
A39: Neck Specifications | B39: Neck wood | C39: 1 Piece Neck Wood | D39: Padouk | E39: 50
A40: Neck Specifications | B40: Neck wood | C40: 1 Piece Neck Wood | D40: Other ( contact for price ) | E40: 0
A41: Neck Specifications | B41: Neck wood | C41: Select Option
A42: Neck Specifications | B42: Neck wood | C42: Multi-piece Neck Base Wood | D42: none | E42: 0
A43: Neck Specifications | B43: Neck wood | C43: Multi-piece Neck Base Wood | D43: Hard maple | E43: 40
A44: Neck Specifications | B44: Neck wood | C44: Multi-piece Neck Base Wood | D44: Curly maple | E44: 100
A45: Neck Specifications | B45: Neck wood | C45: Multi-piece Neck Base Wood | D45: African mahogany | E45: 50
A46: Neck Specifications | B46: Neck wood | C46: Multi-piece Neck Base Wood | D46: Rosewood | E46: 150
A47: Neck Specifications | B47: Neck wood | C47: Multi-piece Neck Base Wood | D47: Padouk | E47: 50
A48: Neck Specifications | B48: Neck wood | C48: Multi-piece Neck Base Wood | D48: Sapele | E48: 50
A49: Neck Specifications | B49: Neck wood | C49: Multi-piece Neck Base Wood | D49: Limba | E49: 50
A50: Neck Specifications | B50: Neck wood | C50: Multi-piece Neck Base Wood | D50: Walnut | E50: 70
A51: Neck Specifications | B51: Neck wood | C51: Multi-piece Neck Base Wood | D51: Wenge | E51: 70
A52: Neck Specifications | B52: Neck wood | C52: Multi-piece Neck Base Wood | D52: Purpleheart | E52: 70
A53: Neck Specifications | B53: Neck wood | C53: Multi-piece Neck Base Wood | D53: Other ( contact for price ) | E53: 0
A54: Neck Specifications | B54: Neck wood | C54: Select Option
A55: Neck Specifications | B55: Neck wood | C55: Multi-piece Neck Thins Wood | D55: none | E55: 0
A56: Neck Specifications | B56: Neck wood | C56: Multi-piece Neck Thins Wood | D56: Hard maple | E56: 20
A57: Neck Specifications | B57: Neck wood | C57: Multi-piece Neck Thins Wood | D57: Padouk | E57: 25
A58: Neck Specifications | B58: Neck wood | C58: Multi-piece Neck Thins Wood | D58: African mahogany | E58: 25
A59: Neck Specifications | B59: Neck wood | C59: Multi-piece Neck Thins Wood | D59: Bubinga | E59: 25
A60: Neck Specifications | B60: Neck wood | C60: Multi-piece Neck Thins Wood | D60: Sapele | E60: 25
A61: Neck Specifications | B61: Neck wood | C61: Multi-piece Neck Thins Wood | D61: Limba | E61: 35
A62: Neck Specifications | B62: Neck wood | C62: Multi-piece Neck Thins Wood | D62: Walnut | E62: 35
A63: Neck Specifications | B63: Neck wood | C63: Multi-piece Neck Thins Wood | D63: Wenge | E63: 35
A64: Neck Specifications | B64: Neck wood | C64: Multi-piece Neck Thins Wood | D64: Purpleheart | E64: 35
A65: Neck Specifications | B65: Neck wood | C65: Multi-piece Neck Thins Wood | D65: Other ( contact for price ) | E65: 0
A66: Neck Specifications | B66: Fretboard wood | C66: Select Option
A67: Neck Specifications | B67: Fretboard wood | C67: Rosewood | D67: 40
A68: Neck Specifications | B68: Fretboard wood | C68: Cocobolo | D68: 80
A69: Neck Specifications | B69: Fretboard wood | C69: Ebony | D69: 65
A70: Neck Specifications | B70: Fretboard wood | C70: Macassar | D70: 65
A71: Neck Specifications | B71: Fretboard wood | C71: Hard maple | D71: 10
A72: Neck Specifications | B72: Fretboard wood | C72: Bird`s eye maple | D72: 100
A73: Neck Specifications | B73: Fretboard wood | C73: Curly maple | D73: 80
A74: Neck Specifications | B74: Fretboard wood | C74: Purpleheart | D74: 40
A75: Neck Specifications | B75: Fretboard wood | C75: Other exotic wood (contact for the price) | D75: 0
A76: Neck Specifications | B76: Fretboard radius | C76: Select Option
A77: Neck Specifications | B77: Fretboard radius | C77: 10" | D77: 0
A78: Neck Specifications | B78: Fretboard radius | C78: 12" | D78: 0
A79: Neck Specifications | B79: Fretboard radius | C79: 16" | D79: 0
A80: Neck Specifications | B80: Fretboard radius | C80: 20" | D80: 0
A81: Neck Specifications | B81: Fretboard radius | C81: Compound radius | D81: =F81*'Exchange Rate Calculation'!$Q$7 -> 116.6662 | F81: 7000
A82: Neck Specifications | B82: Headstock shape | C82: Select Option
A83: Neck Specifications | B83: Headstock shape | C83: F-1 | D83: 0
A84: Neck Specifications | B84: Headstock shape | C84: F-2 | D84: 0
A85: Neck Specifications | B85: Fretboard binding | C85: Select Option
A86: Neck Specifications | B86: Fretboard binding | C86: None | D86: 0
A87: Neck Specifications | B87: Fretboard binding | C87: Binding 1 ply | D87: =F87*'Exchange Rate Calculation'!$Q$7 -> 46.66648 | F87: 2800
A88: Neck Specifications | B88: Fretboard binding | C88: Binding 3 ply | D88: =F88*'Exchange Rate Calculation'!$Q$7 -> 78.33302 | F88: 4700
A89: Neck Specifications | B89: Fretboard inlays | C89: Select Option
A90: Neck Specifications | B90: Fretboard inlays | C90: None | D90: 0
A91: Neck Specifications | B91: Fretboard inlays | C91: MOP dots 4mm | D91: 13
A92: Neck Specifications | B92: Fretboard inlays | C92: MOP dots 6mm | D92: 18
A93: Neck Specifications | B93: Fretboard inlays | C93: MOP triangles 5mm | D93: =F93*'Exchange Rate Calculation'!$Q$7 -> 38.33318 | F93: 2300
A94: Neck Specifications | B94: Fretboard inlays | C94: Aluminium rings | D94: =F94*'Exchange Rate Calculation'!$Q$7 -> 41.6665 | F94: 2500
A95: Neck Specifications | B95: Fretboard inlays | C95: Custom design "simple" | D95: =F95*'Exchange Rate Calculation'!$Q$7 -> 58.3331 | F95: 3500
A96: Neck Specifications | B96: Fretboard inlays | C96: Custom design "medium" | D96: =F96*'Exchange Rate Calculation'!$Q$7 -> 108.3329 | F96: 6500
A97: Neck Specifications | B97: Fretboard inlays | C97: Custom design "complicated" | D97: =F97*'Exchange Rate Calculation'!$Q$7 -> 153.33272 | F97: 9200
A98: Neck Specifications | B98: Side markers | C98: Select Option
A99: Neck Specifications | B99: Side markers | C99: None | D99: 0
A100: Neck Specifications | B100: Side markers | C100: Plastic dots 2mm | D100: 0
A101: Neck Specifications | B101: Side markers | C101: MOP dots 2mm | D101: 5
A102: Neck Specifications | B102: Side markers | C102: Luminlay 3mm | D102: 25
A103: Neck Specifications | B103: Side markers | C103: Plastic blocks | D103: =F103*'Exchange Rate Calculation'!$Q$7 -> 49.9998 | F103: 3000
A104: Neck Specifications | B104: Side markers | C104: MOP blocks | D104: =F104*'Exchange Rate Calculation'!$Q$7 -> 54.99978 | F104: 3300
A105: Body Specifications | B105: Body wood | C105: Select Option
A106: Body Specifications | B106: Body wood | C106: Alder | D106: =F106*'Exchange Rate Calculation'!$Q$7 -> 49.9998 | F106: 3000
A107: Body Specifications | B107: Body wood | C107: White ash | D107: =F107*'Exchange Rate Calculation'!$Q$7 -> 49.9998 | F107: 3000
A108: Body Specifications | B108: Body wood | C108: Swamp ash | D108: 260
A109: Body Specifications | B109: Body wood | C109: African mahogany | D109: 100
A110: Body Specifications | B110: Body wood | C110: Basswood | D110: 45
A111: Body Specifications | B111: Body wood | C111: Limba | D111: 250
A112: Body Specifications | B112: Body wood | C112: Sapele | D112: 100
A113: Body Specifications | B113: Front body carvings | C113: Select Option
A114: Body Specifications | B114: Front body carvings | C114: Arm bevel | D114: 15
A115: Body Specifications | B115: Front body carvings | C115: Flat top | D115: =F115*'Exchange Rate Calculation'!$Q$7 -> 0 | F115: 0
A116: Body Specifications | B116: Front body carvings | C116: None | D116: 0
A117: Body Specifications | B117: Back body carvings | C117: Select Option
A118: Body Specifications | B118: Back body carvings | C118: Body bevel | D118: 0
A119: Body Specifications | B119: Back body carvings | C119: None | D119: 0
A120: Body Specifications | B120: Body chambers | C120: Select Option
A121: Body Specifications | B121: Body chambers | C121: None | D121: 0
A122: Body Specifications | B122: Body chambers | C122: Weight reducing chambers (only with top) | D122: 60
A123: Body Specifications | B123: Top wood | C123: Select Option
A124: Body Specifications | B124: Top wood | C124: None | D124: 0
A125: Body Specifications | B125: Top wood | C125: White ash 5-9mm | D125: =F125*'Exchange Rate Calculation'!$Q$7 -> 66.6664 | F125: 4000
A126: Body Specifications | B126: Top wood | C126: Flame maple 5mm | D126: 140
A127: Body Specifications | B127: Top wood | C127: Quilted maple 5mm | D127: 170
A128: Body Specifications | B128: Top wood | C128: Spalted maple 3mm | D128: 80
A129: Body Specifications | B129: Top wood | C129: Poplar burl 3mm | D129: 80
A130: Body Specifications | B130: Top wood | C130: Walnut | D130: 80
A131: Body Specifications | B131: Top wood | C131: Purpleheart | D131: 100
A132: Body Specifications | B132: Top wood | C132: Other exotic wood (contact for the price) | D132: 0
A133: Body Specifications | B133: Body binding | C133: Select Option
A134: Body Specifications | B134: Body binding | C134: None | D134: 0
A135: Body Specifications | B135: Body binding | C135: Scraped binding | D135: =F135*'Exchange Rate Calculation'!$Q$7 -> 8.3333 | F135: 500
A136: Body Specifications | B136: Body binding | C136: Binding 1 ply | D136: =F136*'Exchange Rate Calculation'!$Q$7 -> 49.9998 | F136: 3000
A137: Body Specifications | B137: Body binding | C137: Binding 3 ply | D137: =F137*'Exchange Rate Calculation'!$Q$7 -> 91.6663 | F137: 5500
A138: Body Specifications | B138: Finish | C138: Select Option
A139: Body Specifications | B139: Finish | C139: Satin open pores | D139: =F139*'Exchange Rate Calculation'!$Q$7 -> 8.3333 | F139: 500
A140: Body Specifications | B140: Finish | C140: Oil | D140: =F140*'Exchange Rate Calculation'!$Q$7 -> 83.333 | F140: 5000
A141: Body Specifications | B141: Finish | C141: Gloss (bolt-on) | D141: =F141*'Exchange Rate Calculation'!$Q$7 -> 124.9995 | F141: 7500
A142: Body Specifications | B142: Finish | C142: Gloss (set neck) | D142: =F142*'Exchange Rate Calculation'!$Q$7 -> 174.9993 | F142: 10500
A143: Body Specifications | B143: Finish | C143: Gloss top (bolt-on) | D143: =F143*'Exchange Rate Calculation'!$Q$7 -> 49.9998 | F143: 3000
A144: Body Specifications | B144: Finish | C144: Gloss top (set neck) | D144: =F144*'Exchange Rate Calculation'!$Q$7 -> 66.6664 | F144: 4000
A145: Body Specifications | B145: Colour | C145: Select Option
A146: Body Specifications | B146: Colour | C146: Clear | D146: =F146*'Exchange Rate Calculation'!$Q$7 -> 0
A147: Body Specifications | B147: Colour | C147: Uniform colour | D147: =F147*'Exchange Rate Calculation'!$Q$7 -> 16.6666 | F147: 1000
A148: Body Specifications | B148: Colour | C148: Burst | D148: =F148*'Exchange Rate Calculation'!$Q$7 -> 33.3332 | F148: 2000
A149: Body Specifications | B149: Colour | C149: Painted pores (top and headstock) | D149: =F149*'Exchange Rate Calculation'!$Q$7 -> 33.3332 | F149: 2000
A150: Body Specifications | B150: Colour | C150: Painted pores (body and headstock) | D150: =F150*'Exchange Rate Calculation'!$Q$7 -> 66.6664 | F150: 4000
A151: Hardware | B151: Bridge | C151: Select Option
A152: Hardware | B152: Bridge | C152: None | D152: 0
A153: Hardware | B153: Bridge | C153: Hipshot hardtail Black | D153: 85
A154: Hardware | B154: Bridge | C154: Hipshot hardtail Chrome | D154: 85
A155: Hardware | B155: Bridge | C155: Hipshot hardtail Gold | D155: 110.5
A156: Hardware | B156: Bridge | C156: Hipshot US Contour Tremolo Black | D156: 103
A157: Hardware | B157: Bridge | C157: Hipshot US Contour Tremolo Chrome | D157: 103
A158: Hardware | B158: Bridge | C158: Hipshot US Contour Tremolo Gold | D158: 133
A159: Hardware | B159: Bridge | C159: Floyd Rose Chrome | D159: 165
A160: Hardware | B160: Bridge | C160: Floyd Rose Black | D160: 180
A161: Hardware | B161: Bridge | C161: Floyd Rose Gold | D161: 195
A162: Hardware | B162: Bridge | C162: Other ( contact for price ) | D162: 0
A163: Hardware | B163: Tuning machines | C163: Select Option
A164: Hardware | B164: Tuning machines | C164: None | D164: 0
A165: Hardware | B165: Tuning machines | C165: Hipshot Griplock chrome | D165: 11
A166: Hardware | B166: Tuning machines | C166: Hipshot Griplock black | D166: 12
A167: Hardware | B167: Tuning machines | C167: Hipshot Griplock gold | D167: 13
A168: Hardware | B168: Tuning machines | C168: Gotoh SG381 non-locking Black | D168: 9
A169: Hardware | B169: Tuning machines | C169: Gotoh SG381 non-locking Chrome | D169: 9
A170: Hardware | B170: Tuning machines | C170: Gotoh SG381 non-locking Gold | D170: 11.7
A171: Electronics | B171: Neck Pickup | C171: Select Option
A172: Electronics | B172: Neck Pickup | C172: None | D172: 0
A173: Electronics | B173: Neck Pickup | C173: ARB Humb | D173: 70
A174: Electronics | B174: Neck Pickup | C174: Fokin pickups Humb | D174: 65
A175: Electronics | B175: Neck Pickup | C175: Dimarzio Humb | D175: 110
A176: Electronics | B176: Neck Pickup | C176: Seymour duncan Humb | D176: 90
A177: Electronics | B177: Neck Pickup | C177: BKP Humb | D177: 125
A178: Electronics | B178: Neck Pickup | C178: Fishman Fluence Modern | D178: 175
A179: Electronics | B179: Neck Pickup | C179: ARB Singlecoil | D179: 60
A180: Electronics | B180: Neck Pickup | C180: Fokin pickups Singlecoil | D180: 50
A181: Electronics | B181: Neck Pickup | C181: Dimarzio Singlecoil | D181: 100
A182: Electronics | B182: Neck Pickup | C182: Seymour duncan Singlecoil | D182: 85
A183: Electronics | B183: Neck Pickup | C183: BKP Singlecoil | D183: 95
A184: Electronics | B184: Neck Pickup | C184: Other ( contact for price ) | D184: 0
A185: Electronics | B185: Middle Pickup | C185: Select Option
A186: Electronics | B186: Middle Pickup | C186: None | D186: 0
A187: Electronics | B187: Middle Pickup | C187: ARB Singlecoil | D187: 60
A188: Electronics | B188: Middle Pickup | C188: Fokin pickups Singlecoil | D188: 50
A189: Electronics | B189: Middle Pickup | C189: Dimarzio Singlecoil | D189: 100
A190: Electronics | B190: Middle Pickup | C190: Seymour duncan Singlecoil | D190: 85
A191: Electronics | B191: Middle Pickup | C191: BKP Singlecoil | D191: 95
A192: Electronics | B192: Middle Pickup | C192: Other ( contact for price ) | D192: 0
A193: Electronics | B193: Bridge Pickup | C193: Select Option
A194: Electronics | B194: Bridge Pickup | C194: None | D194: 0
A195: Electronics | B195: Bridge Pickup | C195: ARB Humb | D195: 70
A196: Electronics | B196: Bridge Pickup | C196: Fokin pickups Humb | D196: 65
A197: Electronics | B197: Bridge Pickup | C197: Dimarzio Humb | D197: 110
A198: Electronics | B198: Bridge Pickup | C198: Seymour duncan Humb | D198: 90
A199: Electronics | B199: Bridge Pickup | C199: BKP Humb | D199: 125
A200: Electronics | B200: Bridge Pickup | C200: Fishman Fluence Modern | D200: 175
... 25 more rows

Sheet Mars Padalka Calculation (hidden)
B5: Specifications
A6: Part | B6: Description | C6: Choosen option | D6: Cost
A7: General Specifications | B7: General Specifications
A8: General Specifications | B8: Model | C8: =IFERROR(INDEX('Superstrat Option List'!C2:C277,MATCH(#REF!&A8&B8,'Superstrat Option List'!#REF!&'Superstrat Option List'!A2:A277&'Superstrat Option List'!B2:B277,0)),"Select Option") -> Select Option | D8: =INDEX('Telething Option List'!D2:D225,MATCH('Mars Padalka Calculation'!A8&'Mars Padalka Calculation'!B8&'Mars Padalka Calculation'!C8,'Telething Option List'!A2:A225&'Telething Option List'!B2:B225&'Telething Option List'!C2:C225,0)) -> 0
A9: General Specifications | B9: Number of Strings | C9: =IFERROR(INDEX('Superstrat Option List'!C3:C278,MATCH(#REF!&A9&B9,'Superstrat Option List'!#REF!&'Superstrat Option List'!A3:A278&'Superstrat Option List'!B3:B278,0)),"Select Option") -> Select Option | D9: =IFERROR(INDEX('Superstrat Option List'!D3:D1929,MATCH(A9&B9&C9,'Superstrat Option List'!A3:A1929&'Superstrat Option List'!B3:B1929&'Superstrat Option List'!C3:C1929,0)),"Please choose option") -> 0
A10: General Specifications | B10: Scale Length | C10: =IFERROR(INDEX('Superstrat Option List'!C4:C279,MATCH(#REF!&A10&B10,'Superstrat Option List'!#REF!&'Superstrat Option List'!A4:A279&'Superstrat Option List'!B4:B279,0)),"Select Option") -> Select Option | D10: =IFERROR(INDEX('Superstrat Option List'!D4:D1930,MATCH(A10&B10&C10,'Superstrat Option List'!A4:A1930&'Superstrat Option List'!B4:B1930&'Superstrat Option List'!C4:C1930,0)),"Please choose option") -> 0
A11: General Specifications | B11: Neck Joint Construction | C11: =IFERROR(INDEX('Superstrat Option List'!C6:C278,MATCH(#REF!&A11&B11,'Superstrat Option List'!#REF!&'Superstrat Option List'!A6:A278&'Superstrat Option List'!B6:B278,0)),"Select Option") -> Select Option | D11: =IFERROR(INDEX('Superstrat Option List'!D6:D1932,MATCH(A11&B11&C11,'Superstrat Option List'!A6:A1932&'Superstrat Option List'!B6:B1932&'Superstrat Option List'!C6:C1932,0)),"Please choose option") -> 0
B12: Neck Specifications
A13: Neck Specifications | B13: Number of frets | C13: =IFERROR(INDEX('Superstrat Option List'!C6:C277,MATCH(#REF!&A13&B13,'Superstrat Option List'!#REF!&'Superstrat Option List'!A6:A277&'Superstrat Option List'!B6:B277,0)),"Select Option") -> Select Option | D13: =IFERROR(INDEX('Superstrat Option List'!D10:D1936,MATCH(A13&B13&C13,'Superstrat Option List'!A10:A1936&'Superstrat Option List'!B10:B1936&'Superstrat Option List'!C10:C1936,0)),"Please choose option") -> 0
A14: Neck Specifications | B14: Fretwire | C14: =IFERROR(INDEX('Superstrat Option List'!C7:C278,MATCH(#REF!&A14&B14,'Superstrat Option List'!#REF!&'Superstrat Option List'!A7:A278&'Superstrat Option List'!B7:B278,0)),"Select Option") -> Select Option | D14: =IFERROR(INDEX('Superstrat Option List'!D11:D1937,MATCH(A14&B14&C14,'Superstrat Option List'!A11:A1937&'Superstrat Option List'!B11:B1937&'Superstrat Option List'!C11:C1937,0)),"Please choose option") -> 0
A15: Neck Specifications | B15: Neck pieces | C15: =IFERROR(INDEX('Superstrat Option List'!C8:C279,MATCH(#REF!&A15&B15,'Superstrat Option List'!#REF!&'Superstrat Option List'!A8:A279&'Superstrat Option List'!B8:B279,0)),"Select Option") -> Select Option | D15: =IFERROR(INDEX('Superstrat Option List'!D12:D1938,MATCH(A15&B15&C15,'Superstrat Option List'!A12:A1938&'Superstrat Option List'!B12:B1938&'Superstrat Option List'!C12:C1938,0)),"Please choose option") -> 0
B16: Neck wood
B17: Select option below for 1 piece neck
A18: Neck Specifications | B18: 1 Piece Neck Wood | C18: =INDEX('Superstrat Option List'!D2:D278,MATCH(A18&$B$16&B18,'Superstrat Option List'!A2:A278&'Superstrat Option List'!B2:B278&'Superstrat Option List'!C2:C278,0)) -> Select Option | D18: =IFERROR(INDEX('Superstrat Option List'!E14:E1941,MATCH(A18&$B$16&B18&C18,'Superstrat Option List'!A14:A1941&'Superstrat Option List'!B14:B1941&'Superstrat Option List'!C14:C1941&'Superstrat Option List'!D14:D1941,0)),"Please choose option") -> 0
B19: Select options below for Multi-piece neck
A20: Neck Specifications | B20: Multi-piece Neck Base Wood | C20: =INDEX('Superstrat Option List'!D4:D280,MATCH(A20&$B$16&B20,'Superstrat Option List'!A4:A280&'Superstrat Option List'!B4:B280&'Superstrat Option List'!C4:C280,0)) -> Select Option | D20: =IFERROR(INDEX('Superstrat Option List'!E16:E1943,MATCH(A20&$B$16&B20&C20,'Superstrat Option List'!A16:A1943&'Superstrat Option List'!B16:B1943&'Superstrat Option List'!C16:C1943&'Superstrat Option List'!D16:D1943,0)),"Please choose option") -> 0
A21: Neck Specifications | B21: Multi-piece Neck Thins Wood | C21: =INDEX('Superstrat Option List'!D5:D281,MATCH(A21&$B$16&B21,'Superstrat Option List'!A5:A281&'Superstrat Option List'!B5:B281&'Superstrat Option List'!C5:C281,0)) -> Select Option | D21: =IFERROR(INDEX('Superstrat Option List'!E17:E1944,MATCH(A21&$B$16&B21&C21,'Superstrat Option List'!A17:A1944&'Superstrat Option List'!B17:B1944&'Superstrat Option List'!C17:C1944&'Superstrat Option List'!D17:D1944,0)),"Please choose option") -> 0
A22: Neck Specifications | B22: Multi-piece Neck Thins Wood | C22: =INDEX('Superstrat Option List'!D6:D282,MATCH(A22&$B$16&B22,'Superstrat Option List'!A6:A282&'Superstrat Option List'!B6:B282&'Superstrat Option List'!C6:C282,0)) -> Select Option | D22: =IFERROR(INDEX('Superstrat Option List'!E18:E1945,MATCH(A22&$B$16&B22&C22,'Superstrat Option List'!A18:A1945&'Superstrat Option List'!B18:B1945&'Superstrat Option List'!C18:C1945&'Superstrat Option List'!D18:D1945,0)),"Please choose option") -> 0
A23: Neck Specifications | B23: Multi-piece Neck Thins Wood | C23: =INDEX('Superstrat Option List'!D7:D283,MATCH(A23&$B$16&B23,'Superstrat Option List'!A7:A283&'Superstrat Option List'!B7:B283&'Superstrat Option List'!C7:C283,0)) -> Select Option | D23: =IFERROR(INDEX('Superstrat Option List'!E19:E1946,MATCH(A23&$B$16&B23&C23,'Superstrat Option List'!A19:A1946&'Superstrat Option List'!B19:B1946&'Superstrat Option List'!C19:C1946&'Superstrat Option List'!D19:D1946,0)),"Please choose option") -> 0
B24: Fretboard Specifications
A25: Neck Specifications | B25: Fretboard wood | C25: =IFERROR(INDEX('Superstrat Option List'!C29:C278,MATCH(#REF!&A25&B25,'Superstrat Option List'!#REF!&'Superstrat Option List'!A29:A278&'Superstrat Option List'!B29:B278,0)),"Select Option") -> Select Option | D25: =IFERROR(INDEX('Superstrat Option List'!D28:D1952,MATCH(A25&B25&C25,'Superstrat Option List'!A28:A1952&'Superstrat Option List'!B28:B1952&'Superstrat Option List'!C28:C1952,0)),"Please choose option") -> 0
A26: Neck Specifications | B26: Fretboard radius | C26: =IFERROR(INDEX('Superstrat Option List'!C29:C278,MATCH(#REF!&A26&B26,'Superstrat Option List'!#REF!&'Superstrat Option List'!A29:A278&'Superstrat Option List'!B29:B278,0)),"Select Option") -> Select Option | D26: =IFERROR(INDEX('Superstrat Option List'!D29:D1953,MATCH(A26&B26&C26,'Superstrat Option List'!A29:A1953&'Superstrat Option List'!B29:B1953&'Superstrat Option List'!C29:C1953,0)),"Please choose option") -> 0
A27: Neck Specifications | B27: Fretboard binding | C27: =IFERROR(INDEX('Superstrat Option List'!C30:C278,MATCH(#REF!&A27&B27,'Superstrat Option List'!#REF!&'Superstrat Option List'!A30:A278&'Superstrat Option List'!B30:B278,0)),"Select Option") -> Select Option | D27: =IFERROR(INDEX('Superstrat Option List'!D29:D1955,MATCH(A27&B27&C27,'Superstrat Option List'!A29:A1955&'Superstrat Option List'!B29:B1955&'Superstrat Option List'!C29:C1955,0)),"Please choose option") -> 0
A28: Neck Specifications | B28: Fretboard inlays | C28: =IFERROR(INDEX('Superstrat Option List'!C30:C278,MATCH(#REF!&A28&B28,'Superstrat Option List'!#REF!&'Superstrat Option List'!A30:A278&'Superstrat Option List'!B30:B278,0)),"Select Option") -> Select Option | D28: =IFERROR(INDEX('Superstrat Option List'!D30:D1956,MATCH(A28&B28&C28,'Superstrat Option List'!A30:A1956&'Superstrat Option List'!B30:B1956&'Superstrat Option List'!C30:C1956,0)),"Please choose option") -> 0
A29: Neck Specifications | B29: Side markers | C29: =IFERROR(INDEX('Superstrat Option List'!C31:C278,MATCH(#REF!&A29&B29,'Superstrat Option List'!#REF!&'Superstrat Option List'!A31:A278&'Superstrat Option List'!B31:B278,0)),"Select Option") -> Select Option | D29: =IFERROR(INDEX('Superstrat Option List'!D30:D1957,MATCH(A29&B29&C29,'Superstrat Option List'!A30:A1957&'Superstrat Option List'!B30:B1957&'Superstrat Option List'!C30:C1957,0)),"Please choose option") -> 0
B30: Headstock Specifications
A31: Neck Specifications | B31: Headstock shape | C31: =IFERROR(INDEX('Superstrat Option List'!C34:C278,MATCH(#REF!&A31&B31,'Superstrat Option List'!#REF!&'Superstrat Option List'!A34:A278&'Superstrat Option List'!B34:B278,0)),"Select Option") -> Select Option | D31: =INDEX('Telething Option List'!D2:D225,MATCH('Mars Padalka Calculation'!A31&'Mars Padalka Calculation'!B31&'Mars Padalka Calculation'!C31,'Telething Option List'!A2:A225&'Telething Option List'!B2:B225&'Telething Option List'!C2:C225,0)) -> 0
B32: Body Specifications
A33: Body Specifications | B33: Body wood | C33: =IFERROR(INDEX('Superstrat Option List'!C39:C278,MATCH(#REF!&A33&B33,'Superstrat Option List'!#REF!&'Superstrat Option List'!A39:A278&'Superstrat Option List'!B39:B278,0)),"Select Option") -> Select Option | D33: =INDEX('Telething Option List'!D6:D229,MATCH('Mars Padalka Calculation'!A33&'Mars Padalka Calculation'!B33&'Mars Padalka Calculation'!C33,'Telething Option List'!A6:A229&'Telething Option List'!B6:B229&'Telething Option List'!C6:C229,0)) -> 0
A34: Body Specifications | B34: Front body carvings | C34: =IFERROR(INDEX('Superstrat Option List'!C41:C277,MATCH(#REF!&A34&B34,'Superstrat Option List'!#REF!&'Superstrat Option List'!A41:A277&'Superstrat Option List'!B41:B277,0)),"Select Option") -> Select Option | D34: =INDEX('Telething Option List'!D7:D230,MATCH('Mars Padalka Calculation'!A34&'Mars Padalka Calculation'!B34&'Mars Padalka Calculation'!C34,'Telething Option List'!A7:A230&'Telething Option List'!B7:B230&'Telething Option List'!C7:C230,0)) -> 0
A35: Body Specifications | B35: Back body carvings | C35: =IFERROR(INDEX('Superstrat Option List'!C42:C278,MATCH(#REF!&A35&B35,'Superstrat Option List'!#REF!&'Superstrat Option List'!A42:A278&'Superstrat Option List'!B42:B278,0)),"Select Option") -> Select Option | D35: =INDEX('Telething Option List'!D8:D231,MATCH('Mars Padalka Calculation'!A35&'Mars Padalka Calculation'!B35&'Mars Padalka Calculation'!C35,'Telething Option List'!A8:A231&'Telething Option List'!B8:B231&'Telething Option List'!C8:C231,0)) -> 0
A36: Body Specifications | B36: Body chambers | C36: =IFERROR(INDEX('Superstrat Option List'!C43:C278,MATCH(#REF!&A36&B36,'Superstrat Option List'!#REF!&'Superstrat Option List'!A43:A278&'Superstrat Option List'!B43:B278,0)),"Select Option") -> Select Option | D36: =INDEX('Telething Option List'!D9:D232,MATCH('Mars Padalka Calculation'!A36&'Mars Padalka Calculation'!B36&'Mars Padalka Calculation'!C36,'Telething Option List'!A9:A232&'Telething Option List'!B9:B232&'Telething Option List'!C9:C232,0)) -> 0
A37: Body Specifications | B37: Top wood | C37: =IFERROR(INDEX('Superstrat Option List'!C44:C278,MATCH(#REF!&A37&B37,'Superstrat Option List'!#REF!&'Superstrat Option List'!A44:A278&'Superstrat Option List'!B44:B278,0)),"Select Option") -> Select Option | D37: =INDEX('Telething Option List'!D10:D233,MATCH('Mars Padalka Calculation'!A37&'Mars Padalka Calculation'!B37&'Mars Padalka Calculation'!C37,'Telething Option List'!A10:A233&'Telething Option List'!B10:B233&'Telething Option List'!C10:C233,0)) -> 0
A38: Body Specifications | B38: Body binding | C38: =IFERROR(INDEX('Superstrat Option List'!C45:C278,MATCH(#REF!&A38&B38,'Superstrat Option List'!#REF!&'Superstrat Option List'!A45:A278&'Superstrat Option List'!B45:B278,0)),"Select Option") -> Select Option | D38: =INDEX('Telething Option List'!D12:D235,MATCH('Mars Padalka Calculation'!A38&'Mars Padalka Calculation'!B38&'Mars Padalka Calculation'!C38,'Telething Option List'!A12:A235&'Telething Option List'!B12:B235&'Telething Option List'!C12:C235,0)) -> 0
A39: Body Specifications | B39: Finish | C39: =IFERROR(INDEX('Superstrat Option List'!C46:C278,MATCH(#REF!&A39&B39,'Superstrat Option List'!#REF!&'Superstrat Option List'!A46:A278&'Superstrat Option List'!B46:B278,0)),"Select Option") -> Select Option | D39: =INDEX('Telething Option List'!D13:D236,MATCH('Mars Padalka Calculation'!A39&'Mars Padalka Calculation'!B39&'Mars Padalka Calculation'!C39,'Telething Option List'!A13:A236&'Telething Option List'!B13:B236&'Telething Option List'!C13:C236,0)) -> 0
A40: Body Specifications | B40: Colour | C40: =IFERROR(INDEX('Superstrat Option List'!C48:C278,MATCH(#REF!&A40&B40,'Superstrat Option List'!#REF!&'Superstrat Option List'!A48:A278&'Superstrat Option List'!B48:B278,0)),"Select Option") -> Select Option | D40: =INDEX('Telething Option List'!D14:D237,MATCH('Mars Padalka Calculation'!A40&'Mars Padalka Calculation'!B40&'Mars Padalka Calculation'!C40,'Telething Option List'!A14:A237&'Telething Option List'!B14:B237&'Telething Option List'!C14:C237,0)) -> 0
B41: Hardware
A42: Hardware | B42: Bridge | C42: =IFERROR(INDEX('Superstrat Option List'!C53:C278,MATCH(#REF!&A42&B42,'Superstrat Option List'!#REF!&'Superstrat Option List'!A53:A278&'Superstrat Option List'!B53:B278,0)),"Select Option") -> Select Option | D42: =INDEX('Telething Option List'!D16:D239,MATCH('Mars Padalka Calculation'!A42&'Mars Padalka Calculation'!B42&'Mars Padalka Calculation'!C42,'Telething Option List'!A16:A239&'Telething Option List'!B16:B239&'Telething Option List'!C16:C239,0)) -> 0
A43: Hardware | B43: Tuning machines | C43: =IFERROR(INDEX('Superstrat Option List'!C57:C278,MATCH(#REF!&A43&B43,'Superstrat Option List'!#REF!&'Superstrat Option List'!A57:A278&'Superstrat Option List'!B57:B278,0)),"Select Option") -> Select Option | D43: =INDEX('Telething Option List'!D17:D240,MATCH('Mars Padalka Calculation'!A43&'Mars Padalka Calculation'!B43&'Mars Padalka Calculation'!C43,'Telething Option List'!A17:A240&'Telething Option List'!B17:B240&'Telething Option List'!C17:C240,0)) -> 0 | G43: =IFERROR(INDEX('Superstrat Option List'!D57:D2360,MATCH(A43&B43&C43,'Superstrat Option List'!A57:A2360&'Superstrat Option List'!B57:B2360&'Superstrat Option List'!C57:C2360,0)),"Please chose option") -> 0
B44: Electronics
A45: Electronics | B45: Neck Pickup | C45: =IFERROR(INDEX('Superstrat Option List'!C61:C278,MATCH(#REF!&A45&B45,'Superstrat Option List'!#REF!&'Superstrat Option List'!A61:A278&'Superstrat Option List'!B61:B278,0)),"Select Option") -> Select Option | D45: =INDEX('Telething Option List'!D5:D228,MATCH('Mars Padalka Calculation'!A45&'Mars Padalka Calculation'!B45&'Mars Padalka Calculation'!C45,'Telething Option List'!A5:A228&'Telething Option List'!B5:B228&'Telething Option List'!C5:C228,0)) -> 0
A46: Electronics | B46: Describe Pickup Model
A47: Electronics | B47: Middle Pickup | C47: =IFERROR(INDEX('Superstrat Option List'!C63:C278,MATCH(#REF!&A47&B47,'Superstrat Option List'!#REF!&'Superstrat Option List'!A63:A278&'Superstrat Option List'!B63:B278,0)),"Select Option") -> Select Option | D47: =INDEX('Telething Option List'!D7:D230,MATCH('Mars Padalka Calculation'!A47&'Mars Padalka Calculation'!B47&'Mars Padalka Calculation'!C47,'Telething Option List'!A7:A230&'Telething Option List'!B7:B230&'Telething Option List'!C7:C230,0)) -> 0
A48: Electronics | B48: Describe Pickup Model
A49: Electronics | B49: Bridge Pickup | C49: =IFERROR(INDEX('Superstrat Option List'!C67:C278,MATCH(#REF!&A49&B49,'Superstrat Option List'!#REF!&'Superstrat Option List'!A67:A278&'Superstrat Option List'!B67:B278,0)),"Select Option") -> Select Option | D49: =INDEX('Telething Option List'!D8:D232,MATCH('Mars Padalka Calculation'!A49&'Mars Padalka Calculation'!B49&'Mars Padalka Calculation'!C49,'Telething Option List'!A8:A232&'Telething Option List'!B8:B232&'Telething Option List'!C8:C232,0)) -> 0
A50: Electronics | B50: Describe Pickup Model
A51: Electronics | B51: Pickup Switch | C51: =IFERROR(INDEX('Superstrat Option List'!C75:C278,MATCH(#REF!&A51&B51,'Superstrat Option List'!#REF!&'Superstrat Option List'!A75:A278&'Superstrat Option List'!B75:B278,0)),"Select Option") -> Select Option | D51: =INDEX('Telething Option List'!D10:D234,MATCH('Mars Padalka Calculation'!A51&'Mars Padalka Calculation'!B51&'Mars Padalka Calculation'!C51,'Telething Option List'!A10:A234&'Telething Option List'!B10:B234&'Telething Option List'!C10:C234,0)) -> 0
A52: Electronics | B52: Piezo Pickups | C52: =IFERROR(INDEX('Superstrat Option List'!C78:C278,MATCH(#REF!&A52&B52,'Superstrat Option List'!#REF!&'Superstrat Option List'!A78:A278&'Superstrat Option List'!B78:B278,0)),"Select Option") -> Select Option | D52: =INDEX('Telething Option List'!D11:D235,MATCH('Mars Padalka Calculation'!A52&'Mars Padalka Calculation'!B52&'Mars Padalka Calculation'!C52,'Telething Option List'!A11:A235&'Telething Option List'!B11:B235&'Telething Option List'!C11:C235,0)) -> 0
A53: Electronics | B53: Pre-amp | C53: =IFERROR(INDEX('Superstrat Option List'!C78:C278,MATCH(#REF!&A53&B53,'Superstrat Option List'!#REF!&'Superstrat Option List'!A78:A278&'Superstrat Option List'!B78:B278,0)),"Select Option") -> Select Option | D53: =INDEX('Telething Option List'!D13:D237,MATCH('Mars Padalka Calculation'!A53&'Mars Padalka Calculation'!B53&'Mars Padalka Calculation'!C53,'Telething Option List'!A13:A237&'Telething Option List'!B13:B237&'Telething Option List'!C13:C237,0)) -> 0
A54: Electronics | B54: Describe Other Pre-amp
B55: Total | D55: =IFERROR(SUM(D3:D54),"select missing option") -> 0
B56: Name:
B57: Country :
B58: Adress :
B59: E-mail :
B60: Phone Number:
B61: Body & Headstock Shapes available in this models
B62: Mars-1 Body Model
B63: Mars-2 Body Model
B64: F-1 Headstock Model
B65: F-2 Headstock Model

Sheet Les Paulthing Option list (hidden)
A1: Group | B1: Description | C1: Options | D1: Rate $ | E1: 2nd Rate | F1: Russian Rates
A2: General Specifications | B2: Model | C2: Select Option | G2: Rate with formula, only change Russian rate
A3: General Specifications | B3: Model | C3: Mercury-1 | D3: =F3*'Exchange Rate Calculation'!$Q$7 -> 916.663 | F3: 55000
A4: General Specifications | B4: Model | C4: Mercury-2 | D4: =F4*'Exchange Rate Calculation'!$Q$7 -> 916.663 | F4: 55000
A5: General Specifications | B5: Number of strings | C5: Select Option
A6: General Specifications | B6: Number of strings | C6: 6 | D6: 0
A7: General Specifications | B7: Number of strings | C7: 7 | D7: 50
A8: General Specifications | B8: Scale length | C8: Select Option
A9: General Specifications | B9: Scale length | C9: 24,75" | D9: 0
A10: General Specifications | B10: Scale length | C10: 25,5" | D10: 0
A11: General Specifications | B11: Scale length | C11: 26" | D11: 0
A12: General Specifications | B12: Scale length | C12: 26,5" | D12: 0
A13: General Specifications | B13: Scale length | C13: 27" | D13: 0
A14: General Specifications | B14: Scale length | C14: 28" | D14: 0
A15: General Specifications | B15: Neck joint construction | C15: Select Option
A16: General Specifications | B16: Neck joint construction | C16: Bolt-on | D16: 0
A17: General Specifications | B17: Neck joint construction | C17: Set neck | D17: =F17*'Exchange Rate Calculation'!$Q$7 -> 49.9998 | F17: 3000
A18: Neck Specifications | B18: Number of frets | C18: Select Option
A19: Neck Specifications | B19: Number of frets | C19: 24 | D19: 0
A20: Neck Specifications | B20: Fretwire | C20: Select Option
A21: Neck Specifications | B21: Fretwire | C21: Jescar stainless steel 2,3x1,4mm | D21: 25
A22: Neck Specifications | B22: Fretwire | C22: Jescar stainless steel 2,5x1,3mm | D22: 25
A23: Neck Specifications | B23: Fretwire | C23: Evo Gold 2,3x1,4mm | D23: 30
A24: Neck Specifications | B24: Fretwire | C24: Jescar nickel-silver 2,3x1,4mm | D24: 10
A25: Neck Specifications | B25: Fretwire | C25: Jescar nickel-silver 2,5x1,3mm | D25: 10
A26: Neck Specifications | B26: Neck pieces | C26: Select Option
A27: Neck Specifications | B27: Neck pieces | C27: 1 | D27: 0
A28: Neck Specifications | B28: Neck pieces | C28: 3 | D28: =F28*'Exchange Rate Calculation'!$Q$7 -> 24.9999 | F28: 1500
A29: Neck Specifications | B29: Neck pieces | C29: 5 | D29: =F29*'Exchange Rate Calculation'!$Q$7 -> 33.3332 | F29: 2000
A30: Neck Specifications | B30: Neck pieces | C30: 7 | D30: =F30*'Exchange Rate Calculation'!$Q$7 -> 49.9998 | F30: 3000
A31: Neck Specifications | B31: Neck pieces | C31: 9 | D31: =F31*'Exchange Rate Calculation'!$Q$7 -> 66.6664 | F31: 4000
A32: Neck Specifications | B32: Neck pieces | C32: 11 | D32: =F32*'Exchange Rate Calculation'!$Q$7 -> 83.333 | F32: 5000
A33: Neck Specifications | B33: Neck wood | C33: Select Option
A34: Neck Specifications | B34: Neck wood | C34: 1 Piece Neck Wood | D34: none | E34: 0
A35: Neck Specifications | B35: Neck wood | C35: 1 Piece Neck Wood | D35: Hard maple | E35: =F35*'Exchange Rate Calculation'!$Q$7 -> 49.9998 | F35: 3000
A36: Neck Specifications | B36: Neck wood | C36: 1 Piece Neck Wood | D36: Curly maple | E36: 120
A37: Neck Specifications | B37: Neck wood | C37: 1 Piece Neck Wood | D37: African mahogany | E37: 50
A38: Neck Specifications | B38: Neck wood | C38: 1 Piece Neck Wood | D38: Bird`s eye maple | E38: 140
A39: Neck Specifications | B39: Neck wood | C39: 1 Piece Neck Wood | D39: Rosewood | E39: 150
A40: Neck Specifications | B40: Neck wood | C40: 1 Piece Neck Wood | D40: Padouk | E40: 50
A41: Neck Specifications | B41: Neck wood | C41: 1 Piece Neck Wood | D41: Other ( contact for price ) | E41: 0
A42: Neck Specifications | B42: Neck wood | C42: Select Option
A43: Neck Specifications | B43: Neck wood | C43: Multi-piece Neck Base Wood | D43: none | E43: 0
A44: Neck Specifications | B44: Neck wood | C44: Multi-piece Neck Base Wood | D44: Hard maple | E44: 40
A45: Neck Specifications | B45: Neck wood | C45: Multi-piece Neck Base Wood | D45: Curly maple | E45: 100
A46: Neck Specifications | B46: Neck wood | C46: Multi-piece Neck Base Wood | D46: African mahogany | E46: 50
A47: Neck Specifications | B47: Neck wood | C47: Multi-piece Neck Base Wood | D47: Rosewood | E47: 150
A48: Neck Specifications | B48: Neck wood | C48: Multi-piece Neck Base Wood | D48: Padouk | E48: 50
A49: Neck Specifications | B49: Neck wood | C49: Multi-piece Neck Base Wood | D49: Sapele | E49: 50
A50: Neck Specifications | B50: Neck wood | C50: Multi-piece Neck Base Wood | D50: Limba | E50: 50
A51: Neck Specifications | B51: Neck wood | C51: Multi-piece Neck Base Wood | D51: Walnut | E51: 70
A52: Neck Specifications | B52: Neck wood | C52: Multi-piece Neck Base Wood | D52: Wenge | E52: 70
A53: Neck Specifications | B53: Neck wood | C53: Multi-piece Neck Base Wood | D53: Purpleheart | E53: 70
A54: Neck Specifications | B54: Neck wood | C54: Multi-piece Neck Base Wood | D54: Other ( contact for price ) | E54: 0
A55: Neck Specifications | B55: Neck wood | C55: Select Option
A56: Neck Specifications | B56: Neck wood | C56: Multi-piece Neck Thins Wood | D56: none | E56: 0
A57: Neck Specifications | B57: Neck wood | C57: Multi-piece Neck Thins Wood | D57: Hard maple | E57: 20
A58: Neck Specifications | B58: Neck wood | C58: Multi-piece Neck Thins Wood | D58: Padouk | E58: 25
A59: Neck Specifications | B59: Neck wood | C59: Multi-piece Neck Thins Wood | D59: African mahogany | E59: 25
A60: Neck Specifications | B60: Neck wood | C60: Multi-piece Neck Thins Wood | D60: Bubinga | E60: 25
A61: Neck Specifications | B61: Neck wood | C61: Multi-piece Neck Thins Wood | D61: Sapele | E61: 25
A62: Neck Specifications | B62: Neck wood | C62: Multi-piece Neck Thins Wood | D62: Limba | E62: 35
A63: Neck Specifications | B63: Neck wood | C63: Multi-piece Neck Thins Wood | D63: Walnut | E63: 35
A64: Neck Specifications | B64: Neck wood | C64: Multi-piece Neck Thins Wood | D64: Wenge | E64: 35
A65: Neck Specifications | B65: Neck wood | C65: Multi-piece Neck Thins Wood | D65: Purpleheart | E65: 35
A66: Neck Specifications | B66: Neck wood | C66: Multi-piece Neck Thins Wood | D66: Other ( contact for price ) | E66: 0
A67: Neck Specifications | B67: Fretboard wood | C67: Select Option
A68: Neck Specifications | B68: Fretboard wood | C68: Rosewood | D68: 40
A69: Neck Specifications | B69: Fretboard wood | C69: Cocobolo | D69: 80
A70: Neck Specifications | B70: Fretboard wood | C70: Ebony | D70: 65
A71: Neck Specifications | B71: Fretboard wood | C71: Macassar | D71: 65
A72: Neck Specifications | B72: Fretboard wood | C72: Hard maple | D72: 10
A73: Neck Specifications | B73: Fretboard wood | C73: Bird`s eye maple | D73: 100
A74: Neck Specifications | B74: Fretboard wood | C74: Curly maple | D74: 80
A75: Neck Specifications | B75: Fretboard wood | C75: Purpleheart | D75: 40
A76: Neck Specifications | B76: Fretboard wood | C76: Other exotic wood (contact for the price) | D76: 0
A77: Neck Specifications | B77: Fretboard radius | C77: Select Option
A78: Neck Specifications | B78: Fretboard radius | C78: 10" | D78: 0
A79: Neck Specifications | B79: Fretboard radius | C79: 12" | D79: 0
A80: Neck Specifications | B80: Fretboard radius | C80: 16" | D80: 0
A81: Neck Specifications | B81: Fretboard radius | C81: 20" | D81: 0
A82: Neck Specifications | B82: Fretboard radius | C82: Compound radius | D82: =F82*'Exchange Rate Calculation'!$Q$7 -> 116.6662 | F82: 7000
A83: Neck Specifications | B83: Headstock shape | C83: Select Option
A84: Neck Specifications | B84: Headstock shape | C84: ML | D84: 0
A85: Neck Specifications | B85: Headstock finish | C85: Select Option
A86: Neck Specifications | B86: Headstock finish | C86: Matching top with veneer | D86: =F86*'Exchange Rate Calculation'!$Q$7 -> 8.3333 | F86: 500
A87: Neck Specifications | B87: Headstock finish | C87: Clear | D87: 0
A88: Neck Specifications | B88: Headstock binding | C88: Select Option
A89: Neck Specifications | B89: Headstock binding | C89: None | D89: 0
A90: Neck Specifications | B90: Headstock binding | C90: Scraped binding | D90: 0
A91: Neck Specifications | B91: Headstock binding | C91: Binding 1 ply | D91: =F91*'Exchange Rate Calculation'!$Q$7 -> 38.33318 | F91: 2300
A92: Neck Specifications | B92: Headstock binding | C92: Binding 3 ply | D92: =F92*'Exchange Rate Calculation'!$Q$7 -> 63.33308 | F92: 3800
A93: Neck Specifications | B93: Fretboard binding | C93: Select Option
A94: Neck Specifications | B94: Fretboard binding | C94: None | D94: 0
A95: Neck Specifications | B95: Fretboard binding | C95: Binding 1 ply | D95: =F95*'Exchange Rate Calculation'!$Q$7 -> 46.66648 | F95: 2800
A96: Neck Specifications | B96: Fretboard binding | C96: Binding 3 ply | D96: =F96*'Exchange Rate Calculation'!$Q$7 -> 78.33302 | F96: 4700
A97: Neck Specifications | B97: Fretboard inlays | C97: Select Option
A98: Neck Specifications | B98: Fretboard inlays | C98: None | D98: 0
A99: Neck Specifications | B99: Fretboard inlays | C99: MOP dots 4mm | D99: 13
A100: Neck Specifications | B100: Fretboard inlays | C100: MOP dots 6mm | D100: 18
A101: Neck Specifications | B101: Fretboard inlays | C101: MOP triangles 5mm | D101: =F101*'Exchange Rate Calculation'!$Q$7 -> 38.33318 | F101: 2300
A102: Neck Specifications | B102: Fretboard inlays | C102: Aluminium rings | D102: =F102*'Exchange Rate Calculation'!$Q$7 -> 41.6665 | F102: 2500
A103: Neck Specifications | B103: Fretboard inlays | C103: Custom design "simple" | D103: =F103*'Exchange Rate Calculation'!$Q$7 -> 58.3331 | F103: 3500
A104: Neck Specifications | B104: Fretboard inlays | C104: Custom design "medium" | D104: =F104*'Exchange Rate Calculation'!$Q$7 -> 108.3329 | F104: 6500
A105: Neck Specifications | B105: Fretboard inlays | C105: Custom design "complicated" | D105: =F105*'Exchange Rate Calculation'!$Q$7 -> 153.33272 | F105: 9200
A106: Neck Specifications | B106: Side markers | C106: Select Option
A107: Neck Specifications | B107: Side markers | C107: None | D107: 0
A108: Neck Specifications | B108: Side markers | C108: Plastic dots 2mm | D108: 0
A109: Neck Specifications | B109: Side markers | C109: MOP dots 2mm | D109: 5
A110: Neck Specifications | B110: Side markers | C110: Luminlay 3mm | D110: 25
A111: Neck Specifications | B111: Side markers | C111: Plastic blocks | D111: =F111*'Exchange Rate Calculation'!$Q$7 -> 49.9998 | F111: 3000
A112: Neck Specifications | B112: Side markers | C112: MOP blocks | D112: =F112*'Exchange Rate Calculation'!$Q$7 -> 54.99978 | F112: 3300
A113: Body Specifications | B113: Body wood | C113: Select Option
A114: Body Specifications | B114: Body wood | C114: Alder | D114: =F114*'Exchange Rate Calculation'!$Q$7 -> 49.9998 | F114: 3000
A115: Body Specifications | B115: Body wood | C115: White ash | D115: =F115*'Exchange Rate Calculation'!$Q$7 -> 49.9998 | F115: 3000
A116: Body Specifications | B116: Body wood | C116: Swamp ash | D116: 260
A117: Body Specifications | B117: Body wood | C117: African mahogany | D117: 100
A118: Body Specifications | B118: Body wood | C118: Basswood | D118: 45
A119: Body Specifications | B119: Body wood | C119: Limba | D119: 250
A120: Body Specifications | B120: Body wood | C120: Sapele | D120: 100
A121: Body Specifications | B121: Front body carvings | C121: Select Option
A122: Body Specifications | B122: Front body carvings | C122: Carved top | D122: 0
A123: Body Specifications | B123: Body chambers | C123: Select Option
A124: Body Specifications | B124: Body chambers | C124: None | D124: 0
A125: Body Specifications | B125: Body chambers | C125: Weight reducing chambers (only with top) | D125: 60
A126: Body Specifications | B126: Top wood | C126: Select Option
A127: Body Specifications | B127: Top wood | C127: None | D127: 0
A128: Body Specifications | B128: Top wood | C128: White ash 16mm | D128: =F128*'Exchange Rate Calculation'!$Q$7 -> 83.333 | F128: 5000
A129: Body Specifications | B129: Top wood | C129: Hard maple 16mm | D129: =F129*'Exchange Rate Calculation'!$Q$7 -> 83.333 | F129: 5000
A130: Body Specifications | B130: Top wood | C130: Flame maple 16mm | D130: 310
A131: Body Specifications | B131: Top wood | C131: Quilted maple 16mm | D131: 340
A132: Body Specifications | B132: Top wood | C132: Walnut | D132: 160
A133: Body Specifications | B133: Top wood | C133: Purpleheart | D133: 200
A134: Body Specifications | B134: Top wood | C134: Other exotic wood (contact for the price) | D134: 0
A135: Body Specifications | B135: Body binding | C135: Select Option
A136: Body Specifications | B136: Body binding | C136: None | D136: 0
A137: Body Specifications | B137: Body binding | C137: Scraped binding | D137: =F137*'Exchange Rate Calculation'!$Q$7 -> 8.3333 | F137: 500
A138: Body Specifications | B138: Body binding | C138: Binding 1 ply | D138: =F138*'Exchange Rate Calculation'!$Q$7 -> 49.9998 | F138: 3000
A139: Body Specifications | B139: Body binding | C139: Binding 3 ply | D139: =F139*'Exchange Rate Calculation'!$Q$7 -> 91.6663 | F139: 5500
A140: Body Specifications | B140: Finish | C140: Select Option
A141: Body Specifications | B141: Finish | C141: Satin open pores | D141: =F141*'Exchange Rate Calculation'!$Q$7 -> 8.3333 | F141: 500
A142: Body Specifications | B142: Finish | C142: Oil | D142: =F142*'Exchange Rate Calculation'!$Q$7 -> 83.333 | F142: 5000
A143: Body Specifications | B143: Finish | C143: Gloss (bolt-on) | D143: =F143*'Exchange Rate Calculation'!$Q$7 -> 158.3327 | F143: 9500
A144: Body Specifications | B144: Finish | C144: Gloss (set neck) | D144: =F144*'Exchange Rate Calculation'!$Q$7 -> 208.3325 | F144: 12500
A145: Body Specifications | B145: Finish | C145: Gloss top (bolt-on) | D145: =F145*'Exchange Rate Calculation'!$Q$7 -> 66.6664 | F145: 4000
A146: Body Specifications | B146: Finish | C146: Gloss top (set neck) | D146: =F146*'Exchange Rate Calculation'!$Q$7 -> 83.333 | F146: 5000
A147: Body Specifications | B147: Colour | C147: Select Option
A148: Body Specifications | B148: Colour | C148: Clear | D148: 0
A149: Body Specifications | B149: Colour | C149: Uniform colour | D149: =F149*'Exchange Rate Calculation'!$Q$7 -> 16.6666 | F149: 1000
A150: Body Specifications | B150: Colour | C150: Burst | D150: =F150*'Exchange Rate Calculation'!$Q$7 -> 33.3332 | F150: 2000
A151: Body Specifications | B151: Colour | C151: Painted pores (top and headstock) | D151: =F151*'Exchange Rate Calculation'!$Q$7 -> 33.3332 | F151: 2000
A152: Body Specifications | B152: Colour | C152: Painted pores (body and headstock) | D152: =F152*'Exchange Rate Calculation'!$Q$7 -> 66.6664 | F152: 4000
A153: Hardware | B153: Bridge | C153: Select Option
A154: Hardware | B154: Bridge | C154: 6str. Hipshot hardtail Black | D154: 85
A155: Hardware | B155: Bridge | C155: 6str.Hipshot hardtail Chrome | D155: 85
A156: Hardware | B156: Bridge | C156: 6str.Hipshot hardtail Gold | D156: 110.5
A157: Hardware | B157: Bridge | C157: 6str.T-O-M Tonepros Black | D157: 75
A158: Hardware | B158: Bridge | C158: 6str.T-O-M Tonepros Chrome | D158: 75
A159: Hardware | B159: Bridge | C159: 6str.T-O-M Tonepros Gold | D159: 97.5
A160: Hardware | B160: Bridge | C160: 6str.T-O-M & Stopbar Tonepros Black | D160: 135
A161: Hardware | B161: Bridge | C161: 6str.T-O-M & Stopbar Tonepros Chrome | D161: 135
A162: Hardware | B162: Bridge | C162: 6str.T-O-M & Stopbar Tonepros Gold | D162: 175.5
A163: Hardware | B163: Bridge | C163: 6str.Floyd Rose Chrome | D163: 165
A164: Hardware | B164: Bridge | C164: 6str.Floyd Rose Black | D164: 180
A165: Hardware | B165: Bridge | C165: 6str.Floyd Rose Gold | D165: 195
A166: Hardware | B166: Bridge | C166: 7str.Hipshot hardtail Black | D166: 95
A167: Hardware | B167: Bridge | C167: 7str.Hipshot hardtail Chrome | D167: 95
A168: Hardware | B168: Bridge | C168: 7str.Hipshot hardtail Gold | D168: 123.5
A169: Hardware | B169: Bridge | C169: 7str.T-O-M Tonepros Black | D169: 85
A170: Hardware | B170: Bridge | C170: 7str.T-O-M Tonepros Chrome | D170: 85
A171: Hardware | B171: Bridge | C171: 7str.T-O-M Tonepros Gold | D171: 110.5
A172: Hardware | B172: Bridge | C172: 7str.T-O-M & Stopbar Tonepros Black | D172: 155
A173: Hardware | B173: Bridge | C173: 7str.T-O-M & Stopbar Tonepros Chrome | D173: 155
A174: Hardware | B174: Bridge | C174: 7str.T-O-M & Stopbar Tonepros Gold | D174: 201.5
A175: Hardware | B175: Bridge | C175: 7str.Floyd Rose Chrome | D175: 220
A176: Hardware | B176: Bridge | C176: 7str.Floyd Rose Black | D176: 230
A177: Hardware | B177: Bridge | C177: 7str.Floyd Rose Gold | D177: 250
A178: Hardware | B178: Bridge | C178: Other ( contact for price ) | D178: 0
A179: Hardware | B179: Tuning machines | C179: Select Option
A180: Hardware | B180: Tuning machines | C180: None | D180: 0
A181: Hardware | B181: Tuning machines | C181: Hipshot Griplock chrome | D181: 11
A182: Hardware | B182: Tuning machines | C182: Hipshot Griplock black | D182: 12
A183: Hardware | B183: Tuning machines | C183: Hipshot Griplock gold | D183: 13
A184: Hardware | B184: Tuning machines | C184: Gotoh SG381 non-locking Black | D184: 9
A185: Hardware | B185: Tuning machines | C185: Gotoh SG381 non-locking Chrome | D185: 9
A186: Hardware | B186: Tuning machines | C186: Gotoh SG381 non-locking Gold | D186: 11.7
A187: Electronics | B187: Neck Pickup | C187: Select Option
A188: Electronics | B188: Neck Pickup | C188: None | D188: 0
A189: Electronics | B189: Neck Pickup | C189: ARB 6st Humb | D189: 70
A190: Electronics | B190: Neck Pickup | C190: ARB 7st Humb | D190: 80
A191: Electronics | B191: Neck Pickup | C191: Fokin pickups 6st Humb | D191: 65
A192: Electronics | B192: Neck Pickup | C192: Fokin pickups 7st Humb | D192: 70
A193: Electronics | B193: Neck Pickup | C193: Dimarzio 6st Humb | D193: 110
A194: Electronics | B194: Neck Pickup | C194: Dimarzio 7st Humb | D194: 110
A195: Electronics | B195: Neck Pickup | C195: Seymour duncan 6st Humb | D195: 90
A196: Electronics | B196: Neck Pickup | C196: Seymour duncan 7st Humb | D196: 115
A197: Electronics | B197: Neck Pickup | C197: BKP 6st Humb | D197: 125
A198: Electronics | B198: Neck Pickup | C198: BKP 7st Humb | D198: 130
A199: Electronics | B199: Neck Pickup | C199: Fishman Fluence Modern | D199: 175
A200: Electronics | B200: Neck Pickup | C200: ARB Singlecoil | D200: 60
... 51 more rows

Sheet Mercury Padalka Calculation (hidden)
B5: Specifications
A6: Part | B6: Description | C6: Choosen option | D6: Cost
A7: General Specifications | B7: General Specifications
A8: General Specifications | B8: Model | C8: =IFERROR(INDEX('Superstrat Option List'!C2:C278,MATCH(#REF!&A8&B8,'Superstrat Option List'!#REF!&'Superstrat Option List'!A2:A278&'Superstrat Option List'!B2:B278,0)),"Select Option") -> Select Option | D8: =INDEX('Les Paulthing Option list'!D2:D251,MATCH('Mercury Padalka Calculation'!A8&'Mercury Padalka Calculation'!B8&'Mercury Padalka Calculation'!C8,'Les Paulthing Option list'!A2:A251&'Les Paulthing Option list'!B2:B251&'Les Paulthing Option list'!C2:C251,0)) -> 0
A9: General Specifications | B9: Number of Strings | C9: =IFERROR(INDEX('Superstrat Option List'!C3:C278,MATCH(#REF!&A9&B9,'Superstrat Option List'!#REF!&'Superstrat Option List'!A3:A278&'Superstrat Option List'!B3:B278,0)),"Select Option") -> Select Option | D9: =IFERROR(INDEX('Superstrat Option List'!D3:D1929,MATCH(A9&B9&C9,'Superstrat Option List'!A3:A1929&'Superstrat Option List'!B3:B1929&'Superstrat Option List'!C3:C1929,0)),"Please choose option") -> 0
A10: General Specifications | B10: Scale Length | C10: =IFERROR(INDEX('Superstrat Option List'!C4:C278,MATCH(#REF!&A10&B10,'Superstrat Option List'!#REF!&'Superstrat Option List'!A4:A278&'Superstrat Option List'!B4:B278,0)),"Select Option") -> Select Option | D10: =IFERROR(INDEX('Superstrat Option List'!D4:D1930,MATCH(A10&B10&C10,'Superstrat Option List'!A4:A1930&'Superstrat Option List'!B4:B1930&'Superstrat Option List'!C4:C1930,0)),"Please choose option") -> 0
A11: General Specifications | B11: Neck Joint Construction | C11: =IFERROR(INDEX('Superstrat Option List'!C6:C278,MATCH(#REF!&A11&B11,'Superstrat Option List'!#REF!&'Superstrat Option List'!A6:A278&'Superstrat Option List'!B6:B278,0)),"Select Option") -> Select Option | D11: =IFERROR(INDEX('Superstrat Option List'!D6:D1932,MATCH(A11&B11&C11,'Superstrat Option List'!A6:A1932&'Superstrat Option List'!B6:B1932&'Superstrat Option List'!C6:C1932,0)),"Please choose option") -> 0
B13: Neck Specifications
A14: Neck Specifications | B14: Number of frets | C14: =IFERROR(INDEX('Superstrat Option List'!C7:C278,MATCH(#REF!&A14&B14,'Superstrat Option List'!#REF!&'Superstrat Option List'!A7:A278&'Superstrat Option List'!B7:B278,0)),"Select Option") -> Select Option | D14: =IFERROR(INDEX('Superstrat Option List'!D10:D1936,MATCH(A14&B14&C14,'Superstrat Option List'!A10:A1936&'Superstrat Option List'!B10:B1936&'Superstrat Option List'!C10:C1936,0)),"Please choose option") -> 0
A15: Neck Specifications | B15: Fretwire | C15: =IFERROR(INDEX('Superstrat Option List'!C7:C278,MATCH(#REF!&A15&B15,'Superstrat Option List'!#REF!&'Superstrat Option List'!A7:A278&'Superstrat Option List'!B7:B278,0)),"Select Option") -> Select Option | D15: =IFERROR(INDEX('Superstrat Option List'!D11:D1937,MATCH(A15&B15&C15,'Superstrat Option List'!A11:A1937&'Superstrat Option List'!B11:B1937&'Superstrat Option List'!C11:C1937,0)),"Please choose option") -> 0
A16: Neck Specifications | B16: Neck pieces | C16: =IFERROR(INDEX('Superstrat Option List'!C7:C278,MATCH(#REF!&A16&B16,'Superstrat Option List'!#REF!&'Superstrat Option List'!A7:A278&'Superstrat Option List'!B7:B278,0)),"Select Option") -> Select Option | D16: =IFERROR(INDEX('Superstrat Option List'!D12:D1938,MATCH(A16&B16&C16,'Superstrat Option List'!A12:A1938&'Superstrat Option List'!B12:B1938&'Superstrat Option List'!C12:C1938,0)),"Please choose option") -> 0
B17: Neck wood
B18: Select option below for 1 piece neck
A19: Neck Specifications | B19: 1 Piece Neck Wood | C19: =INDEX('Superstrat Option List'!D2:D278,MATCH(A19&$B$17&B19,'Superstrat Option List'!A2:A278&'Superstrat Option List'!B2:B278&'Superstrat Option List'!C2:C278,0)) -> Select Option | D19: =IFERROR(INDEX('Superstrat Option List'!E14:E1941,MATCH(A19&$B$17&B19&C19,'Superstrat Option List'!A14:A1941&'Superstrat Option List'!B14:B1941&'Superstrat Option List'!C14:C1941&'Superstrat Option List'!D14:D1941,0)),"Please choose option") -> 0
B20: Select options below for Multi-piece neck
A21: Neck Specifications | B21: Multi-piece Neck Base Wood | C21: =INDEX('Superstrat Option List'!D4:D280,MATCH(A21&$B$17&B21,'Superstrat Option List'!A4:A280&'Superstrat Option List'!B4:B280&'Superstrat Option List'!C4:C280,0)) -> Select Option | D21: =IFERROR(INDEX('Superstrat Option List'!E16:E1943,MATCH(A21&$B$17&B21&C21,'Superstrat Option List'!A16:A1943&'Superstrat Option List'!B16:B1943&'Superstrat Option List'!C16:C1943&'Superstrat Option List'!D16:D1943,0)),"Please choose option") -> 0
A22: Neck Specifications | B22: Multi-piece Neck Thins Wood | C22: =INDEX('Superstrat Option List'!D5:D281,MATCH(A22&$B$17&B22,'Superstrat Option List'!A5:A281&'Superstrat Option List'!B5:B281&'Superstrat Option List'!C5:C281,0)) -> Select Option | D22: =IFERROR(INDEX('Superstrat Option List'!E17:E1944,MATCH(A22&$B$17&B22&C22,'Superstrat Option List'!A17:A1944&'Superstrat Option List'!B17:B1944&'Superstrat Option List'!C17:C1944&'Superstrat Option List'!D17:D1944,0)),"Please choose option") -> 0
A23: Neck Specifications | B23: Multi-piece Neck Thins Wood | C23: =INDEX('Superstrat Option List'!D6:D282,MATCH(A23&$B$17&B23,'Superstrat Option List'!A6:A282&'Superstrat Option List'!B6:B282&'Superstrat Option List'!C6:C282,0)) -> Select Option | D23: =IFERROR(INDEX('Superstrat Option List'!E18:E1945,MATCH(A23&$B$17&B23&C23,'Superstrat Option List'!A18:A1945&'Superstrat Option List'!B18:B1945&'Superstrat Option List'!C18:C1945&'Superstrat Option List'!D18:D1945,0)),"Please choose option") -> 0
A24: Neck Specifications | B24: Multi-piece Neck Thins Wood | C24: =INDEX('Superstrat Option List'!D7:D283,MATCH(A24&$B$17&B24,'Superstrat Option List'!A7:A283&'Superstrat Option List'!B7:B283&'Superstrat Option List'!C7:C283,0)) -> Select Option | D24: =IFERROR(INDEX('Superstrat Option List'!E19:E1946,MATCH(A24&$B$17&B24&C24,'Superstrat Option List'!A19:A1946&'Superstrat Option List'!B19:B1946&'Superstrat Option List'!C19:C1946&'Superstrat Option List'!D19:D1946,0)),"Please choose option") -> 0
A25: Neck Specifications | B25: Multi-piece Neck Thins Wood | C25: =INDEX('Superstrat Option List'!D8:D284,MATCH(A25&$B$17&B25,'Superstrat Option List'!A8:A284&'Superstrat Option List'!B8:B284&'Superstrat Option List'!C8:C284,0)) -> Select Option | D25: =IFERROR(INDEX('Superstrat Option List'!E21:E1947,MATCH(A25&$B$17&B25&C25,'Superstrat Option List'!A21:A1947&'Superstrat Option List'!B21:B1947&'Superstrat Option List'!C21:C1947&'Superstrat Option List'!D21:D1947,0)),"Please choose option") -> 0
A26: Neck Specifications | B26: Multi-piece Neck Thins Wood | C26: =INDEX('Superstrat Option List'!D9:D285,MATCH(A26&$B$17&B26,'Superstrat Option List'!A9:A285&'Superstrat Option List'!B9:B285&'Superstrat Option List'!C9:C285,0)) -> Select Option | D26: =IFERROR(INDEX('Superstrat Option List'!E22:E1948,MATCH(A26&$B$17&B26&C26,'Superstrat Option List'!A22:A1948&'Superstrat Option List'!B22:B1948&'Superstrat Option List'!C22:C1948&'Superstrat Option List'!D22:D1948,0)),"Please choose option") -> 0
B28: Fretboard Specifications
A29: Neck Specifications | B29: Fretboard wood | C29: =IFERROR(INDEX('Superstrat Option List'!C29:C278,MATCH(#REF!&A29&B29,'Superstrat Option List'!#REF!&'Superstrat Option List'!A29:A278&'Superstrat Option List'!B29:B278,0)),"Select Option") -> Select Option | D29: =IFERROR(INDEX('Superstrat Option List'!D28:D1952,MATCH(A29&B29&C29,'Superstrat Option List'!A28:A1952&'Superstrat Option List'!B28:B1952&'Superstrat Option List'!C28:C1952,0)),"Please choose option") -> 0
A30: Neck Specifications | B30: Fretboard radius | C30: =IFERROR(INDEX('Superstrat Option List'!C29:C278,MATCH(#REF!&A30&B30,'Superstrat Option List'!#REF!&'Superstrat Option List'!A29:A278&'Superstrat Option List'!B29:B278,0)),"Select Option") -> Select Option | D30: =IFERROR(INDEX('Superstrat Option List'!D29:D1953,MATCH(A30&B30&C30,'Superstrat Option List'!A29:A1953&'Superstrat Option List'!B29:B1953&'Superstrat Option List'!C29:C1953,0)),"Please choose option") -> 0
A31: Neck Specifications
A32: Neck Specifications | B32: Fretboard binding | C32: =IFERROR(INDEX('Superstrat Option List'!C30:C278,MATCH(#REF!&A32&B32,'Superstrat Option List'!#REF!&'Superstrat Option List'!A30:A278&'Superstrat Option List'!B30:B278,0)),"Select Option") -> Select Option | D32: =IFERROR(INDEX('Superstrat Option List'!D29:D1955,MATCH(A32&B32&C32,'Superstrat Option List'!A29:A1955&'Superstrat Option List'!B29:B1955&'Superstrat Option List'!C29:C1955,0)),"Please choose option") -> 0
A33: Neck Specifications | B33: Fretboard inlays | C33: =IFERROR(INDEX('Superstrat Option List'!C30:C278,MATCH(#REF!&A33&B33,'Superstrat Option List'!#REF!&'Superstrat Option List'!A30:A278&'Superstrat Option List'!B30:B278,0)),"Select Option") -> Select Option | D33: =IFERROR(INDEX('Superstrat Option List'!D30:D1956,MATCH(A33&B33&C33,'Superstrat Option List'!A30:A1956&'Superstrat Option List'!B30:B1956&'Superstrat Option List'!C30:C1956,0)),"Please choose option") -> 0
A34: Neck Specifications | B34: Side markers | C34: =IFERROR(INDEX('Superstrat Option List'!C31:C278,MATCH(#REF!&A34&B34,'Superstrat Option List'!#REF!&'Superstrat Option List'!A31:A278&'Superstrat Option List'!B31:B278,0)),"Select Option") -> Select Option | D34: =IFERROR(INDEX('Superstrat Option List'!D30:D1957,MATCH(A34&B34&C34,'Superstrat Option List'!A30:A1957&'Superstrat Option List'!B30:B1957&'Superstrat Option List'!C30:C1957,0)),"Please choose option") -> 0
B36: Headstock Specifications
A37: Neck Specifications | B37: Headstock shape | C37: =IFERROR(INDEX('Superstrat Option List'!C34:C278,MATCH(#REF!&A37&B37,'Superstrat Option List'!#REF!&'Superstrat Option List'!A34:A278&'Superstrat Option List'!B34:B278,0)),"Select Option") -> Select Option | D37: =INDEX('Les Paulthing Option list'!D2:D251,MATCH('Mercury Padalka Calculation'!A37&'Mercury Padalka Calculation'!B37&'Mercury Padalka Calculation'!C37,'Les Paulthing Option list'!A2:A251&'Les Paulthing Option list'!B2:B251&'Les Paulthing Option list'!C2:C251,0)) -> 0
A38: Neck Specifications | B38: Headstock finish | C38: =IFERROR(INDEX('Superstrat Option List'!C38:C278,MATCH(#REF!&A38&B38,'Superstrat Option List'!#REF!&'Superstrat Option List'!A38:A278&'Superstrat Option List'!B38:B278,0)),"Select Option") -> Select Option | D38: =INDEX('Les Paulthing Option list'!D3:D252,MATCH('Mercury Padalka Calculation'!A38&'Mercury Padalka Calculation'!B38&'Mercury Padalka Calculation'!C38,'Les Paulthing Option list'!A3:A252&'Les Paulthing Option list'!B3:B252&'Les Paulthing Option list'!C3:C252,0)) -> 0
A39: Neck Specifications | B39: Headstock binding | C39: =IFERROR(INDEX('Superstrat Option List'!C38:C278,MATCH(#REF!&A39&B39,'Superstrat Option List'!#REF!&'Superstrat Option List'!A38:A278&'Superstrat Option List'!B38:B278,0)),"Select Option") -> Select Option | D39: =INDEX('Les Paulthing Option list'!D4:D253,MATCH('Mercury Padalka Calculation'!A39&'Mercury Padalka Calculation'!B39&'Mercury Padalka Calculation'!C39,'Les Paulthing Option list'!A4:A253&'Les Paulthing Option list'!B4:B253&'Les Paulthing Option list'!C4:C253,0)) -> 0
B41: Body Specifications
A42: Body Specifications | B42: Body wood | C42: =IFERROR(INDEX('Superstrat Option List'!C39:C278,MATCH(#REF!&A42&B42,'Superstrat Option List'!#REF!&'Superstrat Option List'!A39:A278&'Superstrat Option List'!B39:B278,0)),"Select Option") -> Select Option | D42: =INDEX('Les Paulthing Option list'!D7:D256,MATCH('Mercury Padalka Calculation'!A42&'Mercury Padalka Calculation'!B42&'Mercury Padalka Calculation'!C42,'Les Paulthing Option list'!A7:A256&'Les Paulthing Option list'!B7:B256&'Les Paulthing Option list'!C7:C256,0)) -> 0
A43: Body Specifications | B43: Front body carvings | C43: =IFERROR(INDEX('Superstrat Option List'!C41:C278,MATCH(#REF!&A43&B43,'Superstrat Option List'!#REF!&'Superstrat Option List'!A41:A278&'Superstrat Option List'!B41:B278,0)),"Select Option") -> Select Option | D43: =INDEX('Les Paulthing Option list'!D8:D257,MATCH('Mercury Padalka Calculation'!A43&'Mercury Padalka Calculation'!B43&'Mercury Padalka Calculation'!C43,'Les Paulthing Option list'!A8:A257&'Les Paulthing Option list'!B8:B257&'Les Paulthing Option list'!C8:C257,0)) -> 0
A44: Body Specifications | B44: Body chambers | C44: =IFERROR(INDEX('Superstrat Option List'!C43:C278,MATCH(#REF!&A44&B44,'Superstrat Option List'!#REF!&'Superstrat Option List'!A43:A278&'Superstrat Option List'!B43:B278,0)),"Select Option") -> Select Option | D44: =INDEX('Les Paulthing Option list'!D10:D259,MATCH('Mercury Padalka Calculation'!A44&'Mercury Padalka Calculation'!B44&'Mercury Padalka Calculation'!C44,'Les Paulthing Option list'!A10:A259&'Les Paulthing Option list'!B10:B259&'Les Paulthing Option list'!C10:C259,0)) -> 0
A45: Body Specifications | B45: Top wood | C45: Select Option | D45: =INDEX('Les Paulthing Option list'!D11:D260,MATCH('Mercury Padalka Calculation'!A45&'Mercury Padalka Calculation'!B45&'Mercury Padalka Calculation'!C45,'Les Paulthing Option list'!A11:A260&'Les Paulthing Option list'!B11:B260&'Les Paulthing Option list'!C11:C260,0)) -> 0
A46: Body Specifications | B46: Body binding | C46: =IFERROR(INDEX('Superstrat Option List'!C45:C278,MATCH(#REF!&A46&B46,'Superstrat Option List'!#REF!&'Superstrat Option List'!A45:A278&'Superstrat Option List'!B45:B278,0)),"Select Option") -> Select Option | D46: =IFERROR(INDEX('Superstrat Option List'!D44:D1970,MATCH(A46&B46&C46,'Superstrat Option List'!A44:A1970&'Superstrat Option List'!B44:B1970&'Superstrat Option List'!C44:C1970,0)),"Please choose option") -> 0
A47: Body Specifications | B47: Finish | C47: =IFERROR(INDEX('Superstrat Option List'!C46:C278,MATCH(#REF!&A47&B47,'Superstrat Option List'!#REF!&'Superstrat Option List'!A46:A278&'Superstrat Option List'!B46:B278,0)),"Select Option") -> Select Option | D47: =IFERROR(INDEX('Superstrat Option List'!D45:D1971,MATCH(A47&B47&C47,'Superstrat Option List'!A45:A1971&'Superstrat Option List'!B45:B1971&'Superstrat Option List'!C45:C1971,0)),"Please choose option") -> 0
A48: Body Specifications | B48: Colour | C48: =IFERROR(INDEX('Superstrat Option List'!C48:C278,MATCH(#REF!&A48&B48,'Superstrat Option List'!#REF!&'Superstrat Option List'!A48:A278&'Superstrat Option List'!B48:B278,0)),"Select Option") -> Select Option | D48: =IFERROR(INDEX('Superstrat Option List'!D47:D1973,MATCH(A48&B48&C48,'Superstrat Option List'!A47:A1973&'Superstrat Option List'!B47:B1973&'Superstrat Option List'!C47:C1973,0)),"Please choose option") -> 0
A49: Body Specifications
B50: Special upcharge | D50: =IF(C49>=F50,G50,0) -> 0 | F50: White | G50: 50
B52: Hardware
A53: Hardware | B53: Bridge | C53: =IFERROR(INDEX('Superstrat Option List'!C53:C278,MATCH(#REF!&A53&B53,'Superstrat Option List'!#REF!&'Superstrat Option List'!A53:A278&'Superstrat Option List'!B53:B278,0)),"Select Option") -> Select Option | D53: =INDEX('Les Paulthing Option list'!D2:D251,MATCH('Mercury Padalka Calculation'!A53&'Mercury Padalka Calculation'!B53&'Mercury Padalka Calculation'!C53,'Les Paulthing Option list'!A2:A251&'Les Paulthing Option list'!B2:B251&'Les Paulthing Option list'!C2:C251,0)) -> 0
A54: Hardware | B54: Tuning machines | C54: =IFERROR(INDEX('Superstrat Option List'!C57:C278,MATCH(#REF!&A54&B54,'Superstrat Option List'!#REF!&'Superstrat Option List'!A57:A278&'Superstrat Option List'!B57:B278,0)),"Select Option") -> Select Option | D54: =IFERROR(F54*C9,"$0,00") -> $0,00 | F54: =IFERROR(INDEX('Superstrat Option List'!D57:D2360,MATCH(A54&B54&C54,'Superstrat Option List'!A57:A2360&'Superstrat Option List'!B57:B2360&'Superstrat Option List'!C57:C2360,0)),"Please chose option") -> 0
B56: Electronics
A57: Electronics | B57: Neck Pickup | C57: =IFERROR(INDEX('Superstrat Option List'!C61:C278,MATCH(#REF!&A57&B57,'Superstrat Option List'!#REF!&'Superstrat Option List'!A61:A278&'Superstrat Option List'!B61:B278,0)),"Select Option") -> Select Option | D57: =IFERROR(INDEX('Superstrat Option List'!D61:D1984,MATCH(A57&B57&C57,'Superstrat Option List'!A61:A1984&'Superstrat Option List'!B61:B1984&'Superstrat Option List'!C61:C1984,0)),"Please choose option") -> 0
A58: Electronics | B58: Describe Pickup Model
A59: Electronics | B59: Middle Pickup | C59: =IFERROR(INDEX('Superstrat Option List'!C63:C278,MATCH(#REF!&A59&B59,'Superstrat Option List'!#REF!&'Superstrat Option List'!A63:A278&'Superstrat Option List'!B63:B278,0)),"Select Option") -> Select Option | D59: =IFERROR(INDEX('Superstrat Option List'!D63:D1986,MATCH(A59&B59&C59,'Superstrat Option List'!A63:A1986&'Superstrat Option List'!B63:B1986&'Superstrat Option List'!C63:C1986,0)),"Please choose option") -> 0
A60: Electronics | B60: Describe Pickup Model
A61: Electronics | B61: Bridge Pickup | C61: =IFERROR(INDEX('Superstrat Option List'!C67:C278,MATCH(#REF!&A61&B61,'Superstrat Option List'!#REF!&'Superstrat Option List'!A67:A278&'Superstrat Option List'!B67:B278,0)),"Select Option") -> Select Option | D61: =IFERROR(INDEX('Superstrat Option List'!D67:D1988,MATCH(A61&B61&C61,'Superstrat Option List'!A67:A1988&'Superstrat Option List'!B67:B1988&'Superstrat Option List'!C67:C1988,0)),"Please choose option") -> 0
A62: Electronics | B62: Describe Pickup Model
A63: Electronics | B63: Pickup Switch | C63: =IFERROR(INDEX('Superstrat Option List'!C75:C278,MATCH(#REF!&A63&B63,'Superstrat Option List'!#REF!&'Superstrat Option List'!A75:A278&'Superstrat Option List'!B75:B278,0)),"Select Option") -> Select Option | D63: =IFERROR(INDEX('Superstrat Option List'!D74:D1990,MATCH(A63&B63&C63,'Superstrat Option List'!A74:A1990&'Superstrat Option List'!B74:B1990&'Superstrat Option List'!C74:C1990,0)),"Please choose option") -> 0
A64: Electronics | B64: Piezo Pickups | C64: =IFERROR(INDEX('Superstrat Option List'!C78:C278,MATCH(#REF!&A64&B64,'Superstrat Option List'!#REF!&'Superstrat Option List'!A78:A278&'Superstrat Option List'!B78:B278,0)),"Select Option") -> Select Option | D64: =IFERROR(INDEX('Superstrat Option List'!D75:D1991,MATCH(A64&B64&C64,'Superstrat Option List'!A75:A1991&'Superstrat Option List'!B75:B1991&'Superstrat Option List'!C75:C1991,0)),"Please choose option") -> 0
A65: Electronics | B65: Pre-amp | C65: =IFERROR(INDEX('Superstrat Option List'!C78:C278,MATCH(#REF!&A65&B65,'Superstrat Option List'!#REF!&'Superstrat Option List'!A78:A278&'Superstrat Option List'!B78:B278,0)),"Select Option") -> Select Option | D65: =IFERROR(INDEX('Superstrat Option List'!D78:D1993,MATCH(A65&B65&C65,'Superstrat Option List'!A78:A1993&'Superstrat Option List'!B78:B1993&'Superstrat Option List'!C78:C1993,0)),"Please choose option") -> 0
A66: Electronics | B66: Describe Other Pre-amp
B68: Total | D68: =IFERROR(SUM(D8:D67),"Please select missing option") -> 0
B69: Name:
B70: Country :
B71: Adress :
B72: E-mail :
B73: Phone Number:
B74: Body & Headstock Shapes available in this models
B75: Mercury-1 Body Model
B76: Mercury-2 Body Model
B77: ML Headstock Model

Sheet Ennea Guitar Option list (hidden)
A1: Group | B1: Description | C1: Options | D1: Rate $ | E1: 2nd Rate | F1: Russian Rate
A2: General Specifications | B2: Model | C2: Select Option | G2: Rate with formula, only change Russian rate
A3: General Specifications | B3: Model | C3: Ennea Guitar | D3: =F3*'Exchange Rate Calculation'!$Q$7 -> 999.996 | F3: 60000
A4: General Specifications | B4: Number of strings | C4: Select Option
A5: General Specifications | B5: Number of strings | C5: 6 | D5: 0
A6: General Specifications | B6: Number of strings | C6: 7 | D6: 50
A7: General Specifications | B7: Scale length | C7: Select Option
A8: General Specifications | B8: Scale length | C8: 25,5" | D8: 0
A9: General Specifications | B9: Scale length | C9: 26" | D9: 0
A10: General Specifications | B10: Scale length | C10: 26,5" | D10: 0
A11: General Specifications | B11: Scale length | C11: 27" | D11: 0
A12: General Specifications | B12: Scale length | C12: 28" | D12: 0
A13: General Specifications | B13: Neck joint construction | C13: Select Option
A14: General Specifications | B14: Neck joint construction | C14: Set neck | D14: 60
A15: Neck Specifications | B15: Number of frets | C15: Select Option
A16: Neck Specifications | B16: Number of frets | C16: 24 | D16: 0
A17: Neck Specifications | B17: Fretwire | C17: Select Option
A18: Neck Specifications | B18: Fretwire | C18: Jescar stainless steel 2,3x1,4mm | D18: 25
A19: Neck Specifications | B19: Fretwire | C19: Jescar stainless steel 2,5x1,3mm | D19: 25
A20: Neck Specifications | B20: Fretwire | C20: Evo Gold 2,3x1,4mm | D20: 30
A21: Neck Specifications | B21: Fretwire | C21: Jescar nickel-silver 2,3x1,4mm | D21: 10
A22: Neck Specifications | B22: Fretwire | C22: Jescar nickel-silver 2,5x1,3mm | D22: 10
A23: Neck Specifications | B23: Neck pieces | C23: Select Option
A24: Neck Specifications | B24: Neck pieces | C24: 1 | D24: 0
A25: Neck Specifications | B25: Neck pieces | C25: 3 | D25: =F25*'Exchange Rate Calculation'!$Q$7 -> 24.9999 | F25: 1500
A26: Neck Specifications | B26: Neck pieces | C26: 5 | D26: =F26*'Exchange Rate Calculation'!$Q$7 -> 33.3332 | F26: 2000
A27: Neck Specifications | B27: Neck pieces | C27: 7 | D27: =F27*'Exchange Rate Calculation'!$Q$7 -> 49.9998 | F27: 3000
A28: Neck Specifications | B28: Neck pieces | C28: 9 | D28: =F28*'Exchange Rate Calculation'!$Q$7 -> 66.6664 | F28: 4000
A29: Neck Specifications | B29: Neck pieces | C29: 11 | D29: =F29*'Exchange Rate Calculation'!$Q$7 -> 83.333 | F29: 5000
A30: Neck Specifications | B30: Neck wood | C30: Select Option
A31: Neck Specifications | B31: Neck wood | C31: 1 Piece Neck Wood | D31: none | E31: 0
A32: Neck Specifications | B32: Neck wood | C32: 1 Piece Neck Wood | D32: Hard maple | E32: =F32*'Exchange Rate Calculation'!$Q$7 -> 49.9998 | F32: 3000
A33: Neck Specifications | B33: Neck wood | C33: 1 Piece Neck Wood | D33: Curly maple | E33: 120
A34: Neck Specifications | B34: Neck wood | C34: 1 Piece Neck Wood | D34: African mahogany | E34: 50
A35: Neck Specifications | B35: Neck wood | C35: 1 Piece Neck Wood | D35: Bird`s eye maple | E35: 140
A36: Neck Specifications | B36: Neck wood | C36: 1 Piece Neck Wood | D36: Rosewood | E36: 150
A37: Neck Specifications | B37: Neck wood | C37: 1 Piece Neck Wood | D37: Padouk | E37: 50
A38: Neck Specifications | B38: Neck wood | C38: 1 Piece Neck Wood | D38: Other ( contact for price ) | E38: 0
A39: Neck Specifications | B39: Neck wood | C39: Select Option
A40: Neck Specifications | B40: Neck wood | C40: Multi-piece Neck Base Wood | D40: none | E40: 0
A41: Neck Specifications | B41: Neck wood | C41: Multi-piece Neck Base Wood | D41: Hard maple | E41: 40
A42: Neck Specifications | B42: Neck wood | C42: Multi-piece Neck Base Wood | D42: Curly maple | E42: 100
A43: Neck Specifications | B43: Neck wood | C43: Multi-piece Neck Base Wood | D43: African mahogany | E43: 50
A44: Neck Specifications | B44: Neck wood | C44: Multi-piece Neck Base Wood | D44: Rosewood | E44: 150
A45: Neck Specifications | B45: Neck wood | C45: Multi-piece Neck Base Wood | D45: Padouk | E45: 50
A46: Neck Specifications | B46: Neck wood | C46: Multi-piece Neck Base Wood | D46: Sapele | E46: 50
A47: Neck Specifications | B47: Neck wood | C47: Multi-piece Neck Base Wood | D47: Limba | E47: 50
A48: Neck Specifications | B48: Neck wood | C48: Multi-piece Neck Base Wood | D48: Walnut | E48: 70
A49: Neck Specifications | B49: Neck wood | C49: Multi-piece Neck Base Wood | D49: Wenge | E49: 70
A50: Neck Specifications | B50: Neck wood | C50: Multi-piece Neck Base Wood | D50: Purpleheart | E50: 70
A51: Neck Specifications | B51: Neck wood | C51: Multi-piece Neck Base Wood | D51: Other ( contact for price ) | E51: 0
A52: Neck Specifications | B52: Neck wood | C52: Select Option
A53: Neck Specifications | B53: Neck wood | C53: Multi-piece Neck Thins Wood | D53: none | E53: 0
A54: Neck Specifications | B54: Neck wood | C54: Multi-piece Neck Thins Wood | D54: Hard maple | E54: 20
A55: Neck Specifications | B55: Neck wood | C55: Multi-piece Neck Thins Wood | D55: Padouk | E55: 25
A56: Neck Specifications | B56: Neck wood | C56: Multi-piece Neck Thins Wood | D56: African mahogany | E56: 25
A57: Neck Specifications | B57: Neck wood | C57: Multi-piece Neck Thins Wood | D57: Bubinga | E57: 25
A58: Neck Specifications | B58: Neck wood | C58: Multi-piece Neck Thins Wood | D58: Sapele | E58: 25
A59: Neck Specifications | B59: Neck wood | C59: Multi-piece Neck Thins Wood | D59: Limba | E59: 35
A60: Neck Specifications | B60: Neck wood | C60: Multi-piece Neck Thins Wood | D60: Walnut | E60: 35
A61: Neck Specifications | B61: Neck wood | C61: Multi-piece Neck Thins Wood | D61: Wenge | E61: 35
A62: Neck Specifications | B62: Neck wood | C62: Multi-piece Neck Thins Wood | D62: Purpleheart | E62: 35
A63: Neck Specifications | B63: Neck wood | C63: Multi-piece Neck Thins Wood | D63: Other ( contact for price ) | E63: 0
A64: Neck Specifications | B64: Fretboard wood | C64: Select Option
A65: Neck Specifications | B65: Fretboard wood | C65: Rosewood | D65: 40
A66: Neck Specifications | B66: Fretboard wood | C66: Cocobolo | D66: 80
A67: Neck Specifications | B67: Fretboard wood | C67: Ebony | D67: 65
A68: Neck Specifications | B68: Fretboard wood | C68: Macassar | D68: 65
A69: Neck Specifications | B69: Fretboard wood | C69: Hard maple | D69: 10
A70: Neck Specifications | B70: Fretboard wood | C70: Bird`s eye maple | D70: 100
A71: Neck Specifications | B71: Fretboard wood | C71: Curly maple | D71: 80
A72: Neck Specifications | B72: Fretboard wood | C72: Purpleheart | D72: 40
A73: Neck Specifications | B73: Fretboard wood | C73: Other exotic wood (contact for the price) | D73: 0
A74: Neck Specifications | B74: Fretboard radius | C74: Select Option
A75: Neck Specifications | B75: Fretboard radius | C75: 10" | D75: 0
A76: Neck Specifications | B76: Fretboard radius | C76: 12" | D76: 0
A77: Neck Specifications | B77: Fretboard radius | C77: 16" | D77: 0
A78: Neck Specifications | B78: Fretboard radius | C78: 20" | D78: 0
A79: Neck Specifications | B79: Fretboard radius | C79: Compound radius | D79: =F79*'Exchange Rate Calculation'!$Q$7 -> 116.6662 | F79: 7000
A80: Neck Specifications | B80: Headstock shape | C80: Select Option
A81: Neck Specifications | B81: Headstock shape | C81: Ennea | D81: 0
A82: Neck Specifications | B82: Headstock finish | C82: Select Option
A83: Neck Specifications | B83: Headstock finish | C83: Matching top with veneer | D83: =F83*'Exchange Rate Calculation'!$Q$7 -> 8.3333 | F83: 500
A84: Neck Specifications | B84: Headstock finish | C84: Clear | D84: 0
A85: Neck Specifications | B85: Fretboard binding | C85: Select Option
A86: Neck Specifications | B86: Fretboard binding | C86: None | D86: 0
A87: Neck Specifications | B87: Fretboard binding | C87: Binding 1 ply | D87: =F87*'Exchange Rate Calculation'!$Q$7 -> 46.66648 | F87: 2800
A88: Neck Specifications | B88: Fretboard binding | C88: Binding 3 ply | D88: =F88*'Exchange Rate Calculation'!$Q$7 -> 78.33302 | F88: 4700
A89: Neck Specifications | B89: Fretboard inlays | C89: Select Option
A90: Neck Specifications | B90: Fretboard inlays | C90: None | D90: 0
A91: Neck Specifications | B91: Fretboard inlays | C91: MOP dots 4mm | D91: 13
A92: Neck Specifications | B92: Fretboard inlays | C92: MOP dots 6mm | D92: 18
A93: Neck Specifications | B93: Fretboard inlays | C93: MOP triangles 5mm | D93: =F93*'Exchange Rate Calculation'!$Q$7 -> 38.33318 | F93: 2300
A94: Neck Specifications | B94: Fretboard inlays | C94: Aluminium rings | D94: =F94*'Exchange Rate Calculation'!$Q$7 -> 41.6665 | F94: 2500
A95: Neck Specifications | B95: Fretboard inlays | C95: Custom design "simple" | D95: =F95*'Exchange Rate Calculation'!$Q$7 -> 58.3331 | F95: 3500
A96: Neck Specifications | B96: Fretboard inlays | C96: Custom design "medium" | D96: =F96*'Exchange Rate Calculation'!$Q$7 -> 108.3329 | F96: 6500
A97: Neck Specifications | B97: Fretboard inlays | C97: Custom design "complicated" | D97: =F97*'Exchange Rate Calculation'!$Q$7 -> 153.33272 | F97: 9200
A98: Neck Specifications | B98: Side markers | C98: Select Option
A99: Neck Specifications | B99: Side markers | C99: None | D99: 0
A100: Neck Specifications | B100: Side markers | C100: Plastic dots 2mm | D100: 0
A101: Neck Specifications | B101: Side markers | C101: MOP dots 2mm | D101: 5
A102: Neck Specifications | B102: Side markers | C102: Luminlay 3mm | D102: 25
A103: Neck Specifications | B103: Side markers | C103: Plastic blocks | D103: =F103*'Exchange Rate Calculation'!$Q$7 -> 49.9998 | F103: 3000
A104: Neck Specifications | B104: Side markers | C104: MOP blocks | D104: =F104*'Exchange Rate Calculation'!$Q$7 -> 54.99978 | F104: 3300
A105: Body Specifications | B105: Body wood | C105: Select Option
A106: Body Specifications | B106: Body wood | C106: Alder | D106: =F106*'Exchange Rate Calculation'!$Q$7 -> 49.9998 | F106: 3000
A107: Body Specifications | B107: Body wood | C107: White ash | D107: =F107*'Exchange Rate Calculation'!$Q$7 -> 49.9998 | F107: 3000
A108: Body Specifications | B108: Body wood | C108: Swamp ash | D108: 260
A109: Body Specifications | B109: Body wood | C109: African mahogany | D109: 100
A110: Body Specifications | B110: Body wood | C110: Basswood | D110: 45
A111: Body Specifications | B111: Body wood | C111: Limba | D111: 250
A112: Body Specifications | B112: Body wood | C112: Sapele | D112: 100
A113: Body Specifications | B113: Finish | C113: Select Option
A114: Body Specifications | B114: Finish | C114: Satin open pores | D114: =F114*'Exchange Rate Calculation'!$Q$7 -> 8.3333 | F114: 500
A115: Body Specifications | B115: Finish | C115: Oil | D115: =F115*'Exchange Rate Calculation'!$Q$7 -> 83.333 | F115: 5000
A116: Body Specifications | B116: Finish | C116: Gloss (bolt-on) | D116: =F116*'Exchange Rate Calculation'!$Q$7 -> 158.3327 | F116: 9500
A117: Body Specifications | B117: Finish | C117: Gloss (set neck) | D117: =F117*'Exchange Rate Calculation'!$Q$7 -> 208.3325 | F117: 12500
A118: Body Specifications | B118: Finish | C118: Gloss top (bolt-on) | D118: =F118*'Exchange Rate Calculation'!$Q$7 -> 66.6664 | F118: 4000
A119: Body Specifications | B119: Finish | C119: Gloss top (set neck) | D119: =F119*'Exchange Rate Calculation'!$Q$7 -> 83.333 | F119: 5000
A120: Body Specifications | B120: Colour | C120: Select Option
A121: Body Specifications | B121: Colour | C121: Clear | D121: 0
A122: Body Specifications | B122: Colour | C122: Uniform colour | D122: =F122*'Exchange Rate Calculation'!$Q$7 -> 16.6666 | F122: 1000
A123: Body Specifications | B123: Colour | C123: Burst | D123: =F123*'Exchange Rate Calculation'!$Q$7 -> 33.3332 | F123: 2000
A124: Body Specifications | B124: Colour | C124: Painted pores (top and headstock) | D124: =F124*'Exchange Rate Calculation'!$Q$7 -> 33.3332 | F124: 2000
A125: Body Specifications | B125: Colour | C125: Painted pores (body and headstock) | D125: =F125*'Exchange Rate Calculation'!$Q$7 -> 66.6664 | F125: 4000
A126: Hardware | B126: Bridge | C126: Select Option
A127: Hardware | B127: Bridge | C127: None | D127: 0
A128: Hardware | B128: Bridge | C128: 6str. Hipshot hardtail Black | D128: 85
A129: Hardware | B129: Bridge | C129: 6str.Hipshot hardtail Chrome | D129: 85
A130: Hardware | B130: Bridge | C130: 6str.Hipshot hardtail Gold | D130: 110.5
A131: Hardware | B131: Bridge | C131: 7str.Hipshot hardtail Black | D131: 95
A132: Hardware | B132: Bridge | C132: 7str.Hipshot hardtail Chrome | D132: 95
A133: Hardware | B133: Bridge | C133: 7str.Hipshot hardtail Gold | D133: 123.5
A134: Hardware | B134: Bridge | C134: 8str.Hipshot hardtail Black | D134: 100
A135: Hardware | B135: Bridge | C135: 8str.Hipshot hardtail Chrome | D135: 100
A136: Hardware | B136: Bridge | C136: 8str.Hipshot hardtail Gold | D136: 130
A137: Hardware | B137: Bridge | C137: Other ( contact for price ) | D137: 0
A138: Hardware | B138: Tuning machines | C138: Select Option
A139: Hardware | B139: Tuning machines | C139: None | D139: 0
A140: Hardware | B140: Tuning machines | C140: Hipshot Griplock chrome | D140: 11
A141: Hardware | B141: Tuning machines | C141: Hipshot Griplock black | D141: 12
A142: Hardware | B142: Tuning machines | C142: Hipshot Griplock gold | D142: 13
A143: Hardware | B143: Tuning machines | C143: Gotoh SG381 non-locking Black | D143: 9
A144: Hardware | B144: Tuning machines | C144: Gotoh SG381 non-locking Chrome | D144: 9
A145: Hardware | B145: Tuning machines | C145: Gotoh SG381 non-locking Gold | D145: 11.7
A146: Electronics | B146: Neck Pickup | C146: Select Option
A147: Electronics | B147: Neck Pickup | C147: None | D147: 0
A148: Electronics | B148: Neck Pickup | C148: ARB 6st Humb | D148: 70
A149: Electronics | B149: Neck Pickup | C149: ARB 7st Humb | D149: 80
A150: Electronics | B150: Neck Pickup | C150: ARB 8st Humb | D150: 85
A151: Electronics | B151: Neck Pickup | C151: Fokin pickups 6st Humb | D151: 65
A152: Electronics | B152: Neck Pickup | C152: Fokin pickups 7st Humb | D152: 70
A153: Electronics | B153: Neck Pickup | C153: Fokin pickups 8st Humb | D153: 80
A154: Electronics | B154: Neck Pickup | C154: Dimarzio 6st Humb | D154: 110
A155: Electronics | B155: Neck Pickup | C155: Dimarzio 7st Humb | D155: 110
A156: Electronics | B156: Neck Pickup | C156: Seymour duncan 6st Humb | D156: 90
A157: Electronics | B157: Neck Pickup | C157: Seymour duncan 7st Humb | D157: 115
A158: Electronics | B158: Neck Pickup | C158: BKP 6st Humb | D158: 125
A159: Electronics | B159: Neck Pickup | C159: BKP 7st Humb | D159: 130
A160: Electronics | B160: Neck Pickup | C160: BKP 8st Humb | D160: 145
A161: Electronics | B161: Neck Pickup | C161: Fishman Fluence Modern | D161: 175
A162: Electronics | B162: Neck Pickup | C162: ARB Singlecoil | D162: 60
A163: Electronics | B163: Neck Pickup | C163: Fokin pickups 6 str Singlecoil | D163: 50
A164: Electronics | B164: Neck Pickup | C164: Fokin pickups 7 str Singlecoil | D164: 55
A165: Electronics | B165: Neck Pickup | C165: Dimarzio Singlecoil | D165: 100
A166: Electronics | B166: Neck Pickup | C166: Seymour duncan Singlecoil | D166: 85
A167: Electronics | B167: Neck Pickup | C167: BKP 6st Singlecoil | D167: 95
A168: Electronics | B168: Neck Pickup | C168: BKP 7st Singlecoil | D168: 105
A169: Electronics | B169: Neck Pickup | C169: Other ( contact for price ) | D169: 0
A170: Electronics | B170: Middle Pickup | C170: Select Option
A171: Electronics | B171: Middle Pickup | C171: None | D171: 0
A172: Electronics | B172: Middle Pickup | C172: ARB Singlecoil | D172: 60
A173: Electronics | B173: Middle Pickup | C173: Fokin pickups 6 str Singlecoil | D173: 50
A174: Electronics | B174: Middle Pickup | C174: Fokin pickups 7 str Singlecoil | D174: 55
A175: Electronics | B175: Middle Pickup | C175: Dimarzio Singlecoil | D175: 100
A176: Electronics | B176: Middle Pickup | C176: Seymour duncan Singlecoil | D176: 85
A177: Electronics | B177: Middle Pickup | C177: BKP 6st Singlecoil | D177: 95
A178: Electronics | B178: Middle Pickup | C178: BKP 7st Singlecoil | D178: 105
A179: Electronics | B179: Middle Pickup | C179: Other ( contact for price ) | D179: 0
A180: Electronics | B180: Bridge Pickup | C180: Select Option
A181: Electronics | B181: Bridge Pickup | C181: None | D181: 0
A182: Electronics | B182: Bridge Pickup | C182: ARB 6st Humb | D182: 70
A183: Electronics | B183: Bridge Pickup | C183: ARB 7st Humb | D183: 80
A184: Electronics | B184: Bridge Pickup | C184: ARB 8st Humb | D184: 85
A185: Electronics | B185: Bridge Pickup | C185: Fokin pickups 6st Humb | D185: 65
A186: Electronics | B186: Bridge Pickup | C186: Fokin pickups 7st Humb | D186: 70
A187: Electronics | B187: Bridge Pickup | C187: Fokin pickups 8st Humb | D187: 80
A188: Electronics | B188: Bridge Pickup | C188: Dimarzio 6st Humb | D188: 110
A189: Electronics | B189: Bridge Pickup | C189: Dimarzio 7st Humb | D189: 110
A190: Electronics | B190: Bridge Pickup | C190: Seymour duncan 6st Humb | D190: 90
A191: Electronics | B191: Bridge Pickup | C191: Seymour duncan 7st Humb | D191: 115
A192: Electronics | B192: Bridge Pickup | C192: BKP 6st Humb | D192: 125
A193: Electronics | B193: Bridge Pickup | C193: BKP 7st Humb | D193: 130
A194: Electronics | B194: Bridge Pickup | C194: BKP 8st Humb | D194: 145
A195: Electronics | B195: Bridge Pickup | C195: Fishman Fluence Modern | D195: 175
A196: Electronics | B196: Bridge Pickup | C196: ARB Singlecoil | D196: 60
A197: Electronics | B197: Bridge Pickup | C197: Fokin pickups 6 str Singlecoil | D197: 50
A198: Electronics | B198: Bridge Pickup | C198: Fokin pickups 7 str Singlecoil | D198: 55
A199: Electronics | B199: Bridge Pickup | C199: Dimarzio Singlecoil | D199: 100
A200: Electronics | B200: Bridge Pickup | C200: Seymour duncan Singlecoil | D200: 85
... 16 more rows

Sheet Ennea Guitar Padalka Calculatio (hidden)
B5: Specifications
A6: Part | B6: Description | C6: Choosen option | D6: Cost
A7: General Specifications | B7: General Specifications
A8: General Specifications | B8: Model | C8: =IFERROR(INDEX('Superstrat Option List'!C2:C278,MATCH(#REF!&A8&B8,'Superstrat Option List'!#REF!&'Superstrat Option List'!A2:A278&'Superstrat Option List'!B2:B278,0)),"Select Option") -> Select Option | D8: =INDEX('Ennea Guitar Option list'!D2:D216,MATCH('Ennea Guitar Padalka Calculatio'!A8&'Ennea Guitar Padalka Calculatio'!B8&'Ennea Guitar Padalka Calculatio'!C8,'Ennea Guitar Option list'!A2:A216&'Ennea Guitar Option list'!B2:B216&'Ennea Guitar Option list'!C2:C216,0)) -> 0
A9: General Specifications | B9: Number of Strings | C9: =IFERROR(INDEX('Superstrat Option List'!C3:C278,MATCH(#REF!&A9&B9,'Superstrat Option List'!#REF!&'Superstrat Option List'!A3:A278&'Superstrat Option List'!B3:B278,0)),"Select Option") -> Select Option | D9: =IFERROR(INDEX('Superstrat Option List'!D3:D1929,MATCH(A9&B9&C9,'Superstrat Option List'!A3:A1929&'Superstrat Option List'!B3:B1929&'Superstrat Option List'!C3:C1929,0)),"Please choose option") -> 0
A10: General Specifications | B10: Scale Length | C10: =IFERROR(INDEX('Superstrat Option List'!C4:C278,MATCH(#REF!&A10&B10,'Superstrat Option List'!#REF!&'Superstrat Option List'!A4:A278&'Superstrat Option List'!B4:B278,0)),"Select Option") -> Select Option | D10: =IFERROR(INDEX('Superstrat Option List'!D4:D1930,MATCH(A10&B10&C10,'Superstrat Option List'!A4:A1930&'Superstrat Option List'!B4:B1930&'Superstrat Option List'!C4:C1930,0)),"Please choose option") -> 0
A11: General Specifications | B11: Neck Joint Construction | C11: =IFERROR(INDEX('Superstrat Option List'!C6:C278,MATCH(#REF!&A11&B11,'Superstrat Option List'!#REF!&'Superstrat Option List'!A6:A278&'Superstrat Option List'!B6:B278,0)),"Select Option") -> Select Option | D11: =IFERROR(INDEX('Superstrat Option List'!D6:D1932,MATCH(A11&B11&C11,'Superstrat Option List'!A6:A1932&'Superstrat Option List'!B6:B1932&'Superstrat Option List'!C6:C1932,0)),"Please choose option") -> 0
B12: Neck Specifications
A13: Neck Specifications | B13: Number of frets | C13: =IFERROR(INDEX('Superstrat Option List'!C7:C278,MATCH(#REF!&A13&B13,'Superstrat Option List'!#REF!&'Superstrat Option List'!A7:A278&'Superstrat Option List'!B7:B278,0)),"Select Option") -> Select Option | D13: =IFERROR(INDEX('Superstrat Option List'!D10:D1936,MATCH(A13&B13&C13,'Superstrat Option List'!A10:A1936&'Superstrat Option List'!B10:B1936&'Superstrat Option List'!C10:C1936,0)),"Please choose option") -> 0
A14: Neck Specifications | B14: Fretwire | C14: =IFERROR(INDEX('Superstrat Option List'!C7:C278,MATCH(#REF!&A14&B14,'Superstrat Option List'!#REF!&'Superstrat Option List'!A7:A278&'Superstrat Option List'!B7:B278,0)),"Select Option") -> Select Option | D14: =IFERROR(INDEX('Superstrat Option List'!D11:D1937,MATCH(A14&B14&C14,'Superstrat Option List'!A11:A1937&'Superstrat Option List'!B11:B1937&'Superstrat Option List'!C11:C1937,0)),"Please choose option") -> 0
A15: Neck Specifications | B15: Neck pieces | C15: =IFERROR(INDEX('Superstrat Option List'!C7:C278,MATCH(#REF!&A15&B15,'Superstrat Option List'!#REF!&'Superstrat Option List'!A7:A278&'Superstrat Option List'!B7:B278,0)),"Select Option") -> Select Option | D15: =IFERROR(INDEX('Superstrat Option List'!D12:D1938,MATCH(A15&B15&C15,'Superstrat Option List'!A12:A1938&'Superstrat Option List'!B12:B1938&'Superstrat Option List'!C12:C1938,0)),"Please choose option") -> 0
B16: Neck wood
B17: Select option below for 1 piece neck
A18: Neck Specifications | B18: 1 Piece Neck Wood | C18: =INDEX('Superstrat Option List'!D2:D278,MATCH(A18&$B$16&B18,'Superstrat Option List'!A2:A278&'Superstrat Option List'!B2:B278&'Superstrat Option List'!C2:C278,0)) -> Select Option | D18: =IFERROR(INDEX('Superstrat Option List'!E14:E1941,MATCH(A18&$B$16&B18&C18,'Superstrat Option List'!A14:A1941&'Superstrat Option List'!B14:B1941&'Superstrat Option List'!C14:C1941&'Superstrat Option List'!D14:D1941,0)),"Please choose option") -> 0
B19: Select options below for Multi-piece neck
A20: Neck Specifications | B20: Multi-piece Neck Base Wood | C20: =INDEX('Superstrat Option List'!D4:D280,MATCH(A20&$B$16&B20,'Superstrat Option List'!A4:A280&'Superstrat Option List'!B4:B280&'Superstrat Option List'!C4:C280,0)) -> Select Option | D20: =IFERROR(INDEX('Superstrat Option List'!E16:E1943,MATCH(A20&$B$16&B20&C20,'Superstrat Option List'!A16:A1943&'Superstrat Option List'!B16:B1943&'Superstrat Option List'!C16:C1943&'Superstrat Option List'!D16:D1943,0)),"Please choose option") -> 0
A21: Neck Specifications | B21: Multi-piece Neck Thins Wood | C21: =INDEX('Superstrat Option List'!D5:D281,MATCH(A21&$B$16&B21,'Superstrat Option List'!A5:A281&'Superstrat Option List'!B5:B281&'Superstrat Option List'!C5:C281,0)) -> Select Option | D21: =IFERROR(INDEX('Superstrat Option List'!E17:E1944,MATCH(A21&$B$16&B21&C21,'Superstrat Option List'!A17:A1944&'Superstrat Option List'!B17:B1944&'Superstrat Option List'!C17:C1944&'Superstrat Option List'!D17:D1944,0)),"Please choose option") -> 0
A22: Neck Specifications | B22: Multi-piece Neck Thins Wood | C22: =INDEX('Superstrat Option List'!D6:D282,MATCH(A22&$B$16&B22,'Superstrat Option List'!A6:A282&'Superstrat Option List'!B6:B282&'Superstrat Option List'!C6:C282,0)) -> Select Option | D22: =IFERROR(INDEX('Superstrat Option List'!E18:E1945,MATCH(A22&$B$16&B22&C22,'Superstrat Option List'!A18:A1945&'Superstrat Option List'!B18:B1945&'Superstrat Option List'!C18:C1945&'Superstrat Option List'!D18:D1945,0)),"Please choose option") -> 0
A23: Neck Specifications | B23: Multi-piece Neck Thins Wood | C23: =INDEX('Superstrat Option List'!D7:D283,MATCH(A23&$B$16&B23,'Superstrat Option List'!A7:A283&'Superstrat Option List'!B7:B283&'Superstrat Option List'!C7:C283,0)) -> Select Option | D23: =IFERROR(INDEX('Superstrat Option List'!E19:E1946,MATCH(A23&$B$16&B23&C23,'Superstrat Option List'!A19:A1946&'Superstrat Option List'!B19:B1946&'Superstrat Option List'!C19:C1946&'Superstrat Option List'!D19:D1946,0)),"Please choose option") -> 0
A24: Neck Specifications | B24: Multi-piece Neck Thins Wood | C24: =INDEX('Superstrat Option List'!D8:D284,MATCH(A24&$B$16&B24,'Superstrat Option List'!A8:A284&'Superstrat Option List'!B8:B284&'Superstrat Option List'!C8:C284,0)) -> Select Option | D24: =IFERROR(INDEX('Superstrat Option List'!E21:E1947,MATCH(A24&$B$16&B24&C24,'Superstrat Option List'!A21:A1947&'Superstrat Option List'!B21:B1947&'Superstrat Option List'!C21:C1947&'Superstrat Option List'!D21:D1947,0)),"Please choose option") -> 0
A25: Neck Specifications | B25: Multi-piece Neck Thins Wood | C25: =INDEX('Superstrat Option List'!D9:D285,MATCH(A25&$B$16&B25,'Superstrat Option List'!A9:A285&'Superstrat Option List'!B9:B285&'Superstrat Option List'!C9:C285,0)) -> Select Option | D25: =IFERROR(INDEX('Superstrat Option List'!E22:E1948,MATCH(A25&$B$16&B25&C25,'Superstrat Option List'!A22:A1948&'Superstrat Option List'!B22:B1948&'Superstrat Option List'!C22:C1948&'Superstrat Option List'!D22:D1948,0)),"Please choose option") -> 0
B27: Fretboard Specifications
A28: Neck Specifications | B28: Fretboard wood | C28: =IFERROR(INDEX('Superstrat Option List'!C29:C278,MATCH(#REF!&A28&B28,'Superstrat Option List'!#REF!&'Superstrat Option List'!A29:A278&'Superstrat Option List'!B29:B278,0)),"Select Option") -> Select Option | D28: =IFERROR(INDEX('Superstrat Option List'!D28:D1952,MATCH(A28&B28&C28,'Superstrat Option List'!A28:A1952&'Superstrat Option List'!B28:B1952&'Superstrat Option List'!C28:C1952,0)),"Please choose option") -> 0
A29: Neck Specifications | B29: Fretboard radius | C29: =IFERROR(INDEX('Superstrat Option List'!C29:C278,MATCH(#REF!&A29&B29,'Superstrat Option List'!#REF!&'Superstrat Option List'!A29:A278&'Superstrat Option List'!B29:B278,0)),"Select Option") -> Select Option | D29: =IFERROR(INDEX('Superstrat Option List'!D29:D1953,MATCH(A29&B29&C29,'Superstrat Option List'!A29:A1953&'Superstrat Option List'!B29:B1953&'Superstrat Option List'!C29:C1953,0)),"Please choose option") -> 0
A30: Neck Specifications
A31: Neck Specifications | B31: Fretboard binding | C31: =IFERROR(INDEX('Superstrat Option List'!C30:C278,MATCH(#REF!&A31&B31,'Superstrat Option List'!#REF!&'Superstrat Option List'!A30:A278&'Superstrat Option List'!B30:B278,0)),"Select Option") -> Select Option | D31: =IFERROR(INDEX('Superstrat Option List'!D29:D1955,MATCH(A31&B31&C31,'Superstrat Option List'!A29:A1955&'Superstrat Option List'!B29:B1955&'Superstrat Option List'!C29:C1955,0)),"Please choose option") -> 0
A32: Neck Specifications | B32: Fretboard inlays | C32: =IFERROR(INDEX('Superstrat Option List'!C30:C278,MATCH(#REF!&A32&B32,'Superstrat Option List'!#REF!&'Superstrat Option List'!A30:A278&'Superstrat Option List'!B30:B278,0)),"Select Option") -> Select Option | D32: =IFERROR(INDEX('Superstrat Option List'!D30:D1956,MATCH(A32&B32&C32,'Superstrat Option List'!A30:A1956&'Superstrat Option List'!B30:B1956&'Superstrat Option List'!C30:C1956,0)),"Please choose option") -> 0
A33: Neck Specifications | B33: Side markers | C33: =IFERROR(INDEX('Superstrat Option List'!C31:C278,MATCH(#REF!&A33&B33,'Superstrat Option List'!#REF!&'Superstrat Option List'!A31:A278&'Superstrat Option List'!B31:B278,0)),"Select Option") -> Select Option | D33: =IFERROR(INDEX('Superstrat Option List'!D30:D1957,MATCH(A33&B33&C33,'Superstrat Option List'!A30:A1957&'Superstrat Option List'!B30:B1957&'Superstrat Option List'!C30:C1957,0)),"Please choose option") -> 0
B35: Headstock Specifications
A36: Neck Specifications | B36: Headstock shape | C36: =IFERROR(INDEX('Superstrat Option List'!C34:C278,MATCH(#REF!&A36&B36,'Superstrat Option List'!#REF!&'Superstrat Option List'!A34:A278&'Superstrat Option List'!B34:B278,0)),"Select Option") -> Select Option | D36: =IFERROR(INDEX('Ennea Guitar Option list'!D2:D216,MATCH('Ennea Guitar Padalka Calculatio'!A36&'Ennea Guitar Padalka Calculatio'!B36&'Ennea Guitar Padalka Calculatio'!C36,'Ennea Guitar Option list'!A2:A216&'Ennea Guitar Option list'!B2:B216&'Ennea Guitar Option list'!C2:C216,0)),"$0,00") -> 0
A37: Neck Specifications | B37: Headstock finish | C37: =IFERROR(INDEX('Superstrat Option List'!C38:C279,MATCH(#REF!&A37&B37,'Superstrat Option List'!#REF!&'Superstrat Option List'!A38:A279&'Superstrat Option List'!B38:B279,0)),"Select Option") -> Select Option | D37: =IFERROR(INDEX('Ennea Guitar Option list'!D3:D217,MATCH('Ennea Guitar Padalka Calculatio'!A37&'Ennea Guitar Padalka Calculatio'!B37&'Ennea Guitar Padalka Calculatio'!C37,'Ennea Guitar Option list'!A3:A217&'Ennea Guitar Option list'!B3:B217&'Ennea Guitar Option list'!C3:C217,0)),"$0,00") -> 0
B39: Body Specifications
A40: Body Specifications | B40: Body wood | C40: =IFERROR(INDEX('Superstrat Option List'!C39:C278,MATCH(#REF!&A40&B40,'Superstrat Option List'!#REF!&'Superstrat Option List'!A39:A278&'Superstrat Option List'!B39:B278,0)),"Select Option") -> Select Option | D40: =IFERROR(INDEX('Ennea Guitar Option list'!D6:D220,MATCH('Ennea Guitar Padalka Calculatio'!A40&'Ennea Guitar Padalka Calculatio'!B40&'Ennea Guitar Padalka Calculatio'!C40,'Ennea Guitar Option list'!A6:A220&'Ennea Guitar Option list'!B6:B220&'Ennea Guitar Option list'!C6:C220,0)),"$0,00") -> 0
A41: Body Specifications | B41: Finish | C41: =IFERROR(INDEX('Superstrat Option List'!C46:C278,MATCH(#REF!&A41&B41,'Superstrat Option List'!#REF!&'Superstrat Option List'!A46:A278&'Superstrat Option List'!B46:B278,0)),"Select Option") -> Select Option | D41: =IFERROR(INDEX('Superstrat Option List'!D45:D1971,MATCH(A41&B41&C41,'Superstrat Option List'!A45:A1971&'Superstrat Option List'!B45:B1971&'Superstrat Option List'!C45:C1971,0)),"Please choose option") -> 0
A42: Body Specifications | B42: Colour | C42: =IFERROR(INDEX('Superstrat Option List'!C48:C278,MATCH(#REF!&A42&B42,'Superstrat Option List'!#REF!&'Superstrat Option List'!A48:A278&'Superstrat Option List'!B48:B278,0)),"Select Option") -> Select Option | D42: =IFERROR(INDEX('Superstrat Option List'!D47:D1973,MATCH(A42&B42&C42,'Superstrat Option List'!A47:A1973&'Superstrat Option List'!B47:B1973&'Superstrat Option List'!C47:C1973,0)),"Please choose option") -> 0
A43: Body Specifications
B44: Special upcharge | D44: =IF(C43>=F44,G44,0) -> 0 | F44: White | G44: 50
B46: Hardware
A47: Hardware | B47: Bridge | C47: =IFERROR(INDEX('Superstrat Option List'!C50:C278,MATCH(#REF!&A47&B47,'Superstrat Option List'!#REF!&'Superstrat Option List'!A50:A278&'Superstrat Option List'!B50:B278,0)),"Select Option") -> Select Option | D47: =IFERROR(INDEX('Superstrat Option List'!D52:D1977,MATCH(A47&B47&C47,'Superstrat Option List'!A52:A1977&'Superstrat Option List'!B52:B1977&'Superstrat Option List'!C52:C1977,0)),"Please choose option") -> 0
A48: Hardware | B48: Tuning machines | C48: =IFERROR(INDEX('Superstrat Option List'!C57:C278,MATCH(#REF!&A48&B48,'Superstrat Option List'!#REF!&'Superstrat Option List'!A57:A278&'Superstrat Option List'!B57:B278,0)),"Select Option") -> Select Option | D48: =IFERROR(F48*C9,"$0,00") -> $0,00 | F48: =IFERROR(INDEX('Superstrat Option List'!D57:D2360,MATCH(A48&B48&C48,'Superstrat Option List'!A57:A2360&'Superstrat Option List'!B57:B2360&'Superstrat Option List'!C57:C2360,0)),"Please chose option") -> 0
B50: Electronics
A51: Electronics | B51: Neck Pickup | C51: =IFERROR(INDEX('Superstrat Option List'!C61:C278,MATCH(#REF!&A51&B51,'Superstrat Option List'!#REF!&'Superstrat Option List'!A61:A278&'Superstrat Option List'!B61:B278,0)),"Select Option") -> Select Option | D51: =INDEX('Ennea Guitar Option list'!D5:D219,MATCH('Ennea Guitar Padalka Calculatio'!A51&'Ennea Guitar Padalka Calculatio'!B51&'Ennea Guitar Padalka Calculatio'!C51,'Ennea Guitar Option list'!A5:A219&'Ennea Guitar Option list'!B5:B219&'Ennea Guitar Option list'!C5:C219,0)) -> 0
A52: Electronics | B52: Describe Pickup Model
A53: Electronics | B53: Middle Pickup | C53: =IFERROR(INDEX('Superstrat Option List'!C63:C278,MATCH(#REF!&A53&B53,'Superstrat Option List'!#REF!&'Superstrat Option List'!A63:A278&'Superstrat Option List'!B63:B278,0)),"Select Option") -> Select Option | D53: =INDEX('Ennea Guitar Option list'!D7:D221,MATCH('Ennea Guitar Padalka Calculatio'!A53&'Ennea Guitar Padalka Calculatio'!B53&'Ennea Guitar Padalka Calculatio'!C53,'Ennea Guitar Option list'!A7:A221&'Ennea Guitar Option list'!B7:B221&'Ennea Guitar Option list'!C7:C221,0)) -> 0
A54: Electronics | B54: Describe Pickup Model
A55: Electronics | B55: Bridge Pickup | C55: =IFERROR(INDEX('Superstrat Option List'!C67:C278,MATCH(#REF!&A55&B55,'Superstrat Option List'!#REF!&'Superstrat Option List'!A67:A278&'Superstrat Option List'!B67:B278,0)),"Select Option") -> Select Option | D55: =INDEX('Ennea Guitar Option list'!D8:D223,MATCH('Ennea Guitar Padalka Calculatio'!A55&'Ennea Guitar Padalka Calculatio'!B55&'Ennea Guitar Padalka Calculatio'!C55,'Ennea Guitar Option list'!A8:A223&'Ennea Guitar Option list'!B8:B223&'Ennea Guitar Option list'!C8:C223,0)) -> 0
A56: Electronics | B56: Describe Pickup Model
A57: Electronics | B57: Pickup Switch | C57: =IFERROR(INDEX('Superstrat Option List'!C75:C278,MATCH(#REF!&A57&B57,'Superstrat Option List'!#REF!&'Superstrat Option List'!A75:A278&'Superstrat Option List'!B75:B278,0)),"Select Option") -> Select Option | D57: =INDEX('Ennea Guitar Option list'!D9:D225,MATCH('Ennea Guitar Padalka Calculatio'!A57&'Ennea Guitar Padalka Calculatio'!B57&'Ennea Guitar Padalka Calculatio'!C57,'Ennea Guitar Option list'!A9:A225&'Ennea Guitar Option list'!B9:B225&'Ennea Guitar Option list'!C9:C225,0)) -> 0
A58: Electronics | B58: Piezo Pickups | C58: =IFERROR(INDEX('Superstrat Option List'!C78:C278,MATCH(#REF!&A58&B58,'Superstrat Option List'!#REF!&'Superstrat Option List'!A78:A278&'Superstrat Option List'!B78:B278,0)),"Select Option") -> Select Option | D58: =INDEX('Ennea Guitar Option list'!D10:D226,MATCH('Ennea Guitar Padalka Calculatio'!A58&'Ennea Guitar Padalka Calculatio'!B58&'Ennea Guitar Padalka Calculatio'!C58,'Ennea Guitar Option list'!A10:A226&'Ennea Guitar Option list'!B10:B226&'Ennea Guitar Option list'!C10:C226,0)) -> 0
A59: Electronics | B59: Pre-amp | C59: =IFERROR(INDEX('Superstrat Option List'!C78:C278,MATCH(#REF!&A59&B59,'Superstrat Option List'!#REF!&'Superstrat Option List'!A78:A278&'Superstrat Option List'!B78:B278,0)),"Select Option") -> Select Option | D59: =INDEX('Ennea Guitar Option list'!D12:D228,MATCH('Ennea Guitar Padalka Calculatio'!A59&'Ennea Guitar Padalka Calculatio'!B59&'Ennea Guitar Padalka Calculatio'!C59,'Ennea Guitar Option list'!A12:A228&'Ennea Guitar Option list'!B12:B228&'Ennea Guitar Option list'!C12:C228,0)) -> 0
A60: Electronics | B60: Describe Other Pre-amp
B62: Total | D62: =IFERROR(SUM(D8:D61),"Please select missing option") -> 0
B63: Name:
B64: Country :
B65: Adress :
B66: E-mail :
B67: Phone Number:
B68: Body & Headstock Shapes available in this models
B69: Ennea Body Model
B70: Ennea Headstock Model

Sheet Ennea Bass Option list (hidden)
A1: Group | B1: Description | C1: Options | D1: Rate $ | E1: 2nd Rate $ | F1: Russian Rate
A2: General Specifications | B2: Model | C2: Select Option | G2: Rate with formula, only change Russian rate
A3: General Specifications | B3: Model | C3: Ennea Bass Doublecut | D3: 2500
A4: General Specifications | B4: Model | C4: Ennea Bass Singlecut | D4: 2500
A5: General Specifications | B5: Number of strings | C5: Select Option
A6: General Specifications | B6: Number of strings | C6: 4 | D6: 0
A7: General Specifications | B7: Number of strings | C7: 5 | D7: 85
A8: General Specifications | B8: Number of strings | C8: 6 | D8: 165
A9: General Specifications | B9: Scale length | C9: Select Option
A10: General Specifications | B10: Scale length | C10: 34" | D10: 0
A11: General Specifications | B11: Scale length | C11: 35" | D11: 0
A12: General Specifications | B12: Scale length | C12: Multiscale | D12: 200
A13: General Specifications | B13: Neck joint construction | C13: Select Option
A14: General Specifications | B14: Neck joint construction | C14: Set neck | D14: 0
A15: Neck Specifications | B15: Number of frets | C15: Select Option
A16: Neck Specifications | B16: Number of frets | C16: 24 | D16: 0
A17: Neck Specifications | B17: Number of frets | C17: 26 | D17: 0
A18: Neck Specifications | B18: Number of frets | C18: Fretless | D18: 0
A19: Neck Specifications | B19: Fretwire | C19: Select Option
A20: Neck Specifications | B20: Fretwire | C20: None ( Fretless) | D20: 0
A21: Neck Specifications | B21: Fretwire | C21: Jescar stainless steel 2,3x1,4mm | D21: 0
A22: Neck Specifications | B22: Fretwire | C22: Jescar stainless steel 2,5x1,3mm | D22: 0
A23: Neck Specifications | B23: Fretwire | C23: Evo Gold 2,3x1,4mm | D23: 25
A24: Neck Specifications | B24: Fretwire | C24: Jescar nickel-silver 2,3x1,4mm | D24: 0
A25: Neck Specifications | B25: Fretwire | C25: Jescar nickel-silver 2,5x1,3mm | D25: 0
A26: Neck Specifications | B26: Neck pieces | C26: Select Option
A27: Neck Specifications | B27: Neck pieces | C27: 1 | D27: 0
A28: Neck Specifications | B28: Neck pieces | C28: 3 | D28: =F28*'Exchange Rate Calculation'!$Q$7 -> 0
A29: Neck Specifications | B29: Neck pieces | C29: 5 | D29: =F29*'Exchange Rate Calculation'!$Q$7 -> 0
A30: Neck Specifications | B30: Neck pieces | C30: 7 | D30: 50
A31: Neck Specifications | B31: Neck pieces | C31: 7 + 2 veneer | D31: 60
A32: Neck Specifications | B32: Neck wood | C32: Select Option
A33: Neck Specifications | B33: Neck wood | C33: 1 Piece Neck Wood | D33: none | E33: 0
A34: Neck Specifications | B34: Neck wood | C34: 1 Piece Neck Wood | D34: Hard maple | E34: =F34*'Exchange Rate Calculation'!$Q$7 -> 0
A35: Neck Specifications | B35: Neck wood | C35: 1 Piece Neck Wood | D35: Flame maple | E35: 220
A36: Neck Specifications | B36: Neck wood | C36: 1 Piece Neck Wood | D36: African mahogany | E36: 85
A37: Neck Specifications | B37: Neck wood | C37: 1 Piece Neck Wood | D37: Bird`s eye maple | E37: 220
A38: Neck Specifications | B38: Neck wood | C38: 1 Piece Neck Wood | D38: Pau Ferro | E38: 210
A39: Neck Specifications | B39: Neck wood | C39: 1 Piece Neck Wood | D39: Padouk | E39: 100
A40: Neck Specifications | B40: Neck wood | C40: 1 Piece Neck Wood | D40: Other ( contact for price ) | E40: 0
A41: Neck Specifications | B41: Neck wood | C41: Select Option
A42: Neck Specifications | B42: Neck wood | C42: Multi-piece Neck Base Wood | D42: none | E42: 0
A43: Neck Specifications | B43: Neck wood | C43: Multi-piece Neck Base Wood | D43: Hard maple | E43: 0
A44: Neck Specifications | B44: Neck wood | C44: Multi-piece Neck Base Wood | D44: Flame maple | E44: 220
A45: Neck Specifications | B45: Neck wood | C45: Multi-piece Neck Base Wood | D45: African mahogany | E45: 85
A46: Neck Specifications | B46: Neck wood | C46: Multi-piece Neck Base Wood | D46: Pau Ferro | E46: 210
A47: Neck Specifications | B47: Neck wood | C47: Multi-piece Neck Base Wood | D47: Padouk | E47: 100
A48: Neck Specifications | B48: Neck wood | C48: Multi-piece Neck Base Wood | D48: Sapele | E48: 100
A49: Neck Specifications | B49: Neck wood | C49: Multi-piece Neck Base Wood | D49: Limba | E49: 100
A50: Neck Specifications | B50: Neck wood | C50: Multi-piece Neck Base Wood | D50: Walnut | E50: 100
A51: Neck Specifications | B51: Neck wood | C51: Multi-piece Neck Base Wood | D51: Wenge | E51: 210
A52: Neck Specifications | B52: Neck wood | C52: Multi-piece Neck Base Wood | D52: Purpleheart | E52: 165
A53: Neck Specifications | B53: Neck wood | C53: Multi-piece Neck Base Wood | D53: Other ( contact for price ) | E53: 0
A54: Neck Specifications | B54: Neck wood | C54: Select Option
A55: Neck Specifications | B55: Neck wood | C55: Multi-piece Neck Thins Wood | D55: none | E55: 0
A56: Neck Specifications | B56: Neck wood | C56: Multi-piece Neck Thins Wood | D56: Hard maple | E56: 0
A57: Neck Specifications | B57: Neck wood | C57: Multi-piece Neck Thins Wood | D57: Wenge | E57: 63
A58: Neck Specifications | B58: Neck wood | C58: Multi-piece Neck Thins Wood | D58: Padouk | E58: 30
A59: Neck Specifications | B59: Neck wood | C59: Multi-piece Neck Thins Wood | D59: African mahogany | E59: 25
A60: Neck Specifications | B60: Neck wood | C60: Multi-piece Neck Thins Wood | D60: Bubinga | E60: 50
A61: Neck Specifications | B61: Neck wood | C61: Multi-piece Neck Thins Wood | D61: Sapele | E61: 30
A62: Neck Specifications | B62: Neck wood | C62: Multi-piece Neck Thins Wood | D62: Limba | E62: 30
A63: Neck Specifications | B63: Neck wood | C63: Multi-piece Neck Thins Wood | D63: Walnut | E63: 30
A64: Neck Specifications | B64: Neck wood | C64: Multi-piece Neck Thins Wood | D64: Purpleheart | E64: 50
A65: Neck Specifications | B65: Neck wood | C65: Multi-piece Neck Thins Wood | D65: Other ( contact for price ) | E65: 0
A66: Neck Specifications | B66: Fretboard wood | C66: Select Option
A67: Neck Specifications | B67: Fretboard wood | C67: Pau Ferro | D67: 0
A68: Neck Specifications | B68: Fretboard wood | C68: Pale moon ebony | D68: 165
A69: Neck Specifications | B69: Fretboard wood | C69: Ebony | D69: 110
A70: Neck Specifications | B70: Fretboard wood | C70: Macassar | D70: 110
A71: Neck Specifications | B71: Fretboard wood | C71: Hard maple | D71: 0
A72: Neck Specifications | B72: Fretboard wood | C72: Bird`s eye maple | D72: 90
A73: Neck Specifications | B73: Fretboard wood | C73: Zebrano | D73: 50
A74: Neck Specifications | B74: Fretboard wood | C74: Ziricote | D74: 110
A75: Neck Specifications | B75: Fretboard wood | C75: other exotic wood (contact for the price) | D75: 0
A76: Neck Specifications | B76: Fretboard radius | C76: Select Option
A77: Neck Specifications | B77: Fretboard radius | C77: 10" | D77: 0
A78: Neck Specifications | B78: Fretboard radius | C78: 12" | D78: 0
A79: Neck Specifications | B79: Fretboard radius | C79: 16" | D79: 0
A80: Neck Specifications | B80: Fretboard radius | C80: 20" | D80: 0
A81: Neck Specifications | B81: Fretboard radius | C81: 37" | D81: =F81*'Exchange Rate Calculation'!$Q$7 -> 0
A82: Neck Specifications | B82: Headstock shape | C82: Select Option
A83: Neck Specifications | B83: Headstock shape | C83: Ennea | D83: 0
A84: Neck Specifications | B84: Headstock finish | C84: Select Option
A85: Neck Specifications | B85: Headstock finish | C85: Matching body with veneer | D85: =F85*'Exchange Rate Calculation'!$Q$7 -> 0
A86: Neck Specifications | B86: Headstock finish | C86: Clear | D86: 0
A87: Neck Specifications | B87: Fretboard binding | C87: Select Option
A88: Neck Specifications | B88: Fretboard binding | C88: None | D88: 0
A89: Neck Specifications | B89: Fretboard binding | C89: Binding 1 ply | D89: 50
A90: Neck Specifications | B90: Fretboard binding | C90: Binding 2 ply | D90: 100
A91: Neck Specifications | B91: Fretboard inlays | C91: Select Option
A92: Neck Specifications | B92: Fretboard inlays | C92: None | D92: 0
A93: Neck Specifications | B93: Fretboard inlays | C93: MOP dots 4mm | D93: 0
A94: Neck Specifications | B94: Fretboard inlays | C94: MOP dots 6mm | D94: 0
A95: Neck Specifications | B95: Fretboard inlays | C95: Plastic dots 2mm | D95: =F95*'Exchange Rate Calculation'!$Q$7 -> 0
A96: Neck Specifications | B96: Fretboard inlays | C96: Custom design "simple" | D96: 50
A97: Neck Specifications | B97: Fretboard inlays | C97: Custom design "medium" | D97: 115
A98: Neck Specifications | B98: Fretboard inlays | C98: Custom design "complicated" | D98: 165
A99: Neck Specifications | B99: Side markers | C99: Select Option
A100: Neck Specifications | B100: Side markers | C100: None | D100: 0
A101: Neck Specifications | B101: Side markers | C101: Plastic dots 2mm | D101: 0
A102: Neck Specifications | B102: Side markers | C102: MOP dots 2mm | D102: 0
A103: Neck Specifications | B103: Side markers | C103: Luminlay 3mm | D103: 0
A104: Neck Specifications | B104: Side markers | C104: Plastic blocks | D104: 50
A105: Neck Specifications | B105: Side markers | C105: MOP blocks | D105: 60
A106: Neck Specifications | B106: Neck Finish | C106: Select Option
A107: Neck Specifications | B107: Neck Finish | C107: Clear matt | D107: 0
A108: Neck Specifications | B108: Neck Finish | C108: Clear gloss | D108: 0
A109: Neck Specifications | B109: Neck Finish | C109: Matching Body | D109: 0
A110: Body Specifications | B110: Body wood | C110: Select Option
A111: Body Specifications | B111: Body wood | C111: Alder | D111: 50
A112: Body Specifications | B112: Body wood | C112: White ash | D112: 50
A113: Body Specifications | B113: Body wood | C113: Swamp ash | D113: 300
A114: Body Specifications | B114: Body wood | C114: African mahogany | D114: 100
A115: Body Specifications | B115: Body wood | C115: Limba | D115: 200
A116: Body Specifications | B116: Body wood | C116: Hard maple | D116: 50
A117: Body Specifications | B117: Body wood | C117: Sapele | D117: 85
A118: Body Specifications | B118: Finish | C118: Select Option
A119: Body Specifications | B119: Finish | C119: Satin open pores | D119: =F119*'Exchange Rate Calculation'!$Q$7 -> 0
A120: Body Specifications | B120: Finish | C120: Oil | D120: 75
A121: Body Specifications | B121: Finish | C121: Gloss | D121: 200
A122: Body Specifications | B122: Finish | C122: Gloss top | D122: 85
A123: Body Specifications | B123: Colour | C123: Select Option
A124: Body Specifications | B124: Colour | C124: Clear | D124: 0
A125: Body Specifications | B125: Colour | C125: Uniform colour | D125: =F125*'Exchange Rate Calculation'!$Q$7 -> 0
A126: Body Specifications | B126: Colour | C126: Burst | D126: 30
A127: Body Specifications | B127: Colour | C127: Painted pores (one colour) | D127: 35
A128: Body Specifications | B128: Colour | C128: Painted pores (two colours) | D128: 70
A129: Hardware | B129: Bridge | C129: Select Option
A130: Hardware | B130: Bridge | C130: Hipshot Triple Lock Down | D130: 0
A131: Hardware | B131: Bridge | C131: Other (contact for the price) | D131: 0
A132: Hardware | B132: Tuning machines | C132: Select Option
A133: Hardware | B133: Tuning machines | C133: Hipshot Ultralite | D133: 0
A134: Electronics | B134: Neck Pickup | C134: Select Option
A135: Electronics | B135: Neck Pickup | C135: Bartolini | D135: 0
A136: Electronics | B136: Neck Pickup | C136: Other (contact for the price) | D136: 0
A137: Electronics | B137: Bridge Pickup | C137: Select Option
A138: Electronics | B138: Bridge Pickup | C138: Bartolini | D138: 0
A139: Electronics | B139: Pre-amp | C139: Select Option
A140: Electronics | B140: Pre-amp | C140: Bartolini 5.2AP | D140: 192
A141: Electronics | B141: Pre-amp | C141: None | D141: 0

Sheet Exchange Rate Calculation (hidden)
A1: US Dollar | B1: 1.00 USD | C1: inv. 1.00 USD | F1: *Select* | L1: *Select*
A2: Argentine Peso | B2: 13889853 | C2: 0.071995 | F2: =A1 -> US Dollar | G2: 1 | H2: 1 | L2: US Dollar | M2: USD
A3: Australian Dollar | B3: 1422464 | C3: 0.703005 | F3: =A2 -> Argentine Peso | G3: =B2 -> 13889853 | H3: =C2 -> 0.071995 | L3: Argentine Peso | M3: ARS
A4: Bahraini Dinar | B4: 0.377339 | C4: 2650134 | F4: Australian Dollar | G4: 1422464 | H4: 0.703005 | L4: Australian Dollar | M4: AUD | P4: Base Currency | Q4: Russian Ruble | R4: =VLOOKUP(Q4,'[1]Pivot Table'!$G$2:$H$57,2,0) -> RUB
A5: Botswana Pula | B5: 11386563 | C5: 0.087823 | F5: Bahraini Dinar | G5: 0.377339 | H5: 2650134 | L5: Bahraini Dinar | M5: BHD | P5: Target Currency | Q5: US Dollar | R5: =VLOOKUP(Q5,'[1]Pivot Table'!$G$2:$H$57,2,0) -> USD
A6: Brazilian Real | B6: 4044582 | C6: 0.247244 | F6: Botswana Pula | G6: 11386563 | H6: 0.087823 | L6: Botswana Pula | M6: BWP | P6: =CONCATENATE(" Exchange Rate ",VLOOKUP(Q4,L2:M57,2,0),"/",VLOOKUP(Q5,L2:M57,2,0)) -> Exchange Rate RUB/USD | Q6: =VLOOKUP(Q4,$F$2:$H$57,3,0) -> 0.013461 | R6: =R5 -> USD
A7: Bruneian Dollar | B7: 1436996 | C7: 0.695896 | F7: Brazilian Real | G7: 4044582 | H7: 0.247244 | L7: Brazilian Real | M7: BRL | P7: 1 RUB = | Q7: 0.0166666 | R7: =R6 -> USD
A8: Bulgarian Lev | B8: 1800060 | C8: 0.555537 | F8: Bruneian Dollar | G8: 1436996 | H8: 0.695896 | L8: Bruneian Dollar | M8: BND
A9: Canadian Dollar | B9: 1410953 | C9: 0.708741 | F9: Bulgarian Lev | G9: 1800060 | H9: 0.555537 | L9: Bulgarian Lev | M9: BGN
A10: Chilean Peso | B10: 721896567 | C10: 0.001385 | F10: Canadian Dollar | G10: 1410953 | H10: 0.708741 | L10: Canadian Dollar | M10: CAD
A11: Chinese Yuan Renminbi | B11: 6591655 | C11: 0.151707 | F11: Chilean Peso | G11: 721896567 | H11: 0.001385 | L11: Chilean Peso | M11: CLP
A12: Colombian Peso | B12: 3251186683 | C12: 0.000308 | F12: Chinese Yuan Renminbi | G12: 6591655 | H12: 0.151707 | L12: Chinese Yuan Renminbi | M12: CNY
A13: Croatian Kuna | B13: 7024769 | C13: 0.142353 | F13: Colombian Peso | G13: 3251186683 | H13: 0.000308 | L13: Colombian Peso | M13: COP
A14: Czech Koruna | B14: 24849903 | C14: 0.040242 | F14: Croatian Kuna | G14: 7024769 | H14: 0.142353 | L14: Croatian Kuna | M14: HRK
A15: Danish Krone | B15: 6855678 | C15: 0.145864 | F15: Czech Koruna | G15: 24849903 | H15: 0.040242 | L15: Czech Koruna | M15: CZK
A16: Euro | B16: 0.919144 | C16: 1087969 | F16: Danish Krone | G16: 6855678 | H16: 0.145864 | L16: Danish Krone | M16: DKK | O16: 1- click in refresh rates
A17: Hong Kong Dollar | B17: 7758285 | C17: 0.128894 | F17: Euro | G17: 0.919144 | H17: 1087969 | L17: Euro | M17: EUR | O17: 2- write in the yellow cell the same value as the cell above ( updated currency exchange)
A18: Hungarian Forint | B18: 289342530 | C18: 0.003456 | F18: Hong Kong Dollar | G18: 7758285 | H18: 0.128894 | L18: Hong Kong Dollar | M18: HKD
A19: Icelandic Krona | B19: 130154780 | C19: 0.007683 | F19: Hungarian Forint | G19: 289342530 | H19: 0.003456 | L19: Hungarian Forint | M19: HUF
A20: Indian Rupee | B20: 66761883 | C20: 0.014979 | F20: Icelandic Krona | G20: 130154780 | H20: 0.007683 | L20: Icelandic Krona | M20: ISK
A21: Indonesian Rupiah | B21: 13911603103 | C21: 0.000072 | F21: Indian Rupee | G21: 66761883 | H21: 0.014979 | L21: Indian Rupee | M21: INR
A22: Iranian Rial | B22: 30156815440 | C22: 0.000033 | F22: Indonesian Rupiah | G22: 13911603103 | H22: 0.000072 | L22: Indonesian Rupiah | M22: IDR
A23: Israeli Shekel | B23: 3922684 | C23: 0.254927 | F23: Iranian Rial | G23: 30156815440 | H23: 0.000033 | L23: Iranian Rial | M23: IRR
A24: Japanese Yen | B24: 118322263 | C24: 0.008451 | F24: Israeli Shekel | G24: 3922684 | H24: 0.254927 | L24: Israeli Shekel | M24: ILS
A25: Kazakhstani Tenge | B25: 343572953 | C25: 0.002911 | F25: Japanese Yen | G25: 118322263 | H25: 0.008451 | L25: Japanese Yen | M25: JPY
A26: South Korean Won | B26: 1201811287 | C26: 0.000832 | F26: Kazakhstani Tenge | G26: 343572953 | H26: 0.002911 | L26: Kazakhstani Tenge | M26: KZT
A27: Kuwaiti Dinar | B27: 0.304059 | C27: 3288835 | F27: South Korean Won | G27: 1201811287 | H27: 0.000832 | L27: South Korean Won | M27: KRW
A28: Libyan Dinar | B28: 1384000 | C28: 0.722543 | F28: Kuwaiti Dinar | G28: 0.304059 | H28: 3288835 | L28: Kuwaiti Dinar | M28: KWD
A29: Malaysian Ringgit | B29: 4386589 | C29: 0.227968 | F29: Libyan Dinar | G29: 1384000 | H29: 0.722543 | L29: Libyan Dinar | M29: LYD
A30: Mauritian Rupee | B30: 36159722 | C30: 0.027655 | F30: Malaysian Ringgit | G30: 4386589 | H30: 0.227968 | L30: Malaysian Ringgit | M30: MYR
A31: Mexican Peso | B31: 17791584 | C31: 0.056206 | F31: Mauritian Rupee | G31: 36159722 | H31: 0.027655 | L31: Mauritian Rupee | M31: MUR
A32: Nepalese Rupee | B32: 103395004 | C32: 0.009672 | F32: Mexican Peso | G32: 17791584 | H32: 0.056206 | L32: Mexican Peso | M32: MXN
A33: New Zealand Dollar | B33: 1506295 | C33: 0.663880 | F33: Nepalese Rupee | G33: 103395004 | H33: 0.009672 | L33: Nepalese Rupee | M33: NPR
A34: Norwegian Krone | B34: 8890266 | C34: 0.112483 | F34: New Zealand Dollar | G34: 1506295 | H34: 0.663880 | L34: New Zealand Dollar | M34: NZD
A35: Omani Rial | B35: 0.385100 | C35: 2596728 | F35: Norwegian Krone | G35: 8890266 | H35: 0.112483 | L35: Norwegian Krone | M35: NOK
A36: Pakistani Rupee | B36: 104909998 | C36: 0.009532 | F36: Omani Rial | G36: 0.385100 | H36: 2596728 | L36: Omani Rial | M36: OMR
A37: Philippine Peso | B37: 47194802 | C37: 0.021189 | F37: Pakistani Rupee | G37: 104909998 | H37: 0.009532 | L37: Pakistani Rupee | M37: PKR
A38: Polish Zloty | B38: 3985796 | C38: 0.250891 | F38: Philippine Peso | G38: 47194802 | H38: 0.021189 | L38: Philippine Peso | M38: PHP
A39: Qatari Riyal | B39: 3641899 | C39: 0.274582 | F39: Polish Zloty | G39: 3985796 | H39: 0.250891 | L39: Polish Zloty | M39: PLN
A40: Romanian New Leu | B40: 4160592 | C40: 0.240350 | F40: Qatari Riyal | G40: 3641899 | H40: 0.274582 | L40: Qatari Riyal | M40: QAR
A41: Russian Ruble | B41: 74290853 | C41: 0.013461 | F41: Romanian New Leu | G41: 4160592 | H41: 0.240350 | L41: Romanian New Leu | M41: RON
A42: Saudi Arabian Riyal | B42: 3755550 | C42: 0.266273 | F42: Russian Ruble | G42: 74290853 | H42: 0.013461 | L42: Russian Ruble | M42: RUB
A43: Singapore Dollar | B43: 1436996 | C43: 0.695896 | F43: Saudi Arabian Riyal | G43: 3755550 | H43: 0.266273 | L43: Saudi Arabian Riyal | M43: SAR
A44: South African Rand | B44: 16029792 | C44: 0.062384 | F44: Singapore Dollar | G44: 1436996 | H44: 0.695896 | L44: Singapore Dollar | M44: SGD
A45: Sri Lankan Rupee | B45: 143197954 | C45: 0.006983 | F45: South African Rand | G45: 16029792 | H45: 0.062384 | L45: South African Rand | M45: ZAR
A46: Swedish Krona | B46: 8502472 | C46: 0.117613 | F46: Sri Lankan Rupee | G46: 143197954 | H46: 0.006983 | L46: Sri Lankan Rupee | M46: LKR
A47: Swiss Franc | B47: 0.999844 | C47: 1000156 | F47: Swedish Krona | G47: 8502472 | H47: 0.117613 | L47: Swedish Krona | M47: SEK
A48: Taiwan New Dollar | B48: 33325961 | C48: 0.030007 | F48: Swiss Franc | G48: 0.999844 | H48: 1000156 | L48: Swiss Franc | M48: CHF
A49: Thai Baht | B49: 36291374 | C49: 0.027555 | F49: Taiwan New Dollar | G49: 33325961 | H49: 0.030007 | L49: Taiwan New Dollar | M49: TWD
A50: Trinidadian Dollar | B50: 6427816 | C50: 0.155574 | F50: Thai Baht | G50: 36291374 | H50: 0.027555 | L50: Thai Baht | M50: THB
A51: Turkish Lira | B51: 2995095 | C51: 0.333879 | F51: Trinidadian Dollar | G51: 6427816 | H51: 0.155574 | L51: Trinidadian Dollar | M51: TTD
A52: Emirati Dirham | B52: 3673150 | C52: 0.272246 | F52: Turkish Lira | G52: 2995095 | H52: 0.333879 | L52: Turkish Lira | M52: TRY
A53: British Pound | B53: 0.683965 | C53: 1462062 | F53: Emirati Dirham | G53: 3673150 | H53: 0.272246 | L53: Emirati Dirham | M53: AED
A54: Venezuelan Bolivar | B54: 6349606 | C54: 0.157490 | F54: British Pound | G54: 0.683965 | H54: 1462062 | L54: British Pound | M54: GBP
A55: Latvian Lat | B55: 0.645974 | C55: 1548050 | F55: Venezuelan Bolivar | G55: 6349606 | H55: 0.157490 | L55: Venezuelan Bolivar | M55: VEF
A56: Lithuanian Litas | B56: 3173619 | C56: 0.315098 | F56: Latvian Lat | G56: 0.645974 | H56: 1548050 | L56: Latvian Lat | M56: LVL
F57: =A56 -> Lithuanian Litas | G57: 3173619 | H57: 0.315098 | L57: Lithuanian Litas | M57: LTL

Sheet Ennea Bass Padalka Calculation
B5: Specifications
A6: Part | B6: Description | C6: Choosen option | D6: Cost
A7: General Specifications | B7: General Specifications
A8: General Specifications | B8: Model | C8: =IFERROR(INDEX('Superstrat Option List'!C2:C278,MATCH(#REF!&A8&B8,'Superstrat Option List'!#REF!&'Superstrat Option List'!A2:A278&'Superstrat Option List'!B2:B278,0)),"Select Option") -> Select Option | D8: =INDEX('Ennea Bass Option list'!D2:D141,MATCH('Ennea Bass Padalka Calculation'!A8&'Ennea Bass Padalka Calculation'!B8&'Ennea Bass Padalka Calculation'!C8,'Ennea Bass Option list'!A2:A141&'Ennea Bass Option list'!B2:B141&'Ennea Bass Option list'!C2:C141,0)) -> 0
A9: General Specifications | B9: Number of Strings | C9: =IFERROR(INDEX('Superstrat Option List'!C3:C278,MATCH(#REF!&A9&B9,'Superstrat Option List'!#REF!&'Superstrat Option List'!A3:A278&'Superstrat Option List'!B3:B278,0)),"Select Option") -> Select Option | D9: =INDEX('Ennea Bass Option list'!D3:D142,MATCH('Ennea Bass Padalka Calculation'!A9&'Ennea Bass Padalka Calculation'!B9&'Ennea Bass Padalka Calculation'!C9,'Ennea Bass Option list'!A3:A142&'Ennea Bass Option list'!B3:B142&'Ennea Bass Option list'!C3:C142,0)) -> 0
A10: General Specifications | B10: Scale Length | C10: =IFERROR(INDEX('Superstrat Option List'!C4:C278,MATCH(#REF!&A10&B10,'Superstrat Option List'!#REF!&'Superstrat Option List'!A4:A278&'Superstrat Option List'!B4:B278,0)),"Select Option") -> Select Option | D10: =INDEX('Ennea Bass Option list'!D4:D143,MATCH('Ennea Bass Padalka Calculation'!A10&'Ennea Bass Padalka Calculation'!B10&'Ennea Bass Padalka Calculation'!C10,'Ennea Bass Option list'!A4:A143&'Ennea Bass Option list'!B4:B143&'Ennea Bass Option list'!C4:C143,0)) -> 0
A11: General Specifications
A12: General Specifications | B12: Neck Joint Construction | C12: =IFERROR(INDEX('Superstrat Option List'!C6:C278,MATCH(#REF!&A12&B12,'Superstrat Option List'!#REF!&'Superstrat Option List'!A6:A278&'Superstrat Option List'!B6:B278,0)),"Select Option") -> Select Option | D12: =INDEX('Ennea Bass Option list'!D6:D145,MATCH('Ennea Bass Padalka Calculation'!A12&'Ennea Bass Padalka Calculation'!B12&'Ennea Bass Padalka Calculation'!C12,'Ennea Bass Option list'!A6:A145&'Ennea Bass Option list'!B6:B145&'Ennea Bass Option list'!C6:C145,0)) -> 0
B14: Neck Specifications
A15: Neck Specifications | B15: Number of frets | C15: =IFERROR(INDEX('Superstrat Option List'!C6:C277,MATCH(#REF!&A15&B15,'Superstrat Option List'!#REF!&'Superstrat Option List'!A6:A277&'Superstrat Option List'!B6:B277,0)),"Select Option") -> Select Option | D15: =INDEX('Ennea Bass Option list'!D9:D148,MATCH('Ennea Bass Padalka Calculation'!A15&'Ennea Bass Padalka Calculation'!B15&'Ennea Bass Padalka Calculation'!C15,'Ennea Bass Option list'!A9:A148&'Ennea Bass Option list'!B9:B148&'Ennea Bass Option list'!C9:C148,0)) -> 0
A16: Neck Specifications | B16: Fretwire | C16: =IFERROR(INDEX('Superstrat Option List'!C7:C278,MATCH(#REF!&A16&B16,'Superstrat Option List'!#REF!&'Superstrat Option List'!A7:A278&'Superstrat Option List'!B7:B278,0)),"Select Option") -> Select Option | D16: =IFERROR(INDEX('Ennea Bass Option list'!D19:D25,MATCH(A16&B16&C16,'Ennea Bass Option list'!A19:A25&'Ennea Bass Option list'!B19:B25&'Ennea Bass Option list'!C19:C25,0)),"$0,00") -> 0
A17: Neck Specifications | B17: Neck pieces | C17: =IFERROR(INDEX('Superstrat Option List'!C7:C278,MATCH(#REF!&A17&B17,'Superstrat Option List'!#REF!&'Superstrat Option List'!A7:A278&'Superstrat Option List'!B7:B278,0)),"Select Option") -> Select Option | D17: =IFERROR(INDEX('Superstrat Option List'!D12:D1938,MATCH(A17&B17&C17,'Superstrat Option List'!A12:A1938&'Superstrat Option List'!B12:B1938&'Superstrat Option List'!C12:C1938,0)),"Please choose option") -> 0
B18: Neck wood
B19: Select option below for 1 piece neck
A20: Neck Specifications | B20: 1 Piece Neck Wood | C20: =INDEX('Superstrat Option List'!D2:D278,MATCH(A20&$B$18&B20,'Superstrat Option List'!A2:A278&'Superstrat Option List'!B2:B278&'Superstrat Option List'!C2:C278,0)) -> Select Option | D20: =IFERROR(INDEX('Ennea Bass Option list'!E2:E141,MATCH('Ennea Bass Padalka Calculation'!A20&'Ennea Bass Padalka Calculation'!$B$18&'Ennea Bass Padalka Calculation'!B20&'Ennea Bass Padalka Calculation'!C20,'Ennea Bass Option list'!A2:A141&'Ennea Bass Option list'!B2:B141&'Ennea Bass Option list'!C2:C141&'Ennea Bass Option list'!D2:D141,0)),"$0,00") -> $0,00
B21: Select options below for Multi-piece neck
A22: Neck Specifications | B22: Multi-piece Neck Base Wood | C22: =INDEX('Superstrat Option List'!D4:D280,MATCH(A22&$B$18&B22,'Superstrat Option List'!A4:A280&'Superstrat Option List'!B4:B280&'Superstrat Option List'!C4:C280,0)) -> Select Option | D22: =IFERROR(INDEX('Ennea Bass Option list'!E4:E143,MATCH('Ennea Bass Padalka Calculation'!A22&'Ennea Bass Padalka Calculation'!$B$18&'Ennea Bass Padalka Calculation'!B22&'Ennea Bass Padalka Calculation'!C22,'Ennea Bass Option list'!A4:A143&'Ennea Bass Option list'!B4:B143&'Ennea Bass Option list'!C4:C143&'Ennea Bass Option list'!D4:D143,0)),"$0,00") -> $0,00
A23: Neck Specifications | B23: Multi-piece Neck Thins Wood | C23: =INDEX('Superstrat Option List'!D5:D281,MATCH(A23&$B$18&B23,'Superstrat Option List'!A5:A281&'Superstrat Option List'!B5:B281&'Superstrat Option List'!C5:C281,0)) -> Select Option | D23: =IFERROR(INDEX('Ennea Bass Option list'!E5:E144,MATCH('Ennea Bass Padalka Calculation'!A23&'Ennea Bass Padalka Calculation'!$B$18&'Ennea Bass Padalka Calculation'!B23&'Ennea Bass Padalka Calculation'!C23,'Ennea Bass Option list'!A5:A144&'Ennea Bass Option list'!B5:B144&'Ennea Bass Option list'!C5:C144&'Ennea Bass Option list'!D5:D144,0)),"$0,00") -> $0,00
A24: Neck Specifications | B24: Multi-piece Neck Thins Wood | C24: =INDEX('Superstrat Option List'!D6:D282,MATCH(A24&$B$18&B24,'Superstrat Option List'!A6:A282&'Superstrat Option List'!B6:B282&'Superstrat Option List'!C6:C282,0)) -> Select Option | D24: =IFERROR(INDEX('Ennea Bass Option list'!E6:E145,MATCH('Ennea Bass Padalka Calculation'!A24&'Ennea Bass Padalka Calculation'!$B$18&'Ennea Bass Padalka Calculation'!B24&'Ennea Bass Padalka Calculation'!C24,'Ennea Bass Option list'!A6:A145&'Ennea Bass Option list'!B6:B145&'Ennea Bass Option list'!C6:C145&'Ennea Bass Option list'!D6:D145,0)),"$0,00") -> $0,00
A25: Neck Specifications | B25: Multi-piece Neck Thins Wood | C25: =INDEX('Superstrat Option List'!D7:D283,MATCH(A25&$B$18&B25,'Superstrat Option List'!A7:A283&'Superstrat Option List'!B7:B283&'Superstrat Option List'!C7:C283,0)) -> Select Option | D25: =IFERROR(INDEX('Ennea Bass Option list'!E7:E146,MATCH('Ennea Bass Padalka Calculation'!A25&'Ennea Bass Padalka Calculation'!$B$18&'Ennea Bass Padalka Calculation'!B25&'Ennea Bass Padalka Calculation'!C25,'Ennea Bass Option list'!A7:A146&'Ennea Bass Option list'!B7:B146&'Ennea Bass Option list'!C7:C146&'Ennea Bass Option list'!D7:D146,0)),"$0,00") -> $0,00
A26: Neck Specifications | B26: Multi-piece Neck Thins Wood | C26: =INDEX('Superstrat Option List'!D8:D284,MATCH(A26&$B$18&B26,'Superstrat Option List'!A8:A284&'Superstrat Option List'!B8:B284&'Superstrat Option List'!C8:C284,0)) -> Select Option | D26: =IFERROR(INDEX('Ennea Bass Option list'!E8:E147,MATCH('Ennea Bass Padalka Calculation'!A26&'Ennea Bass Padalka Calculation'!$B$18&'Ennea Bass Padalka Calculation'!B26&'Ennea Bass Padalka Calculation'!C26,'Ennea Bass Option list'!A8:A147&'Ennea Bass Option list'!B8:B147&'Ennea Bass Option list'!C8:C147&'Ennea Bass Option list'!D8:D147,0)),"$0,00") -> $0,00
A27: Neck Specifications | B27: Multi-piece Neck Thins Wood | C27: =INDEX('Superstrat Option List'!D9:D285,MATCH(A27&$B$18&B27,'Superstrat Option List'!A9:A285&'Superstrat Option List'!B9:B285&'Superstrat Option List'!C9:C285,0)) -> Select Option | D27: =IFERROR(INDEX('Ennea Bass Option list'!E9:E148,MATCH('Ennea Bass Padalka Calculation'!A27&'Ennea Bass Padalka Calculation'!$B$18&'Ennea Bass Padalka Calculation'!B27&'Ennea Bass Padalka Calculation'!C27,'Ennea Bass Option list'!A9:A148&'Ennea Bass Option list'!B9:B148&'Ennea Bass Option list'!C9:C148&'Ennea Bass Option list'!D9:D148,0)),"$0,00") -> $0,00
B29: Fretboard Specifications
A30: Neck Specifications | B30: Fretboard wood | C30: =IFERROR(INDEX('Superstrat Option List'!C29:C278,MATCH(#REF!&A30&B30,'Superstrat Option List'!#REF!&'Superstrat Option List'!A29:A278&'Superstrat Option List'!B29:B278,0)),"Select Option") -> Select Option | D30: =INDEX('Ennea Bass Option list'!D2:D141,MATCH('Ennea Bass Padalka Calculation'!A30&'Ennea Bass Padalka Calculation'!B30&'Ennea Bass Padalka Calculation'!C30,'Ennea Bass Option list'!A2:A141&'Ennea Bass Option list'!B2:B141&'Ennea Bass Option list'!C2:C141,0)) -> 0
A31: Neck Specifications | B31: Fretboard radius | C31: =IFERROR(INDEX('Superstrat Option List'!C29:C278,MATCH(#REF!&A31&B31,'Superstrat Option List'!#REF!&'Superstrat Option List'!A29:A278&'Superstrat Option List'!B29:B278,0)),"Select Option") -> Select Option | D31: =INDEX('Ennea Bass Option list'!D3:D142,MATCH('Ennea Bass Padalka Calculation'!A31&'Ennea Bass Padalka Calculation'!B31&'Ennea Bass Padalka Calculation'!C31,'Ennea Bass Option list'!A3:A142&'Ennea Bass Option list'!B3:B142&'Ennea Bass Option list'!C3:C142,0)) -> 0
A32: Neck Specifications
A33: Neck Specifications | B33: Fretboard binding | C33: =IFERROR(INDEX('Superstrat Option List'!C30:C278,MATCH(#REF!&A33&B33,'Superstrat Option List'!#REF!&'Superstrat Option List'!A30:A278&'Superstrat Option List'!B30:B278,0)),"Select Option") -> Select Option | D33: =INDEX('Ennea Bass Option list'!D5:D144,MATCH('Ennea Bass Padalka Calculation'!A33&'Ennea Bass Padalka Calculation'!B33&'Ennea Bass Padalka Calculation'!C33,'Ennea Bass Option list'!A5:A144&'Ennea Bass Option list'!B5:B144&'Ennea Bass Option list'!C5:C144,0)) -> 0
A34: Neck Specifications | B34: Fretboard inlays | C34: =IFERROR(INDEX('Superstrat Option List'!C30:C278,MATCH(#REF!&A34&B34,'Superstrat Option List'!#REF!&'Superstrat Option List'!A30:A278&'Superstrat Option List'!B30:B278,0)),"Select Option") -> Select Option | D34: =INDEX('Ennea Bass Option list'!D6:D145,MATCH('Ennea Bass Padalka Calculation'!A34&'Ennea Bass Padalka Calculation'!B34&'Ennea Bass Padalka Calculation'!C34,'Ennea Bass Option list'!A6:A145&'Ennea Bass Option list'!B6:B145&'Ennea Bass Option list'!C6:C145,0)) -> 0
A35: Neck Specifications | B35: Side markers | C35: =IFERROR(INDEX('Superstrat Option List'!C31:C278,MATCH(#REF!&A35&B35,'Superstrat Option List'!#REF!&'Superstrat Option List'!A31:A278&'Superstrat Option List'!B31:B278,0)),"Select Option") -> Select Option | D35: =INDEX('Ennea Bass Option list'!D7:D146,MATCH('Ennea Bass Padalka Calculation'!A35&'Ennea Bass Padalka Calculation'!B35&'Ennea Bass Padalka Calculation'!C35,'Ennea Bass Option list'!A7:A146&'Ennea Bass Option list'!B7:B146&'Ennea Bass Option list'!C7:C146,0)) -> 0
B37: Headstock Specifications
A38: Neck Specifications | B38: Headstock shape | C38: =IFERROR(INDEX('Superstrat Option List'!C34:C278,MATCH(#REF!&A38&B38,'Superstrat Option List'!#REF!&'Superstrat Option List'!A34:A278&'Superstrat Option List'!B34:B278,0)),"Select Option") -> Select Option | D38: =INDEX('Ennea Bass Option list'!D2:D141,MATCH('Ennea Bass Padalka Calculation'!A38&'Ennea Bass Padalka Calculation'!B38&'Ennea Bass Padalka Calculation'!C38,'Ennea Bass Option list'!A2:A141&'Ennea Bass Option list'!B2:B141&'Ennea Bass Option list'!C2:C141,0)) -> 0
A39: Neck Specifications | B39: Headstock finish | C39: =IFERROR(INDEX('Superstrat Option List'!C38:C278,MATCH(#REF!&A39&B39,'Superstrat Option List'!#REF!&'Superstrat Option List'!A38:A278&'Superstrat Option List'!B38:B278,0)),"Select Option") -> Select Option | D39: =INDEX('Ennea Bass Option list'!D3:D142,MATCH('Ennea Bass Padalka Calculation'!A39&'Ennea Bass Padalka Calculation'!B39&'Ennea Bass Padalka Calculation'!C39,'Ennea Bass Option list'!A3:A142&'Ennea Bass Option list'!B3:B142&'Ennea Bass Option list'!C3:C142,0)) -> 0
B41: Body Specifications
A42: Body Specifications | B42: Body wood | C42: =IFERROR(INDEX('Superstrat Option List'!C39:C278,MATCH(#REF!&A42&B42,'Superstrat Option List'!#REF!&'Superstrat Option List'!A39:A278&'Superstrat Option List'!B39:B278,0)),"Select Option") -> Select Option | D42: =INDEX('Ennea Bass Option list'!D6:D145,MATCH('Ennea Bass Padalka Calculation'!A42&'Ennea Bass Padalka Calculation'!B42&'Ennea Bass Padalka Calculation'!C42,'Ennea Bass Option list'!A6:A145&'Ennea Bass Option list'!B6:B145&'Ennea Bass Option list'!C6:C145,0)) -> 0
A43: Body Specifications | B43: Finish | C43: =IFERROR(INDEX('Superstrat Option List'!C46:C278,MATCH(#REF!&A43&B43,'Superstrat Option List'!#REF!&'Superstrat Option List'!A46:A278&'Superstrat Option List'!B46:B278,0)),"Select Option") -> Select Option | D43: =INDEX('Ennea Bass Option list'!D7:D146,MATCH('Ennea Bass Padalka Calculation'!A43&'Ennea Bass Padalka Calculation'!B43&'Ennea Bass Padalka Calculation'!C43,'Ennea Bass Option list'!A7:A146&'Ennea Bass Option list'!B7:B146&'Ennea Bass Option list'!C7:C146,0)) -> 0
A44: Body Specifications | B44: Colour | C44: =IFERROR(INDEX('Superstrat Option List'!C48:C278,MATCH(#REF!&A44&B44,'Superstrat Option List'!#REF!&'Superstrat Option List'!A48:A278&'Superstrat Option List'!B48:B278,0)),"Select Option") -> Select Option | D44: =INDEX('Ennea Bass Option list'!D8:D147,MATCH('Ennea Bass Padalka Calculation'!A44&'Ennea Bass Padalka Calculation'!B44&'Ennea Bass Padalka Calculation'!C44,'Ennea Bass Option list'!A8:A147&'Ennea Bass Option list'!B8:B147&'Ennea Bass Option list'!C8:C147,0)) -> 0
A45: Body Specifications
B46: Special upcharge | D46: =IF(C45>=F46,G46,0) -> 0 | F46: White | G46: 50
B48: Hardware
A49: Hardware | B49: Bridge | C49: =IFERROR(INDEX('Superstrat Option List'!C50:C278,MATCH(#REF!&A49&B49,'Superstrat Option List'!#REF!&'Superstrat Option List'!A50:A278&'Superstrat Option List'!B50:B278,0)),"Select Option") -> Select Option | D49: =INDEX('Ennea Bass Option list'!D9:D152,MATCH('Ennea Bass Padalka Calculation'!A49&'Ennea Bass Padalka Calculation'!B49&'Ennea Bass Padalka Calculation'!C49,'Ennea Bass Option list'!A9:A152&'Ennea Bass Option list'!B9:B152&'Ennea Bass Option list'!C9:C152,0)) -> 0
A50: Hardware | B50: Tuning machines | C50: =IFERROR(INDEX('Superstrat Option List'!C57:C278,MATCH(#REF!&A50&B50,'Superstrat Option List'!#REF!&'Superstrat Option List'!A57:A278&'Superstrat Option List'!B57:B278,0)),"Select Option") -> Select Option | D50: =IFERROR(F50*C9,"$0,00") -> $0,00 | F50: =INDEX('Ennea Bass Option list'!D11:D155,MATCH('Ennea Bass Padalka Calculation'!A50&'Ennea Bass Padalka Calculation'!B50&'Ennea Bass Padalka Calculation'!C50,'Ennea Bass Option list'!A11:A155&'Ennea Bass Option list'!B11:B155&'Ennea Bass Option list'!C11:C155,0)) -> 0
B52: Electronics
A53: Electronics | B53: Neck Pickup | C53: =IFERROR(INDEX('Superstrat Option List'!C61:C278,MATCH(#REF!&A53&B53,'Superstrat Option List'!#REF!&'Superstrat Option List'!A61:A278&'Superstrat Option List'!B61:B278,0)),"Select Option") -> Select Option | D53: =INDEX('Ennea Bass Option list'!D134:$D$141,MATCH(A53&B53&C53,'Ennea Bass Option list'!A134:A141&'Ennea Bass Option list'!B134:B141&'Ennea Bass Option list'!C134:C141,0)) -> 0
A54: Electronics | B54: Describe Pickup Model
A55: Electronics | B55: Bridge Pickup | C55: =IFERROR(INDEX('Superstrat Option List'!C67:C278,MATCH(#REF!&A55&B55,'Superstrat Option List'!#REF!&'Superstrat Option List'!A67:A278&'Superstrat Option List'!B67:B278,0)),"Select Option") -> Select Option | D55: =INDEX('Ennea Bass Option list'!D136:$D$141,MATCH(A55&B55&C55,'Ennea Bass Option list'!A136:A143&'Ennea Bass Option list'!B136:B143&'Ennea Bass Option list'!C136:C143,0)) -> 0
A56: Electronics | B56: Describe Pickup Model
A57: Electronics | B57: Pre-amp | C57: =IFERROR(INDEX('Superstrat Option List'!C78:C278,MATCH(#REF!&A57&B57,'Superstrat Option List'!#REF!&'Superstrat Option List'!A78:A278&'Superstrat Option List'!B78:B278,0)),"Select Option") -> Select Option | D57: =IFERROR(INDEX('Ennea Bass Option list'!D139:D141,MATCH('Ennea Bass Padalka Calculation'!A57&'Ennea Bass Padalka Calculation'!B57&'Ennea Bass Padalka Calculation'!C57,'Ennea Bass Option list'!A139:A141&'Ennea Bass Option list'!B139:B141&'Ennea Bass Option list'!C139:C141,0)),"$0,00") -> 0
A58: Electronics | B58: Describe Other Pre-amp
B60: Total | D60: =IFERROR(SUM(D8:D59),"Please select missing option") -> 0
B61: Name:
B62: Country :
B63: Adress :
B64: E-mail :
B65: Phone Number:
B66: Body & Headstock Shapes available in this models
B67: Ennea Singlecut Body Model
B68: Ennea Doublecut Body Model
B69: Ennea Headstock Model
